Department Family,Entity,Date,Expense,Expense area,Supplier,Transaction Number,Amount,VAT registration number
Department of Health,Salisbury NHS Foundation Trust,28-Oct-10,DI & RADIO - RADIOLOGY EQUIPMENT,Clinical Support and Family Services,CSC COMPUTER SCIENCES LTD,5201202226,"38,161.68",
Department of Health,Salisbury NHS Foundation Trust,28-Oct-10,DI & RADIO - RADIOLOGY EQUIPMENT,Clinical Support and Family Services,CSC COMPUTER SCIENCES LTD,5201202226,"1,140.55",
Department of Health,Salisbury NHS Foundation Trust,04-Oct-10,BLDG STRUCTURES SUB CONTR,Capital Projects,R MOULDING AND CO (SALISBURY) LTD,8906,"68,250.00",
Department of Health,Salisbury NHS Foundation Trust,04-Oct-10,BLDG STRUCTURES MAIN CONTR,Capital Projects,R MOULDING AND CO (SALISBURY) LTD,8906,"7,166.25",
Department of Health,Salisbury NHS Foundation Trust,04-Oct-10,HEALTHCARE - NHS TRUSTS,Clinical Support and Family Services,ROYAL UNITED HOSPITAL BATH NHS TRUST,10294869,"64,235.00",
Department of Health,Salisbury NHS Foundation Trust,04-Oct-10,PATIENTS CONT TREAT NEWHALL,Critical care,NEW HALL HOSPITAL,SDH003,"10,181.25",
Department of Health,Salisbury NHS Foundation Trust,04-Oct-10,PATIENTS CONT TREAT NEWHALL,Surgery,NEW HALL HOSPITAL,SDH003,"1,460.36",
Department of Health,Salisbury NHS Foundation Trust,04-Oct-10,PATIENTS CONT TREAT NEWHALL,Critical care,NEW HALL HOSPITAL,SDH003,"206,245.53",
Department of Health,Salisbury NHS Foundation Trust,04-Oct-10,MEDICAL EQUIPMENT 5 YEARS,Capital Projects,OLYMPUS KEYMED LTD,CD1589142,"51,000.00",
Department of Health,Salisbury NHS Foundation Trust,04-Oct-10,MEDICAL EQUIPMENT 5 YEARS,Capital Projects,OLYMPUS KEYMED LTD,CD1589142,"8,925.00",
Department of Health,Salisbury NHS Foundation Trust,08-Oct-10,ETS UNITARY CHARGE,Facilities Directorate,SALISBURY HEALTHCARE FACILITIES LTD,90,"252,424.15",
Department of Health,Salisbury NHS Foundation Trust,08-Oct-10,ENERGY WATER - GAS MAINS,Facilities Directorate,TOTAL GAS AND POWER LTD,61387705/10,"58,162.05",
Department of Health,Salisbury NHS Foundation Trust,08-Oct-10,BLOOD PRODUCTS,Clinical Support and Family Services,NATIONAL BLOOD SERVICE,797797,"84,836.26",
Department of Health,Salisbury NHS Foundation Trust,15-Oct-10,BLDG STRUCTURES MAIN CONTR,Capital Projects,ISG PEARCE LIMITED,CSI10127-7.1,"228,715.00",
Department of Health,Salisbury NHS Foundation Trust,15-Oct-10,BLDG STRUCTURES MAIN CONTR,Capital Projects,ISG PEARCE LIMITED,CSI10127-7.1,"40,025.13",
Department of Health,Salisbury NHS Foundation Trust,15-Oct-10,RATES,Facilities Directorate,WILTSHIRE COUNCIL,Oct-10,"97,553.00",
Department of Health,Salisbury NHS Foundation Trust,15-Oct-10,RATES,Facilities Directorate,WILTSHIRE COUNCIL,Oct-10,"8,324.00",
Department of Health,Salisbury NHS Foundation Trust,15-Oct-10,RATES,Facilities Directorate,WILTSHIRE COUNCIL,Oct-10,365,
Department of Health,Salisbury NHS Foundation Trust,15-Oct-10,PAPER ITEMS GENERAL STATIONERY SUNDRIES,Critical care,NHS LOGISTICS,WSWI1822850,6.08,
Department of Health,Salisbury NHS Foundation Trust,15-Oct-10,PAPER ITEMS GENERAL STATIONERY SUNDRIES,Surgery,NHS LOGISTICS,WSWI1822850,11.17,
Department of Health,Salisbury NHS Foundation Trust,15-Oct-10,STATIONERY SUNDRIES,Critical care,NHS LOGISTICS,WSWI1822850,4.68,
Department of Health,Salisbury NHS Foundation Trust,15-Oct-10,PAPER ITEMS GENERAL STATIONERY SUNDRIES,Clinical Support and Family Services,NHS LOGISTICS,WSWI1822850,7.45,
Department of Health,Salisbury NHS Foundation Trust,15-Oct-10,PAPER ITEMS GENERAL STATIONERY SUNDRIES,Human Resources,NHS LOGISTICS,WSWI1822850,7.72,
Department of Health,Salisbury NHS Foundation Trust,15-Oct-10,STATIONERY SUNDRIES,Medicine,NHS LOGISTICS,WSWI1822850,25.1,
Department of Health,Salisbury NHS Foundation Trust,15-Oct-10,TELECOMS - TELEPHONES,Surgery,NHS LOGISTICS,WSWI1822850,28.76,
Department of Health,Salisbury NHS Foundation Trust,15-Oct-10,MEDSURGCONS - OTHER,Critical care,NHS LOGISTICS,WSWI1822850,39.66,
Department of Health,Salisbury NHS Foundation Trust,15-Oct-10,MEDSURGCONS - OTHER,Critical care,NHS LOGISTICS,WSWI1822850,218.47,
Department of Health,Salisbury NHS Foundation Trust,15-Oct-10,TOILETRIES PERSONAL HYGIENE PRODUCTS,Clinical Support and Family Services,NHS LOGISTICS,WSWI1822850,58.69,
Department of Health,Salisbury NHS Foundation Trust,15-Oct-10,LAB EQUIP-LABORATORY APPARATUS,Clinical Support and Family Services,NHS LOGISTICS,WSWI1822850,48.03,
Department of Health,Salisbury NHS Foundation Trust,15-Oct-10,LAB EQUIP-LABORATORY APPARATUS,Clinical Support and Family Services,NHS LOGISTICS,WSWI1822850,56.71,
Department of Health,Salisbury NHS Foundation Trust,15-Oct-10,MEDSURGCONS - OTHER,Clinical Support and Family Services,NHS LOGISTICS,WSWI1822850,209.11,
Department of Health,Salisbury NHS Foundation Trust,15-Oct-10,TELECOMS - TELEPHONES,Surgery,NHS LOGISTICS,WSWI1822850,31.95,
Department of Health,Salisbury NHS Foundation Trust,15-Oct-10,MEDSURGCONS - OTHER,Clinical Support and Family Services,NHS LOGISTICS,WSWI1822850,31.83,
Department of Health,Salisbury NHS Foundation Trust,15-Oct-10,STATIONERY SUNDRIES,Nursing Directorate,NHS LOGISTICS,WSWI1822850,1.13,
Department of Health,Salisbury NHS Foundation Trust,15-Oct-10,STATIONERY SUNDRIES,Nursing Directorate,NHS LOGISTICS,WSWI1822850,4.02,
Department of Health,Salisbury NHS Foundation Trust,15-Oct-10,PAPER ITEMS GENERAL STATIONERY SUNDRIES,Nursing Directorate,NHS LOGISTICS,WSWI1822850,9.14,
Department of Health,Salisbury NHS Foundation Trust,15-Oct-10,PAPER ITEMS GENERAL STATIONERY SUNDRIES,Nursing Directorate,NHS LOGISTICS,WSWI1822850,13.49,
Department of Health,Salisbury NHS Foundation Trust,15-Oct-10,MEDSURGCONS - OTHER,Clinical Support and Family Services,NHS LOGISTICS,WSWI1822850,14.5,
Department of Health,Salisbury NHS Foundation Trust,15-Oct-10,MEDSURGCONS - OTHER,Clinical Support and Family Services,NHS LOGISTICS,WSWI1822850,31.23,
Department of Health,Salisbury NHS Foundation Trust,15-Oct-10,TISSUES HAND TOWELS & TOILET PAPER,Clinical Support and Family Services,NHS LOGISTICS,WSWI1822850,21.45,
Department of Health,Salisbury NHS Foundation Trust,15-Oct-10,MEDSURGCONS - OTHER,Clinical Support and Family Services,NHS LOGISTICS,WSWI1822850,36,
Department of Health,Salisbury NHS Foundation Trust,15-Oct-10,TISSUES HAND TOWELS & TOILET PAPER,Clinical Support and Family Services,NHS LOGISTICS,WSWI1822850,30.43,
Department of Health,Salisbury NHS Foundation Trust,15-Oct-10,LAB EQUIP-LABORATORY APPARATUS,Clinical Support and Family Services,NHS LOGISTICS,WSWI1822850,24.02,
Department of Health,Salisbury NHS Foundation Trust,15-Oct-10,LAB EQUIP-LABORATORY APPARATUS,Clinical Support and Family Services,NHS LOGISTICS,WSWI1822850,36.72,
Department of Health,Salisbury NHS Foundation Trust,15-Oct-10,LAB EQUIP-LABORATORY APPARATUS,Clinical Support and Family Services,NHS LOGISTICS,WSWI1822850,18.9,
Department of Health,Salisbury NHS Foundation Trust,15-Oct-10,PAPER ITEMS GENERAL STATIONERY SUNDRIES,Surgery,NHS LOGISTICS,WSWI1822850,37,
Department of Health,Salisbury NHS Foundation Trust,15-Oct-10,PAPER ITEMS GENERAL STATIONERY SUNDRIES,Human Resources,NHS LOGISTICS,WSWI1822850,21.77,
Department of Health,Salisbury NHS Foundation Trust,15-Oct-10,STATIONERY SUNDRIES,Clinical Support and Family Services,NHS LOGISTICS,WSWI1822850,5.53,
Department of Health,Salisbury NHS Foundation Trust,15-Oct-10,STATIONERY SUNDRIES,Clinical Support and Family Services,NHS LOGISTICS,WSWI1822850,0.34,
Department of Health,Salisbury NHS Foundation Trust,15-Oct-10,STATIONERY SUNDRIES,Clinical Support and Family Services,NHS LOGISTICS,WSWI1822850,0.26,
Department of Health,Salisbury NHS Foundation Trust,15-Oct-10,PAPER ITEMS GENERAL STATIONERY SUNDRIES,Clinical Support and Family Services,NHS LOGISTICS,WSWI1822850,25.6,
Department of Health,Salisbury NHS Foundation Trust,15-Oct-10,PAPER ITEMS GENERAL STATIONERY SUNDRIES,Clinical Support and Family Services,NHS LOGISTICS,WSWI1822850,8.31,
Department of Health,Salisbury NHS Foundation Trust,15-Oct-10,STATIONERY SUNDRIES,Clinical Support and Family Services,NHS LOGISTICS,WSWI1822850,1.32,
Department of Health,Salisbury NHS Foundation Trust,15-Oct-10,HARD/SOFTWARE-OFF THE SHELF APPLICATIONS,Clinical Support and Family Services,NHS LOGISTICS,WSWI1822850,35.17,
Department of Health,Salisbury NHS Foundation Trust,15-Oct-10,STATIONERY SUNDRIES,Clinical Support and Family Services,NHS LOGISTICS,WSWI1822850,1.14,
Department of Health,Salisbury NHS Foundation Trust,15-Oct-10,STATIONERY SUNDRIES,Clinical Support and Family Services,NHS LOGISTICS,WSWI1822850,1.27,
Department of Health,Salisbury NHS Foundation Trust,15-Oct-10,STATIONERY SUNDRIES,Clinical Support and Family Services,NHS LOGISTICS,WSWI1822850,4.93,
Department of Health,Salisbury NHS Foundation Trust,15-Oct-10,HARD/SOFTWARE-OFF THE SHELF APPLICATIONS,Clinical Support and Family Services,NHS LOGISTICS,WSWI1822850,325.14,
Department of Health,Salisbury NHS Foundation Trust,15-Oct-10,PAPER ITEMS GENERAL STATIONERY SUNDRIES,Clinical Support and Family Services,NHS LOGISTICS,WSWI1822850,11.66,
Department of Health,Salisbury NHS Foundation Trust,15-Oct-10,DRESSINGS  -  PROCEDURE PACKS,Clinical Support and Family Services,NHS LOGISTICS,WSWI1822850,6.08,
Department of Health,Salisbury NHS Foundation Trust,15-Oct-10,LAB EQUIP-LABORATORY APPARATUS,Clinical Support and Family Services,NHS LOGISTICS,WSWI1822850,556.6,
Department of Health,Salisbury NHS Foundation Trust,15-Oct-10,LAB EQUIP-LABORATORY APPARATUS,Clinical Support and Family Services,NHS LOGISTICS,WSWI1822850,82.38,
Department of Health,Salisbury NHS Foundation Trust,15-Oct-10,LAB EQUIP-LABORATORY APPARATUS,Clinical Support and Family Services,NHS LOGISTICS,WSWI1822850,166.06,
Department of Health,Salisbury NHS Foundation Trust,15-Oct-10,OTHER MEDICAL SUPPLIES,Clinical Support and Family Services,NHS LOGISTICS,WSWI1822850,324.77,
Department of Health,Salisbury NHS Foundation Trust,15-Oct-10,OTHER MEDICAL SUPPLIES,Clinical Support and Family Services,NHS LOGISTICS,WSWI1822850,216.51,
Department of Health,Salisbury NHS Foundation Trust,15-Oct-10,LAB EQUIP-LABORATORY APPARATUS,Clinical Support and Family Services,NHS LOGISTICS,WSWI1822850,345.7,
Department of Health,Salisbury NHS Foundation Trust,15-Oct-10,PAPER ITEMS GENERAL STATIONERY SUNDRIES,Clinical Support and Family Services,NHS LOGISTICS,WSWI1822850,0.73,
Department of Health,Salisbury NHS Foundation Trust,15-Oct-10,PAPER ITEMS GENERAL STATIONERY SUNDRIES,Clinical Support and Family Services,NHS LOGISTICS,WSWI1822850,0.99,
Department of Health,Salisbury NHS Foundation Trust,15-Oct-10,PAPER ITEMS GENERAL STATIONERY SUNDRIES,Clinical Support and Family Services,NHS LOGISTICS,WSWI1822850,0.51,
Department of Health,Salisbury NHS Foundation Trust,15-Oct-10,HARD/SOFTWARE-MEDIA  TAPES  DISCS,Clinical Support and Family Services,NHS LOGISTICS,WSWI1822850,4.1,
Department of Health,Salisbury NHS Foundation Trust,15-Oct-10,PAPER ITEMS GENERAL STATIONERY SUNDRIES,Surgery,NHS LOGISTICS,WSWI1822850,8.31,
Department of Health,Salisbury NHS Foundation Trust,15-Oct-10,PAPER ITEMS GENERAL STATIONERY SUNDRIES,Surgery,NHS LOGISTICS,WSWI1822850,38.98,
Department of Health,Salisbury NHS Foundation Trust,15-Oct-10,STATIONERY SUNDRIES,Clinical Support and Family Services,NHS LOGISTICS,WSWI1822850,0.77,
Department of Health,Salisbury NHS Foundation Trust,15-Oct-10,STATIONERY SUNDRIES,Clinical Support and Family Services,NHS LOGISTICS,WSWI1822850,48.54,
Department of Health,Salisbury NHS Foundation Trust,15-Oct-10,STATIONERY SUNDRIES,Clinical Support and Family Services,NHS LOGISTICS,WSWI1822850,9,
Department of Health,Salisbury NHS Foundation Trust,15-Oct-10,STATIONERY SUNDRIES,Clinical Support and Family Services,NHS LOGISTICS,WSWI1822850,54.99,
Department of Health,Salisbury NHS Foundation Trust,15-Oct-10,STATIONERY SUNDRIES,Clinical Support and Family Services,NHS LOGISTICS,WSWI1822850,17.2,
Department of Health,Salisbury NHS Foundation Trust,15-Oct-10,STATIONERY SUNDRIES,Clinical Support and Family Services,NHS LOGISTICS,WSWI1822850,18.56,
Department of Health,Salisbury NHS Foundation Trust,15-Oct-10,STATIONERY SUNDRIES,Clinical Support and Family Services,NHS LOGISTICS,WSWI1822850,22.17,
Department of Health,Salisbury NHS Foundation Trust,15-Oct-10,STATIONERY SUNDRIES,Clinical Support and Family Services,NHS LOGISTICS,WSWI1822850,10.04,
Department of Health,Salisbury NHS Foundation Trust,15-Oct-10,STATIONERY SUNDRIES,Clinical Support and Family Services,NHS LOGISTICS,WSWI1822850,0.11,
Department of Health,Salisbury NHS Foundation Trust,15-Oct-10,PAPER ITEMS GENERAL STATIONERY SUNDRIES,Clinical Support and Family Services,NHS LOGISTICS,WSWI1822850,16.15,
Department of Health,Salisbury NHS Foundation Trust,15-Oct-10,STATIONERY SUNDRIES,Clinical Support and Family Services,NHS LOGISTICS,WSWI1822850,0.82,
Department of Health,Salisbury NHS Foundation Trust,15-Oct-10,TISSUES HAND TOWELS & TOILET PAPER,Clinical Support and Family Services,NHS LOGISTICS,WSWI1822850,30.43,
Department of Health,Salisbury NHS Foundation Trust,15-Oct-10,MEDSURGCONS - OTHER,Clinical Support and Family Services,NHS LOGISTICS,WSWI1822850,95.49,
Department of Health,Salisbury NHS Foundation Trust,15-Oct-10,PAPER ITEMS GENERAL STATIONERY SUNDRIES,Human Resources,NHS LOGISTICS,WSWI1822850,9.74,
Department of Health,Salisbury NHS Foundation Trust,15-Oct-10,STATIONERY SUNDRIES,Human Resources,NHS LOGISTICS,WSWI1822850,3.98,
Department of Health,Salisbury NHS Foundation Trust,15-Oct-10,STATIONERY SUNDRIES,Human Resources,NHS LOGISTICS,WSWI1822850,1.97,
Department of Health,Salisbury NHS Foundation Trust,15-Oct-10,PAPER ITEMS GENERAL STATIONERY SUNDRIES,Human Resources,NHS LOGISTICS,WSWI1822850,19.49,
Department of Health,Salisbury NHS Foundation Trust,15-Oct-10,STATIONERY SUNDRIES,Human Resources,NHS LOGISTICS,WSWI1822850,0.71,
Department of Health,Salisbury NHS Foundation Trust,15-Oct-10,DISPOSABLE THEATRE DRAPES WIPES,Critical care,NHS LOGISTICS,WSWI1822850,30.55,
Department of Health,Salisbury NHS Foundation Trust,15-Oct-10,M & S EQUIPELECTEQUIPINST - OTHER,Surgery,NHS LOGISTICS,WSWI1822850,82.75,
Department of Health,Salisbury NHS Foundation Trust,15-Oct-10,HARD/SOFTWARE-OFF THE SHELF APPLICATIONS,Clinical Support and Family Services,NHS LOGISTICS,WSWI1822850,40.09,
Department of Health,Salisbury NHS Foundation Trust,15-Oct-10,HARD/SOFTWARE-COMPUTER CONSUMABLE (EXCLUDING PAPER),Clinical Support and Family Services,NHS LOGISTICS,WSWI1822850,55.02,
Department of Health,Salisbury NHS Foundation Trust,15-Oct-10,LAB REAGENTS-BUFFERS COMPUND SOLNS,Clinical Support and Family Services,NHS LOGISTICS,WSWI1822850,232.11,
Department of Health,Salisbury NHS Foundation Trust,15-Oct-10,PATIENTS INCONTINENCE,Clinical Support and Family Services,NHS LOGISTICS,WSWI1822850,6.05,
Department of Health,Salisbury NHS Foundation Trust,15-Oct-10,PAPER ITEMS GENERAL STATIONERY SUNDRIES,Medicine,NHS LOGISTICS,WSWI1822850,2.36,
Department of Health,Salisbury NHS Foundation Trust,15-Oct-10,STATIONERY SUNDRIES,Medicine,NHS LOGISTICS,WSWI1822850,3.83,
Department of Health,Salisbury NHS Foundation Trust,15-Oct-10,PAPER ITEMS GENERAL STATIONERY SUNDRIES,Medicine,NHS LOGISTICS,WSWI1822850,0.48,
Department of Health,Salisbury NHS Foundation Trust,15-Oct-10,PAPER ITEMS GENERAL STATIONERY SUNDRIES,Medicine,NHS LOGISTICS,WSWI1822850,2.21,
Department of Health,Salisbury NHS Foundation Trust,15-Oct-10,PAPER ITEMS GENERAL STATIONERY SUNDRIES,Medicine,NHS LOGISTICS,WSWI1822850,38.98,
Department of Health,Salisbury NHS Foundation Trust,15-Oct-10,HARD/SOFTWARE-OFF THE SHELF APPLICATIONS,Medicine,NHS LOGISTICS,WSWI1822850,81.21,
Department of Health,Salisbury NHS Foundation Trust,15-Oct-10,PAPER ITEMS GENERAL STATIONERY SUNDRIES,Medicine,NHS LOGISTICS,WSWI1822850,0.99,
Department of Health,Salisbury NHS Foundation Trust,15-Oct-10,LAB EQUIP-LABORATORY APPARATUS,Surgery,NHS LOGISTICS,WSWI1822850,13.89,
Department of Health,Salisbury NHS Foundation Trust,15-Oct-10,MEDSURGCONS - OTHER,Surgery,NHS LOGISTICS,WSWI1822850,28.05,
Department of Health,Salisbury NHS Foundation Trust,15-Oct-10,STATIONERY SUNDRIES,Surgery,NHS LOGISTICS,WSWI1822850,1.7,
Department of Health,Salisbury NHS Foundation Trust,15-Oct-10,MEDSURGCONS - OTHER,Surgery,NHS LOGISTICS,WSWI1822850,81.55,
Department of Health,Salisbury NHS Foundation Trust,15-Oct-10,OTHER MEDICAL SUPPLIES,Surgery,NHS LOGISTICS,WSWI1822850,7.32,
Department of Health,Salisbury NHS Foundation Trust,15-Oct-10,PATIENTS BEDWEAR UNISEX,Surgery,NHS LOGISTICS,WSWI1822850,52.61,
Department of Health,Salisbury NHS Foundation Trust,15-Oct-10,STATIONERY SUNDRIES,Surgery,NHS LOGISTICS,WSWI1822850,0.37,
Department of Health,Salisbury NHS Foundation Trust,15-Oct-10,HARD/SOFTWARE-OFF THE SHELF APPLICATIONS,Surgery,NHS LOGISTICS,WSWI1822850,20.48,
Department of Health,Salisbury NHS Foundation Trust,15-Oct-10,PATIENT APPLIANCES,Clinical Support and Family Services,NHS LOGISTICS,WSWI1822850,175.32,
Department of Health,Salisbury NHS Foundation Trust,15-Oct-10,LAB EQUIP-LABORATORY APPARATUS,Clinical Support and Family Services,NHS LOGISTICS,WSWI1822850,61.28,
Department of Health,Salisbury NHS Foundation Trust,15-Oct-10,LAB EQUIP-ANALYSERS,Clinical Support and Family Services,NHS LOGISTICS,WSWI1822850,238.77,
Department of Health,Salisbury NHS Foundation Trust,15-Oct-10,COOKING & KITCHEN UTENSILS,Facilities Directorate,NHS LOGISTICS,WSWI1822850,15.15,
Department of Health,Salisbury NHS Foundation Trust,15-Oct-10,DRUGS,Facilities Directorate,NHS LOGISTICS,WSWI1822850,2.8,
Department of Health,Salisbury NHS Foundation Trust,15-Oct-10,MEDSURGCONS - OTHER,Clinical Support and Family Services,NHS LOGISTICS,WSWI1822850,36.17,
Department of Health,Salisbury NHS Foundation Trust,15-Oct-10,OTHER MEDICAL SUPPLIES,Clinical Support and Family Services,NHS LOGISTICS,WSWI1822850,2.93,
Department of Health,Salisbury NHS Foundation Trust,15-Oct-10,MEDSURGCONS - OTHER,Clinical Support and Family Services,NHS LOGISTICS,WSWI1822850,140.66,
Department of Health,Salisbury NHS Foundation Trust,15-Oct-10,DRESSINGS - PRE STERILE,Critical care,NHS LOGISTICS,WSWI1822850,153.19,
Department of Health,Salisbury NHS Foundation Trust,15-Oct-10,PAPER ITEMS GENERAL STATIONERY SUNDRIES,Clinical Support and Family Services,NHS LOGISTICS,WSWI1822850,9.74,
Department of Health,Salisbury NHS Foundation Trust,15-Oct-10,STATIONERY SUNDRIES,Clinical Support and Family Services,NHS LOGISTICS,WSWI1822850,1.76,
Department of Health,Salisbury NHS Foundation Trust,15-Oct-10,ANAESTHETIC EQUIPMENT ACCESSORIES,Critical care,NHS LOGISTICS,WSWI1822850,15.81,
Department of Health,Salisbury NHS Foundation Trust,15-Oct-10,PAPER ITEMS GENERAL STATIONERY SUNDRIES,Facilities Directorate,NHS LOGISTICS,WSWI1822850,2.09,
Department of Health,Salisbury NHS Foundation Trust,15-Oct-10,PAPER ITEMS GENERAL STATIONERY SUNDRIES,Facilities Directorate,NHS LOGISTICS,WSWI1822850,9.74,
Department of Health,Salisbury NHS Foundation Trust,15-Oct-10,PAPER ITEMS GENERAL STATIONERY SUNDRIES,Facilities Directorate,NHS LOGISTICS,WSWI1822850,5.54,
Department of Health,Salisbury NHS Foundation Trust,15-Oct-10,STATIONERY SUNDRIES,Facilities Directorate,NHS LOGISTICS,WSWI1822850,2.17,
Department of Health,Salisbury NHS Foundation Trust,15-Oct-10,STATIONERY SUNDRIES,Facilities Directorate,NHS LOGISTICS,WSWI1822850,1.06,
Department of Health,Salisbury NHS Foundation Trust,15-Oct-10,STATIONERY SUNDRIES,Surgery,NHS LOGISTICS,WSWI1822850,2.72,
Department of Health,Salisbury NHS Foundation Trust,15-Oct-10,STATIONERY SUNDRIES,Surgery,NHS LOGISTICS,WSWI1822850,2.72,
Department of Health,Salisbury NHS Foundation Trust,15-Oct-10,STATIONERY SUNDRIES,Surgery,NHS LOGISTICS,WSWI1822850,2.72,
Department of Health,Salisbury NHS Foundation Trust,15-Oct-10,STATIONERY SUNDRIES,Surgery,NHS LOGISTICS,WSWI1822850,2.72,
Department of Health,Salisbury NHS Foundation Trust,15-Oct-10,TOILETRIES PERSONAL HYGIENE PRODUCTS,Surgery,NHS LOGISTICS,WSWI1822850,3.8,
Department of Health,Salisbury NHS Foundation Trust,15-Oct-10,STATIONERY SUNDRIES,Surgery,NHS LOGISTICS,WSWI1822850,15.69,
Department of Health,Salisbury NHS Foundation Trust,15-Oct-10,STATIONERY SUNDRIES,Surgery,NHS LOGISTICS,WSWI1822850,3.64,
Department of Health,Salisbury NHS Foundation Trust,15-Oct-10,DRESSINGS - PRE STERILE,Surgery,NHS LOGISTICS,WSWI1822850,4.13,
Department of Health,Salisbury NHS Foundation Trust,15-Oct-10,DRESSINGS - PRE STERILE,Surgery,NHS LOGISTICS,WSWI1822850,10.06,
Department of Health,Salisbury NHS Foundation Trust,15-Oct-10,PAPER ITEMS GENERAL STATIONERY SUNDRIES,Surgery,NHS LOGISTICS,WSWI1822850,9.74,
Department of Health,Salisbury NHS Foundation Trust,15-Oct-10,STATIONERY SUNDRIES,Surgery,NHS LOGISTICS,WSWI1822850,0.85,
Department of Health,Salisbury NHS Foundation Trust,15-Oct-10,DRESSINGS - PRE STERILE,Surgery,NHS LOGISTICS,WSWI1822850,9.64,
Department of Health,Salisbury NHS Foundation Trust,15-Oct-10,TISSUES HAND TOWELS & TOILET PAPER,Surgery,NHS LOGISTICS,WSWI1822850,15.22,
Department of Health,Salisbury NHS Foundation Trust,15-Oct-10,TISSUES HAND TOWELS & TOILET PAPER,Surgery,NHS LOGISTICS,WSWI1822850,7.86,
Department of Health,Salisbury NHS Foundation Trust,15-Oct-10,DRUGS,Surgery,NHS LOGISTICS,WSWI1822850,1.48,
Department of Health,Salisbury NHS Foundation Trust,15-Oct-10,DRESSINGS - PRE STERILE,Surgery,NHS LOGISTICS,WSWI1822850,29.31,
Department of Health,Salisbury NHS Foundation Trust,15-Oct-10,STATIONERY SUNDRIES,Surgery,NHS LOGISTICS,WSWI1822850,4.24,
Department of Health,Salisbury NHS Foundation Trust,15-Oct-10,DRESSINGS - PRE STERILE,Surgery,NHS LOGISTICS,WSWI1822850,32.39,
Department of Health,Salisbury NHS Foundation Trust,15-Oct-10,TISSUES HAND TOWELS & TOILET PAPER,Facilities Directorate,NHS LOGISTICS,WSWI1822850,712.34,
Department of Health,Salisbury NHS Foundation Trust,15-Oct-10,TISSUES HAND TOWELS & TOILET PAPER,Facilities Directorate,NHS LOGISTICS,WSWI1822850,17.36,
Department of Health,Salisbury NHS Foundation Trust,15-Oct-10,BAGS SACKS - OTHER,Facilities Directorate,NHS LOGISTICS,WSWI1822850,1.74,
Department of Health,Salisbury NHS Foundation Trust,15-Oct-10,BAGS SACKS - OTHER,Facilities Directorate,NHS LOGISTICS,WSWI1822850,80.49,
Department of Health,Salisbury NHS Foundation Trust,15-Oct-10,BAGS SACKS - OTHER,Facilities Directorate,NHS LOGISTICS,WSWI1822850,5.89,
Department of Health,Salisbury NHS Foundation Trust,15-Oct-10,BAGS SACKS - OTHER,Facilities Directorate,NHS LOGISTICS,WSWI1822850,217.74,
Department of Health,Salisbury NHS Foundation Trust,15-Oct-10,LIQUID REFRESHMENTS,Facilities Directorate,NHS LOGISTICS,WSWI1822850,7.61,
Department of Health,Salisbury NHS Foundation Trust,15-Oct-10,TISSUES HAND TOWELS & TOILET PAPER,Facilities Directorate,NHS LOGISTICS,WSWI1822850,162.89,
Department of Health,Salisbury NHS Foundation Trust,15-Oct-10,TISSUES HAND TOWELS & TOILET PAPER,Facilities Directorate,NHS LOGISTICS,WSWI1822850,324.26,
Department of Health,Salisbury NHS Foundation Trust,15-Oct-10,CLEANING MATERIALS PRODUCTS SUNDRIES,Facilities Directorate,NHS LOGISTICS,WSWI1822850,2.69,
Department of Health,Salisbury NHS Foundation Trust,15-Oct-10,BAGS SACKS - OTHER,Facilities Directorate,NHS LOGISTICS,WSWI1822850,190.64,
Department of Health,Salisbury NHS Foundation Trust,15-Oct-10,CLEANING MATERIALS PRODUCTS SUNDRIES,Facilities Directorate,NHS LOGISTICS,WSWI1822850,42.49,
Department of Health,Salisbury NHS Foundation Trust,15-Oct-10,CLEANING MATERIALS PRODUCTS SUNDRIES,Facilities Directorate,NHS LOGISTICS,WSWI1822850,32.85,
Department of Health,Salisbury NHS Foundation Trust,15-Oct-10,CLEANING MATERIALS PRODUCTS SUNDRIES,Facilities Directorate,NHS LOGISTICS,WSWI1822850,32.85,
Department of Health,Salisbury NHS Foundation Trust,15-Oct-10,STATIONERY SUNDRIES,Clinical Effctiveness Directorate,NHS LOGISTICS,WSWI1822850,0.41,
Department of Health,Salisbury NHS Foundation Trust,15-Oct-10,SURGICAL INSTRUMENTS: GENERAL,Surgery,NHS LOGISTICS,WSWI1822850,15.83,
Department of Health,Salisbury NHS Foundation Trust,15-Oct-10,MEDSURGCONS - OTHER,Surgery,NHS LOGISTICS,WSWI1822850,45.28,
Department of Health,Salisbury NHS Foundation Trust,15-Oct-10,TISSUES HAND TOWELS & TOILET PAPER,Surgery,NHS LOGISTICS,WSWI1822850,91.91,
Department of Health,Salisbury NHS Foundation Trust,15-Oct-10,SURGICAL INSTRUMENTS: GENERAL,Surgery,NHS LOGISTICS,WSWI1822850,31.91,
Department of Health,Salisbury NHS Foundation Trust,15-Oct-10,PATIENT APPLIANCES,Surgery,NHS LOGISTICS,WSWI1822850,17.13,
Department of Health,Salisbury NHS Foundation Trust,15-Oct-10,STATIONERY SUNDRIES,Surgery,NHS LOGISTICS,WSWI1822850,1.04,
Department of Health,Salisbury NHS Foundation Trust,15-Oct-10,DRESSINGS - PRE STERILE,Surgery,NHS LOGISTICS,WSWI1822850,0.99,
Department of Health,Salisbury NHS Foundation Trust,15-Oct-10,COOKING & KITCHEN UTENSILS,Surgery,NHS LOGISTICS,WSWI1822850,2.59,
Department of Health,Salisbury NHS Foundation Trust,15-Oct-10,MEDSURGCONS - OTHER,Surgery,NHS LOGISTICS,WSWI1822850,17.53,
Department of Health,Salisbury NHS Foundation Trust,15-Oct-10,M & S EQUIPELECTEQUIPINST - OTHER,Surgery,NHS LOGISTICS,WSWI1822850,8.13,
Department of Health,Salisbury NHS Foundation Trust,15-Oct-10,PAPER ITEMS GENERAL STATIONERY SUNDRIES,Surgery,NHS LOGISTICS,WSWI1822850,9.74,
Department of Health,Salisbury NHS Foundation Trust,15-Oct-10,HEALTHCARE - WEAR,Surgery,NHS LOGISTICS,WSWI1822850,39.4,
Department of Health,Salisbury NHS Foundation Trust,15-Oct-10,HEALTHCARE - WEAR,Surgery,NHS LOGISTICS,WSWI1822850,27.79,
Department of Health,Salisbury NHS Foundation Trust,15-Oct-10,STATIONERY SUNDRIES,Surgery,NHS LOGISTICS,WSWI1822850,3.52,
Department of Health,Salisbury NHS Foundation Trust,15-Oct-10,STATIONERY SUNDRIES,Surgery,NHS LOGISTICS,WSWI1822850,5.87,
Department of Health,Salisbury NHS Foundation Trust,15-Oct-10,DISPOSABLE THEATRE DRAPES WIPES,Surgery,NHS LOGISTICS,WSWI1822850,18.89,
Department of Health,Salisbury NHS Foundation Trust,15-Oct-10,DRUGS,Surgery,NHS LOGISTICS,WSWI1822850,83.74,
Department of Health,Salisbury NHS Foundation Trust,15-Oct-10,DRUGS,Surgery,NHS LOGISTICS,WSWI1822850,5.6,
Department of Health,Salisbury NHS Foundation Trust,15-Oct-10,MEDSURGCONS - OTHER,Surgery,NHS LOGISTICS,WSWI1822850,127.32,
Department of Health,Salisbury NHS Foundation Trust,15-Oct-10,ADULTS HEARING AIDS,Surgery,NHS LOGISTICS,WSWI1822850,"1,678.98",
Department of Health,Salisbury NHS Foundation Trust,15-Oct-10,STATIONERY SUNDRIES,Surgery,NHS LOGISTICS,WSWI1822850,2.09,
Department of Health,Salisbury NHS Foundation Trust,15-Oct-10,OFFICE EQUIP MACHINERY  -  OTHER,Surgery,NHS LOGISTICS,WSWI1822850,8.8,
Department of Health,Salisbury NHS Foundation Trust,15-Oct-10,PAPER ITEMS GENERAL STATIONERY SUNDRIES,Surgery,NHS LOGISTICS,WSWI1822850,65.23,
Department of Health,Salisbury NHS Foundation Trust,15-Oct-10,STATIONERY SUNDRIES,Clinical Support and Family Services,NHS LOGISTICS,WSWI1822850,0.54,
Department of Health,Salisbury NHS Foundation Trust,15-Oct-10,PAPER ITEMS GENERAL STATIONERY SUNDRIES,Clinical Support and Family Services,NHS LOGISTICS,WSWI1822850,9.74,
Department of Health,Salisbury NHS Foundation Trust,15-Oct-10,TISSUES HAND TOWELS & TOILET PAPER,Clinical Support and Family Services,NHS LOGISTICS,WSWI1822850,1.84,
Department of Health,Salisbury NHS Foundation Trust,15-Oct-10,STATIONERY SUNDRIES,Clinical Support and Family Services,NHS LOGISTICS,WSWI1822850,1.38,
Department of Health,Salisbury NHS Foundation Trust,15-Oct-10,TISSUES HAND TOWELS & TOILET PAPER,Medicine,NHS LOGISTICS,WSWI1822850,4.31,
Department of Health,Salisbury NHS Foundation Trust,15-Oct-10,TISSUES HAND TOWELS & TOILET PAPER,Medicine,NHS LOGISTICS,WSWI1822850,1.51,
Department of Health,Salisbury NHS Foundation Trust,15-Oct-10,PAPER ITEMS GENERAL STATIONERY SUNDRIES,Clinical Support and Family Services,NHS LOGISTICS,WSWI1822850,40.95,
Department of Health,Salisbury NHS Foundation Trust,15-Oct-10,DISPOSABLE THEATRE DRAPES WIPES,Clinical Support and Family Services,NHS LOGISTICS,WSWI1822850,15.76,
Department of Health,Salisbury NHS Foundation Trust,15-Oct-10,DISPOSABLE THEATRE DRAPES WIPES,Clinical Support and Family Services,NHS LOGISTICS,WSWI1822850,141.55,
Department of Health,Salisbury NHS Foundation Trust,15-Oct-10,SURGICAL INSTRUMENTS: GENERAL,Clinical Support and Family Services,NHS LOGISTICS,WSWI1822850,30.55,
Department of Health,Salisbury NHS Foundation Trust,15-Oct-10,OTHER MEDICAL SUPPLIES,Clinical Support and Family Services,NHS LOGISTICS,WSWI1822850,11.03,
Department of Health,Salisbury NHS Foundation Trust,15-Oct-10,MEDSURGCONS - OTHER,Surgery,NHS LOGISTICS,WSWI1822850,195.78,
Department of Health,Salisbury NHS Foundation Trust,15-Oct-10,TISSUES HAND TOWELS & TOILET PAPER,Medicine,NHS LOGISTICS,WSWI1822850,17.36,
Department of Health,Salisbury NHS Foundation Trust,15-Oct-10,MEDSURGCONS - OTHER,Medicine,NHS LOGISTICS,WSWI1822850,22.04,
Department of Health,Salisbury NHS Foundation Trust,15-Oct-10,PAPER ITEMS GENERAL STATIONERY SUNDRIES,Medicine,NHS LOGISTICS,WSWI1822850,7.87,
Department of Health,Salisbury NHS Foundation Trust,15-Oct-10,PAPER ITEMS GENERAL STATIONERY SUNDRIES,Medicine,NHS LOGISTICS,WSWI1822850,8.31,
Department of Health,Salisbury NHS Foundation Trust,15-Oct-10,STATIONERY SUNDRIES,Clinical Support and Family Services,NHS LOGISTICS,WSWI1822850,4.35,
Department of Health,Salisbury NHS Foundation Trust,15-Oct-10,PAPER ITEMS GENERAL STATIONERY SUNDRIES,Clinical Support and Family Services,NHS LOGISTICS,WSWI1822850,1.95,
Department of Health,Salisbury NHS Foundation Trust,15-Oct-10,PAPER ITEMS GENERAL STATIONERY SUNDRIES,Clinical Support and Family Services,NHS LOGISTICS,WSWI1822850,7.79,
Department of Health,Salisbury NHS Foundation Trust,15-Oct-10,STATIONERY SUNDRIES,Clinical Support and Family Services,NHS LOGISTICS,WSWI1822850,1.86,
Department of Health,Salisbury NHS Foundation Trust,15-Oct-10,TISSUES HAND TOWELS & TOILET PAPER,Medicine,NHS LOGISTICS,WSWI1822850,34.72,
Department of Health,Salisbury NHS Foundation Trust,15-Oct-10,STATIONERY SUNDRIES,Medicine,NHS LOGISTICS,WSWI1822850,13.3,
Department of Health,Salisbury NHS Foundation Trust,15-Oct-10,STATIONERY SUNDRIES,Medicine,NHS LOGISTICS,WSWI1822850,6.03,
Department of Health,Salisbury NHS Foundation Trust,15-Oct-10,STATIONERY SUNDRIES,Medicine,NHS LOGISTICS,WSWI1822850,11.61,
Department of Health,Salisbury NHS Foundation Trust,15-Oct-10,DRESSINGS - PRE STERILE,Medicine,NHS LOGISTICS,WSWI1822850,19.89,
Department of Health,Salisbury NHS Foundation Trust,15-Oct-10,DRESSINGS - PRE STERILE,Medicine,NHS LOGISTICS,WSWI1822850,28.99,
Department of Health,Salisbury NHS Foundation Trust,15-Oct-10,DRESSINGS - PRE STERILE,Medicine,NHS LOGISTICS,WSWI1822850,19.44,
Department of Health,Salisbury NHS Foundation Trust,15-Oct-10,ADULTS HEARING AIDS,Surgery,NHS LOGISTICS,WSWI1822850,839.32,
Department of Health,Salisbury NHS Foundation Trust,15-Oct-10,M & S EQUIPELECTEQUIPINST - OTHER,Surgery,NHS LOGISTICS,WSWI1822850,83.13,
Department of Health,Salisbury NHS Foundation Trust,15-Oct-10,ADULTS HEARING AIDS,Surgery,NHS LOGISTICS,WSWI1822850,94.52,
Department of Health,Salisbury NHS Foundation Trust,15-Oct-10,PAPER ITEMS GENERAL STATIONERY SUNDRIES,Corporate Directorate,NHS LOGISTICS,WSWI1822850,16,
Department of Health,Salisbury NHS Foundation Trust,15-Oct-10,PAPER ITEMS GENERAL STATIONERY SUNDRIES,Corporate Directorate,NHS LOGISTICS,WSWI1822850,16,
Department of Health,Salisbury NHS Foundation Trust,15-Oct-10,PAPER ITEMS GENERAL STATIONERY SUNDRIES,Corporate Directorate,NHS LOGISTICS,WSWI1822850,16.77,
Department of Health,Salisbury NHS Foundation Trust,15-Oct-10,STATIONERY SUNDRIES,Corporate Directorate,NHS LOGISTICS,WSWI1822850,1.08,
Department of Health,Salisbury NHS Foundation Trust,15-Oct-10,STATIONERY SUNDRIES,Surgery,NHS LOGISTICS,WSWI1822850,0.11,
Department of Health,Salisbury NHS Foundation Trust,15-Oct-10,PAPER ITEMS GENERAL STATIONERY SUNDRIES,Clinical Effctiveness Directorate,NHS LOGISTICS,WSWI1822850,12.54,
Department of Health,Salisbury NHS Foundation Trust,15-Oct-10,PAPER ITEMS GENERAL STATIONERY SUNDRIES,Corporate Directorate,NHS LOGISTICS,WSWI1822850,11.6,
Department of Health,Salisbury NHS Foundation Trust,15-Oct-10,STATIONERY SUNDRIES,Corporate Directorate,NHS LOGISTICS,WSWI1822850,0.9,
Department of Health,Salisbury NHS Foundation Trust,15-Oct-10,STATIONERY SUNDRIES,Corporate Directorate,NHS LOGISTICS,WSWI1822850,1.66,
Department of Health,Salisbury NHS Foundation Trust,15-Oct-10,STATIONERY SUNDRIES,Corporate Directorate,NHS LOGISTICS,WSWI1822850,70.24,
Department of Health,Salisbury NHS Foundation Trust,15-Oct-10,STATIONERY SUNDRIES,Corporate Directorate,NHS LOGISTICS,WSWI1822850,0.44,
Department of Health,Salisbury NHS Foundation Trust,15-Oct-10,STATIONERY SUNDRIES,Corporate Directorate,NHS LOGISTICS,WSWI1822850,0.44,
Department of Health,Salisbury NHS Foundation Trust,15-Oct-10,COOKING & KITCHEN UTENSILS,Corporate Directorate,NHS LOGISTICS,WSWI1822850,3.23,
Department of Health,Salisbury NHS Foundation Trust,15-Oct-10,PAPER ITEMS GENERAL STATIONERY SUNDRIES,Corporate Directorate,NHS LOGISTICS,WSWI1822850,47.87,
Department of Health,Salisbury NHS Foundation Trust,15-Oct-10,STATIONERY SUNDRIES,Corporate Directorate,NHS LOGISTICS,WSWI1822850,1.17,
Department of Health,Salisbury NHS Foundation Trust,15-Oct-10,STATIONERY SUNDRIES,Corporate Directorate,NHS LOGISTICS,WSWI1822850,5.31,
Department of Health,Salisbury NHS Foundation Trust,15-Oct-10,STATIONERY SUNDRIES,Corporate Directorate,NHS LOGISTICS,WSWI1822850,0.44,
Department of Health,Salisbury NHS Foundation Trust,15-Oct-10,STATIONERY SUNDRIES,Corporate Directorate,NHS LOGISTICS,WSWI1822850,10.38,
Department of Health,Salisbury NHS Foundation Trust,15-Oct-10,STATIONERY SUNDRIES,Corporate Directorate,NHS LOGISTICS,WSWI1822850,3.62,
Department of Health,Salisbury NHS Foundation Trust,15-Oct-10,STATIONERY SUNDRIES,Corporate Directorate,NHS LOGISTICS,WSWI1822850,0.57,
Department of Health,Salisbury NHS Foundation Trust,15-Oct-10,PAPER ITEMS GENERAL STATIONERY SUNDRIES,Corporate Directorate,NHS LOGISTICS,WSWI1822850,10.46,
Department of Health,Salisbury NHS Foundation Trust,15-Oct-10,STATIONERY SUNDRIES,Corporate Directorate,NHS LOGISTICS,WSWI1822850,0.29,
Department of Health,Salisbury NHS Foundation Trust,15-Oct-10,PAPER ITEMS GENERAL STATIONERY SUNDRIES,Critical care,NHS LOGISTICS,WSWI1822850,6.54,
Department of Health,Salisbury NHS Foundation Trust,15-Oct-10,STATIONERY SUNDRIES,Critical care,NHS LOGISTICS,WSWI1822850,4.34,
Department of Health,Salisbury NHS Foundation Trust,15-Oct-10,OFFICE EQUIP MACHINERY  -  OTHER,Human Resources,NHS LOGISTICS,WSWI1822850,0.2,
Department of Health,Salisbury NHS Foundation Trust,15-Oct-10,PAPER ITEMS GENERAL STATIONERY SUNDRIES,Human Resources,NHS LOGISTICS,WSWI1822850,3.61,
Department of Health,Salisbury NHS Foundation Trust,15-Oct-10,PAPER ITEMS GENERAL STATIONERY SUNDRIES,Human Resources,NHS LOGISTICS,WSWI1822850,9.74,
Department of Health,Salisbury NHS Foundation Trust,15-Oct-10,STATIONERY SUNDRIES,Human Resources,NHS LOGISTICS,WSWI1822850,5.97,
Department of Health,Salisbury NHS Foundation Trust,15-Oct-10,STATIONERY SUNDRIES,Human Resources,NHS LOGISTICS,WSWI1822850,3.6,
Department of Health,Salisbury NHS Foundation Trust,15-Oct-10,STATIONERY SUNDRIES,Surgery,NHS LOGISTICS,WSWI1822850,4.77,
Department of Health,Salisbury NHS Foundation Trust,15-Oct-10,PAPER ITEMS GENERAL STATIONERY SUNDRIES,Clinical Support and Family Services,NHS LOGISTICS,WSWI1822850,47.87,
Department of Health,Salisbury NHS Foundation Trust,15-Oct-10,PAPER ITEMS GENERAL STATIONERY SUNDRIES,Clinical Support and Family Services,NHS LOGISTICS,WSWI1822850,16.63,
Department of Health,Salisbury NHS Foundation Trust,15-Oct-10,DRESSINGS - PRE STERILE,Medicine,NHS LOGISTICS,WSWI1822850,1.09,
Department of Health,Salisbury NHS Foundation Trust,15-Oct-10,BEVERAGES & AMBIENT FOOD,Critical care,NHS LOGISTICS,WSWI1822850,4.18,
Department of Health,Salisbury NHS Foundation Trust,15-Oct-10,TOILETRIES PERSONAL HYGIENE PRODUCTS,Critical care,NHS LOGISTICS,WSWI1822850,10.98,
Department of Health,Salisbury NHS Foundation Trust,15-Oct-10,TISSUES HAND TOWELS & TOILET PAPER,Critical care,NHS LOGISTICS,WSWI1822850,13.02,
Department of Health,Salisbury NHS Foundation Trust,15-Oct-10,OTHER MEDICAL SUPPLIES,Critical care,NHS LOGISTICS,WSWI1822850,10.3,
Department of Health,Salisbury NHS Foundation Trust,15-Oct-10,OTHER MEDICAL SUPPLIES,Critical care,NHS LOGISTICS,WSWI1822850,6.98,
Department of Health,Salisbury NHS Foundation Trust,15-Oct-10,HARD/SOFTWARE-OFF THE SHELF APPLICATIONS,Clinical Support and Family Services,NHS LOGISTICS,WSWI1822850,45.11,
Department of Health,Salisbury NHS Foundation Trust,15-Oct-10,DEBTORS HOLDING CODE,Clinical Support and Family Services,NHS LOGISTICS,WSWI1822850,12.41,
Department of Health,Salisbury NHS Foundation Trust,15-Oct-10,STATIONERY SUNDRIES,Clinical Support and Family Services,NHS LOGISTICS,WSWI1822850,0.85,
Department of Health,Salisbury NHS Foundation Trust,15-Oct-10,PAPER ITEMS GENERAL STATIONERY SUNDRIES,Clinical Support and Family Services,NHS LOGISTICS,WSWI1822850,6.84,
Department of Health,Salisbury NHS Foundation Trust,15-Oct-10,PAPER ITEMS GENERAL STATIONERY SUNDRIES,Clinical Support and Family Services,NHS LOGISTICS,WSWI1822850,85.28,
Department of Health,Salisbury NHS Foundation Trust,15-Oct-10,PAPER ITEMS GENERAL STATIONERY SUNDRIES,Clinical Support and Family Services,NHS LOGISTICS,WSWI1822850,0.32,
Department of Health,Salisbury NHS Foundation Trust,15-Oct-10,STATIONERY SUNDRIES,Clinical Support and Family Services,NHS LOGISTICS,WSWI1822850,2.12,
Department of Health,Salisbury NHS Foundation Trust,15-Oct-10,STATIONERY SUNDRIES,Clinical Support and Family Services,NHS LOGISTICS,WSWI1822850,0.83,
Department of Health,Salisbury NHS Foundation Trust,15-Oct-10,STATIONERY SUNDRIES,Clinical Support and Family Services,NHS LOGISTICS,WSWI1822850,2.86,
Department of Health,Salisbury NHS Foundation Trust,15-Oct-10,STATIONERY SUNDRIES,Clinical Support and Family Services,NHS LOGISTICS,WSWI1822850,5.45,
Department of Health,Salisbury NHS Foundation Trust,15-Oct-10,DISPOSABLE THEATRE DRAPES WIPES,Surgery,NHS LOGISTICS,WSWI1822850,5.97,
Department of Health,Salisbury NHS Foundation Trust,15-Oct-10,PAPER ITEMS GENERAL STATIONERY SUNDRIES,Surgery,NHS LOGISTICS,WSWI1822850,13.06,
Department of Health,Salisbury NHS Foundation Trust,15-Oct-10,TOILETRIES PERSONAL HYGIENE PRODUCTS,Surgery,NHS LOGISTICS,WSWI1822850,16.24,
Department of Health,Salisbury NHS Foundation Trust,15-Oct-10,PAPER ITEMS GENERAL STATIONERY SUNDRIES,Surgery,NHS LOGISTICS,WSWI1822850,6.5,
Department of Health,Salisbury NHS Foundation Trust,15-Oct-10,PAPER ITEMS GENERAL STATIONERY SUNDRIES,Surgery,NHS LOGISTICS,WSWI1822850,24.92,
Department of Health,Salisbury NHS Foundation Trust,15-Oct-10,PAPER ITEMS GENERAL STATIONERY SUNDRIES,Surgery,NHS LOGISTICS,WSWI1822850,4.55,
Department of Health,Salisbury NHS Foundation Trust,15-Oct-10,PAPER ITEMS GENERAL STATIONERY SUNDRIES,Surgery,NHS LOGISTICS,WSWI1822850,0.53,
Department of Health,Salisbury NHS Foundation Trust,15-Oct-10,MEDSURGCONS - OTHER,Surgery,NHS LOGISTICS,WSWI1822850,3.74,
Department of Health,Salisbury NHS Foundation Trust,15-Oct-10,DRESSINGS - PRE STERILE,Critical care,NHS LOGISTICS,WSWI1822850,119.97,
Department of Health,Salisbury NHS Foundation Trust,15-Oct-10,STATIONERY SUNDRIES,Surgery,NHS LOGISTICS,WSWI1822850,43.2,
Department of Health,Salisbury NHS Foundation Trust,15-Oct-10,HARD/SOFTWARE-COMPUTER ACCESSORIES  TEST EQUIPMENT,Surgery,NHS LOGISTICS,WSWI1822850,6.9,
Department of Health,Salisbury NHS Foundation Trust,15-Oct-10,PAPER ITEMS GENERAL STATIONERY SUNDRIES,Surgery,NHS LOGISTICS,WSWI1822850,42.72,
Department of Health,Salisbury NHS Foundation Trust,15-Oct-10,TISSUES HAND TOWELS & TOILET PAPER,Facilities Directorate,NHS LOGISTICS,WSWI1822850,52.55,
Department of Health,Salisbury NHS Foundation Trust,15-Oct-10,CLEANING MATERIALS PRODUCTS SUNDRIES,Facilities Directorate,NHS LOGISTICS,WSWI1822850,17.16,
Department of Health,Salisbury NHS Foundation Trust,15-Oct-10,CLEANING MATERIALS PRODUCTS SUNDRIES,Facilities Directorate,NHS LOGISTICS,WSWI1822850,10.6,
Department of Health,Salisbury NHS Foundation Trust,15-Oct-10,ELECTRICAL EQUIPMENT x,Facilities Directorate,NHS LOGISTICS,WSWI1822850,4.52,
Department of Health,Salisbury NHS Foundation Trust,15-Oct-10,CLEANING MATERIALS PRODUCTS SUNDRIES,Facilities Directorate,NHS LOGISTICS,WSWI1822850,29.36,
Department of Health,Salisbury NHS Foundation Trust,15-Oct-10,CLEANING MATERIALS PRODUCTS SUNDRIES,Facilities Directorate,NHS LOGISTICS,WSWI1822850,8.73,
Department of Health,Salisbury NHS Foundation Trust,15-Oct-10,CLEANING MACHINES ACCESSORIES,Facilities Directorate,NHS LOGISTICS,WSWI1822850,14.68,
Department of Health,Salisbury NHS Foundation Trust,15-Oct-10,TISSUES HAND TOWELS & TOILET PAPER,Facilities Directorate,NHS LOGISTICS,WSWI1822850,80.85,
Department of Health,Salisbury NHS Foundation Trust,15-Oct-10,CLEANING MATERIALS PRODUCTS SUNDRIES,Facilities Directorate,NHS LOGISTICS,WSWI1822850,14.93,
Department of Health,Salisbury NHS Foundation Trust,15-Oct-10,MEDSURGCONS - OTHER,Facilities Directorate,NHS LOGISTICS,WSWI1822850,432.29,
Department of Health,Salisbury NHS Foundation Trust,15-Oct-10,ELECTRICAL EQUIPMENT x,Surgery,NHS LOGISTICS,WSWI1822850,6.03,
Department of Health,Salisbury NHS Foundation Trust,15-Oct-10,ELECTRICAL EQUIPMENT x,Surgery,NHS LOGISTICS,WSWI1822850,16.38,
Department of Health,Salisbury NHS Foundation Trust,15-Oct-10,PATIENTS BEDWEAR UNISEX,Critical care,NHS LOGISTICS,WSWI1822850,157.84,
Department of Health,Salisbury NHS Foundation Trust,15-Oct-10,PATIENTS BEDWEAR UNISEX,Critical care,NHS LOGISTICS,WSWI1822850,315.68,
Department of Health,Salisbury NHS Foundation Trust,15-Oct-10,MEDSURGCONS - OTHER,Surgery,NHS LOGISTICS,WSWI1822850,195.78,
Department of Health,Salisbury NHS Foundation Trust,15-Oct-10,OTHER MEDICAL SUPPLIES,Surgery,NHS LOGISTICS,WSWI1822850,37.15,
Department of Health,Salisbury NHS Foundation Trust,15-Oct-10,DRESSINGS - PRE STERILE,Surgery,NHS LOGISTICS,WSWI1822850,18.77,
Department of Health,Salisbury NHS Foundation Trust,15-Oct-10,DISPOSABLE THEATRE DRAPES WIPES,Surgery,NHS LOGISTICS,WSWI1822850,10.67,
Department of Health,Salisbury NHS Foundation Trust,15-Oct-10,DISPOSABLE THEATRE DRAPES WIPES,Surgery,NHS LOGISTICS,WSWI1822850,13.89,
Department of Health,Salisbury NHS Foundation Trust,15-Oct-10,DRESSINGS - PRE STERILE,Critical care,NHS LOGISTICS,WSWI1822850,92.51,
Department of Health,Salisbury NHS Foundation Trust,15-Oct-10,PAPER ITEMS GENERAL STATIONERY SUNDRIES,Surgery,NHS LOGISTICS,WSWI1822850,19.49,
Department of Health,Salisbury NHS Foundation Trust,15-Oct-10,STATIONERY SUNDRIES,Surgery,NHS LOGISTICS,WSWI1822850,5.78,
Department of Health,Salisbury NHS Foundation Trust,15-Oct-10,SURGICAL INSTRUMENTS: GENERAL,Surgery,NHS LOGISTICS,WSWI1822850,45.41,
Department of Health,Salisbury NHS Foundation Trust,15-Oct-10,STATIONERY SUNDRIES,Clinical Support and Family Services,NHS LOGISTICS,WSWI1822850,1.66,
Department of Health,Salisbury NHS Foundation Trust,15-Oct-10,STATIONERY SUNDRIES,Clinical Support and Family Services,NHS LOGISTICS,WSWI1822850,1.41,
Department of Health,Salisbury NHS Foundation Trust,15-Oct-10,STATIONERY SUNDRIES,Clinical Support and Family Services,NHS LOGISTICS,WSWI1822850,0.71,
Department of Health,Salisbury NHS Foundation Trust,15-Oct-10,STATIONERY SUNDRIES,Clinical Support and Family Services,NHS LOGISTICS,WSWI1822850,4.23,
Department of Health,Salisbury NHS Foundation Trust,15-Oct-10,PAPER ITEMS GENERAL STATIONERY SUNDRIES,Clinical Support and Family Services,NHS LOGISTICS,WSWI1822850,4.35,
Department of Health,Salisbury NHS Foundation Trust,15-Oct-10,PAPER ITEMS GENERAL STATIONERY SUNDRIES,Clinical Support and Family Services,NHS LOGISTICS,WSWI1822850,3.42,
Department of Health,Salisbury NHS Foundation Trust,15-Oct-10,STATIONERY SUNDRIES,Clinical Support and Family Services,NHS LOGISTICS,WSWI1822850,0.51,
Department of Health,Salisbury NHS Foundation Trust,15-Oct-10,STATIONERY SUNDRIES,Clinical Support and Family Services,NHS LOGISTICS,WSWI1822850,1.41,
Department of Health,Salisbury NHS Foundation Trust,15-Oct-10,STATIONERY SUNDRIES,Clinical Support and Family Services,NHS LOGISTICS,WSWI1822850,1.7,
Department of Health,Salisbury NHS Foundation Trust,15-Oct-10,PAPER ITEMS GENERAL STATIONERY SUNDRIES,Surgery,NHS LOGISTICS,WSWI1822850,16.94,
Department of Health,Salisbury NHS Foundation Trust,15-Oct-10,PAPER ITEMS GENERAL STATIONERY SUNDRIES,Surgery,NHS LOGISTICS,WSWI1822850,27.54,
Department of Health,Salisbury NHS Foundation Trust,15-Oct-10,PAPER ITEMS GENERAL STATIONERY SUNDRIES,Surgery,NHS LOGISTICS,WSWI1822850,38.98,
Department of Health,Salisbury NHS Foundation Trust,15-Oct-10,PAPER ITEMS GENERAL STATIONERY SUNDRIES,Surgery,NHS LOGISTICS,WSWI1822850,4.35,
Department of Health,Salisbury NHS Foundation Trust,15-Oct-10,PAPER ITEMS GENERAL STATIONERY SUNDRIES,Surgery,NHS LOGISTICS,WSWI1822850,3.61,
Department of Health,Salisbury NHS Foundation Trust,15-Oct-10,SEATING GENERAL,Clinical Support and Family Services,NHS LOGISTICS,WSWI1822850,4.99,
Department of Health,Salisbury NHS Foundation Trust,15-Oct-10,MOBILE ITEMS,Clinical Support and Family Services,NHS LOGISTICS,WSWI1822850,3.79,
Department of Health,Salisbury NHS Foundation Trust,15-Oct-10,STATIONERY SUNDRIES,Clinical Support and Family Services,NHS LOGISTICS,WSWI1822850,2.22,
Department of Health,Salisbury NHS Foundation Trust,15-Oct-10,PAPER ITEMS GENERAL STATIONERY SUNDRIES,Clinical Support and Family Services,NHS LOGISTICS,WSWI1822850,47.87,
Department of Health,Salisbury NHS Foundation Trust,15-Oct-10,PAPER ITEMS GENERAL STATIONERY SUNDRIES,Clinical Support and Family Services,NHS LOGISTICS,WSWI1822850,16.63,
Department of Health,Salisbury NHS Foundation Trust,15-Oct-10,STATIONERY SUNDRIES,Clinical Support and Family Services,NHS LOGISTICS,WSWI1822850,0.44,
Department of Health,Salisbury NHS Foundation Trust,15-Oct-10,COOKING & KITCHEN UTENSILS,Clinical Support and Family Services,NHS LOGISTICS,WSWI1822850,2.59,
Department of Health,Salisbury NHS Foundation Trust,15-Oct-10,TISSUES HAND TOWELS & TOILET PAPER,Clinical Support and Family Services,NHS LOGISTICS,WSWI1822850,15.22,
Department of Health,Salisbury NHS Foundation Trust,15-Oct-10,NON DISPOSABLE BED LINEN,Clinical Support and Family Services,NHS LOGISTICS,WSWI1822850,39.23,
Department of Health,Salisbury NHS Foundation Trust,15-Oct-10,DRESSINGS - PRE STERILE,Clinical Support and Family Services,NHS LOGISTICS,WSWI1822850,7.11,
Department of Health,Salisbury NHS Foundation Trust,15-Oct-10,STATIONERY SUNDRIES,Surgery,NHS LOGISTICS,WSWI1822850,12.05,
Department of Health,Salisbury NHS Foundation Trust,15-Oct-10,STATIONERY SUNDRIES,Surgery,NHS LOGISTICS,WSWI1822850,11.37,
Department of Health,Salisbury NHS Foundation Trust,15-Oct-10,STATIONERY SUNDRIES,Surgery,NHS LOGISTICS,WSWI1822850,18.59,
Department of Health,Salisbury NHS Foundation Trust,15-Oct-10,PAPER ITEMS GENERAL STATIONERY SUNDRIES,Critical care,NHS LOGISTICS,WSWI1822850,5.73,
Department of Health,Salisbury NHS Foundation Trust,15-Oct-10,MEDSURGCONS - OTHER,Clinical Support and Family Services,NHS LOGISTICS,WSWI1822850,155.39,
Department of Health,Salisbury NHS Foundation Trust,15-Oct-10,MEDSURGCONS - OTHER,Clinical Support and Family Services,NHS LOGISTICS,WSWI1822850,7.66,
Department of Health,Salisbury NHS Foundation Trust,15-Oct-10,MEDSURGCONS - OTHER,Clinical Support and Family Services,NHS LOGISTICS,WSWI1822850,6.17,
Department of Health,Salisbury NHS Foundation Trust,15-Oct-10,COOKING & KITCHEN UTENSILS,Clinical Support and Family Services,NHS LOGISTICS,WSWI1822850,3.88,
Department of Health,Salisbury NHS Foundation Trust,15-Oct-10,OTHER MEDICAL SUPPLIES,Clinical Support and Family Services,NHS LOGISTICS,WSWI1822850,7.32,
Department of Health,Salisbury NHS Foundation Trust,15-Oct-10,NON DISPOSABLE BED LINEN,Clinical Support and Family Services,NHS LOGISTICS,WSWI1822850,57.19,
Department of Health,Salisbury NHS Foundation Trust,15-Oct-10,DEBTORS HOLDING CODE,Clinical Support and Family Services,NHS LOGISTICS,WSWI1822850,151.23,
Department of Health,Salisbury NHS Foundation Trust,15-Oct-10,MEDSURGCONS - OTHER,Clinical Support and Family Services,NHS LOGISTICS,WSWI1822850,11.21,
Department of Health,Salisbury NHS Foundation Trust,15-Oct-10,MEDSURGCONS-SUTURES,Surgery,NHS LOGISTICS,WSWI1822850,15.98,
Department of Health,Salisbury NHS Foundation Trust,15-Oct-10,STATIONERY SUNDRIES,Critical care,NHS LOGISTICS,WSWI1822850,0.71,
Department of Health,Salisbury NHS Foundation Trust,15-Oct-10,STATIONERY SUNDRIES,Critical care,NHS LOGISTICS,WSWI1822850,0.71,
Department of Health,Salisbury NHS Foundation Trust,15-Oct-10,STATIONERY SUNDRIES,Critical care,NHS LOGISTICS,WSWI1822850,0.71,
Department of Health,Salisbury NHS Foundation Trust,15-Oct-10,STATIONERY SUNDRIES,Critical care,NHS LOGISTICS,WSWI1822850,0.71,
Department of Health,Salisbury NHS Foundation Trust,15-Oct-10,DRESSINGS - PRE STERILE,Critical care,NHS LOGISTICS,WSWI1822850,42.62,
Department of Health,Salisbury NHS Foundation Trust,15-Oct-10,DRESSINGS - PRE STERILE,Critical care,NHS LOGISTICS,WSWI1822850,72.03,
Department of Health,Salisbury NHS Foundation Trust,15-Oct-10,DRESSINGS - PRE STERILE,Critical care,NHS LOGISTICS,WSWI1822850,92.66,
Department of Health,Salisbury NHS Foundation Trust,15-Oct-10,DRESSINGS - PRE STERILE,Critical care,NHS LOGISTICS,WSWI1822850,152.85,
Department of Health,Salisbury NHS Foundation Trust,15-Oct-10,DRESSINGS - PRE STERILE,Critical care,NHS LOGISTICS,WSWI1822850,24.85,
Department of Health,Salisbury NHS Foundation Trust,15-Oct-10,MEDSURGCONS - OTHER,Critical care,NHS LOGISTICS,WSWI1822850,11.03,
Department of Health,Salisbury NHS Foundation Trust,15-Oct-10,PAPER ITEMS GENERAL STATIONERY SUNDRIES,Critical care,NHS LOGISTICS,WSWI1822850,1.4,
Department of Health,Salisbury NHS Foundation Trust,15-Oct-10,DRESSINGS - PRE STERILE,Critical care,NHS LOGISTICS,WSWI1822850,60.71,
Department of Health,Salisbury NHS Foundation Trust,15-Oct-10,DRESSINGS - PRE STERILE,Critical care,NHS LOGISTICS,WSWI1822850,17.29,
Department of Health,Salisbury NHS Foundation Trust,15-Oct-10,DRESSINGS - PRE STERILE,Critical care,NHS LOGISTICS,WSWI1822850,16.12,
Department of Health,Salisbury NHS Foundation Trust,15-Oct-10,DRESSINGS - PRE STERILE,Critical care,NHS LOGISTICS,WSWI1822850,19.29,
Department of Health,Salisbury NHS Foundation Trust,15-Oct-10,DRESSINGS - PRE STERILE,Critical care,NHS LOGISTICS,WSWI1822850,30.52,
Department of Health,Salisbury NHS Foundation Trust,15-Oct-10,TISSUES HAND TOWELS & TOILET PAPER,Critical care,NHS LOGISTICS,WSWI1822850,15.22,
Department of Health,Salisbury NHS Foundation Trust,15-Oct-10,STATIONERY SUNDRIES,Critical care,NHS LOGISTICS,WSWI1822850,33.56,
Department of Health,Salisbury NHS Foundation Trust,15-Oct-10,DRESSINGS - PRE STERILE,Critical care,NHS LOGISTICS,WSWI1822850,5.92,
Department of Health,Salisbury NHS Foundation Trust,15-Oct-10,MEDSURGCONS - OTHER,Critical care,NHS LOGISTICS,WSWI1822850,22.42,
Department of Health,Salisbury NHS Foundation Trust,15-Oct-10,STATIONERY SUNDRIES,Critical care,NHS LOGISTICS,WSWI1822850,0.71,
Department of Health,Salisbury NHS Foundation Trust,15-Oct-10,STATIONERY SUNDRIES,Critical care,NHS LOGISTICS,WSWI1822850,0.71,
Department of Health,Salisbury NHS Foundation Trust,15-Oct-10,STATIONERY SUNDRIES,Critical care,NHS LOGISTICS,WSWI1822850,0.71,
Department of Health,Salisbury NHS Foundation Trust,15-Oct-10,STATIONERY SUNDRIES,Critical care,NHS LOGISTICS,WSWI1822850,0.71,
Department of Health,Salisbury NHS Foundation Trust,15-Oct-10,DRESSINGS - PRE STERILE,Critical care,NHS LOGISTICS,WSWI1822850,42.62,
Department of Health,Salisbury NHS Foundation Trust,15-Oct-10,DRESSINGS - PRE STERILE,Critical care,NHS LOGISTICS,WSWI1822850,72.03,
Department of Health,Salisbury NHS Foundation Trust,15-Oct-10,DRESSINGS - PRE STERILE,Critical care,NHS LOGISTICS,WSWI1822850,92.66,
Department of Health,Salisbury NHS Foundation Trust,15-Oct-10,DRESSINGS - PRE STERILE,Critical care,NHS LOGISTICS,WSWI1822850,152.85,
Department of Health,Salisbury NHS Foundation Trust,15-Oct-10,DRESSINGS - PRE STERILE,Critical care,NHS LOGISTICS,WSWI1822850,24.85,
Department of Health,Salisbury NHS Foundation Trust,15-Oct-10,MEDSURGCONS - OTHER,Critical care,NHS LOGISTICS,WSWI1822850,11.03,
Department of Health,Salisbury NHS Foundation Trust,15-Oct-10,PAPER ITEMS GENERAL STATIONERY SUNDRIES,Critical care,NHS LOGISTICS,WSWI1822850,1.4,
Department of Health,Salisbury NHS Foundation Trust,15-Oct-10,DRESSINGS - PRE STERILE,Critical care,NHS LOGISTICS,WSWI1822850,60.71,
Department of Health,Salisbury NHS Foundation Trust,15-Oct-10,DRESSINGS - PRE STERILE,Critical care,NHS LOGISTICS,WSWI1822850,11.52,
Department of Health,Salisbury NHS Foundation Trust,15-Oct-10,DRESSINGS - PRE STERILE,Critical care,NHS LOGISTICS,WSWI1822850,16.12,
Department of Health,Salisbury NHS Foundation Trust,15-Oct-10,DRESSINGS - PRE STERILE,Critical care,NHS LOGISTICS,WSWI1822850,19.29,
Department of Health,Salisbury NHS Foundation Trust,15-Oct-10,DRESSINGS - PRE STERILE,Critical care,NHS LOGISTICS,WSWI1822850,30.52,
Department of Health,Salisbury NHS Foundation Trust,15-Oct-10,TISSUES HAND TOWELS & TOILET PAPER,Critical care,NHS LOGISTICS,WSWI1822850,15.22,
Department of Health,Salisbury NHS Foundation Trust,15-Oct-10,STATIONERY SUNDRIES,Critical care,NHS LOGISTICS,WSWI1822850,33.56,
Department of Health,Salisbury NHS Foundation Trust,15-Oct-10,DRESSINGS - PRE STERILE,Critical care,NHS LOGISTICS,WSWI1822850,5.92,
Department of Health,Salisbury NHS Foundation Trust,15-Oct-10,MEDSURGCONS - OTHER,Critical care,NHS LOGISTICS,WSWI1822850,22.42,
Department of Health,Salisbury NHS Foundation Trust,15-Oct-10,STATIONERY SUNDRIES,Medicine,NHS LOGISTICS,WSWI1822850,1.31,
Department of Health,Salisbury NHS Foundation Trust,15-Oct-10,PAPER ITEMS GENERAL STATIONERY SUNDRIES,Medicine,NHS LOGISTICS,WSWI1822850,19.49,
Department of Health,Salisbury NHS Foundation Trust,15-Oct-10,PAPER ITEMS GENERAL STATIONERY SUNDRIES,Medicine,NHS LOGISTICS,WSWI1822850,8.31,
Department of Health,Salisbury NHS Foundation Trust,15-Oct-10,STATIONERY SUNDRIES,Medicine,NHS LOGISTICS,WSWI1822850,5.45,
Department of Health,Salisbury NHS Foundation Trust,15-Oct-10,STATIONERY SUNDRIES,Medicine,NHS LOGISTICS,WSWI1822850,5.88,
Department of Health,Salisbury NHS Foundation Trust,15-Oct-10,HARD/SOFTWARE-OFF THE SHELF APPLICATIONS,Medicine,NHS LOGISTICS,WSWI1822850,62.06,
Department of Health,Salisbury NHS Foundation Trust,15-Oct-10,PAPER ITEMS GENERAL STATIONERY SUNDRIES,Medicine,NHS LOGISTICS,WSWI1822850,11.06,
Department of Health,Salisbury NHS Foundation Trust,15-Oct-10,STATIONERY SUNDRIES,Medicine,NHS LOGISTICS,WSWI1822850,1.36,
Department of Health,Salisbury NHS Foundation Trust,15-Oct-10,PAPER ITEMS GENERAL STATIONERY SUNDRIES,Medicine,NHS LOGISTICS,WSWI1822850,2.09,
Department of Health,Salisbury NHS Foundation Trust,15-Oct-10,PAPER ITEMS GENERAL STATIONERY SUNDRIES,Medicine,NHS LOGISTICS,WSWI1822850,9.74,
Department of Health,Salisbury NHS Foundation Trust,15-Oct-10,STATIONERY SUNDRIES,Medicine,NHS LOGISTICS,WSWI1822850,4.7,
Department of Health,Salisbury NHS Foundation Trust,15-Oct-10,PAPER ITEMS GENERAL STATIONERY SUNDRIES,Medicine,NHS LOGISTICS,WSWI1822850,12.38,
Department of Health,Salisbury NHS Foundation Trust,15-Oct-10,PATIENTS INCONTINENCE,Surgery,NHS LOGISTICS,WSWI1822850,13.17,
Department of Health,Salisbury NHS Foundation Trust,15-Oct-10,STATIONERY SUNDRIES,Critical care,NHS LOGISTICS,WSWI1822850,6.89,
Department of Health,Salisbury NHS Foundation Trust,15-Oct-10,PAPER ITEMS GENERAL STATIONERY SUNDRIES,Critical care,NHS LOGISTICS,WSWI1822850,19.49,
Department of Health,Salisbury NHS Foundation Trust,15-Oct-10,PATIENTS BEDWEAR UNISEX,Critical care,NHS LOGISTICS,WSWI1822850,52.61,
Department of Health,Salisbury NHS Foundation Trust,15-Oct-10,PATIENTS BEDWEAR UNISEX,Critical care,NHS LOGISTICS,WSWI1822850,52.61,
Department of Health,Salisbury NHS Foundation Trust,15-Oct-10,HARD/SOFTWARE-OFF THE SHELF APPLICATIONS,Critical care,NHS LOGISTICS,WSWI1822850,90.54,
Department of Health,Salisbury NHS Foundation Trust,15-Oct-10,TELECOMS - FACSIMILE MACHINES,Critical care,NHS LOGISTICS,WSWI1822850,87.85,
Department of Health,Salisbury NHS Foundation Trust,15-Oct-10,HARD/SOFTWARE-OFF THE SHELF APPLICATIONS,Surgery,NHS LOGISTICS,WSWI1822850,107.54,
Department of Health,Salisbury NHS Foundation Trust,15-Oct-10,STATIONERY SUNDRIES,Medicine,NHS LOGISTICS,WSWI1822850,14.28,
Department of Health,Salisbury NHS Foundation Trust,15-Oct-10,STATIONERY SUNDRIES,Medicine,NHS LOGISTICS,WSWI1822850,21.04,
Department of Health,Salisbury NHS Foundation Trust,15-Oct-10,PAPER ITEMS GENERAL STATIONERY SUNDRIES,Clinical Support and Family Services,NHS LOGISTICS,WSWI1822850,3.8,
Department of Health,Salisbury NHS Foundation Trust,15-Oct-10,PAPER ITEMS GENERAL STATIONERY SUNDRIES,Clinical Support and Family Services,NHS LOGISTICS,WSWI1822850,16.94,
Department of Health,Salisbury NHS Foundation Trust,15-Oct-10,STATIONERY SUNDRIES,Clinical Support and Family Services,NHS LOGISTICS,WSWI1822850,3.1,
Department of Health,Salisbury NHS Foundation Trust,15-Oct-10,STATIONERY SUNDRIES,Clinical Support and Family Services,NHS LOGISTICS,WSWI1822850,2.66,
Department of Health,Salisbury NHS Foundation Trust,15-Oct-10,STATIONERY SUNDRIES,Clinical Support and Family Services,NHS LOGISTICS,WSWI1822850,2.66,
Department of Health,Salisbury NHS Foundation Trust,15-Oct-10,STATIONERY SUNDRIES,Clinical Support and Family Services,NHS LOGISTICS,WSWI1822850,2.55,
Department of Health,Salisbury NHS Foundation Trust,15-Oct-10,STATIONERY SUNDRIES,Clinical Support and Family Services,NHS LOGISTICS,WSWI1822850,2.43,
Department of Health,Salisbury NHS Foundation Trust,15-Oct-10,STATIONERY SUNDRIES,Clinical Support and Family Services,NHS LOGISTICS,WSWI1822850,12.14,
Department of Health,Salisbury NHS Foundation Trust,15-Oct-10,STATIONERY SUNDRIES,Clinical Support and Family Services,NHS LOGISTICS,WSWI1822850,1.33,
Department of Health,Salisbury NHS Foundation Trust,15-Oct-10,STATIONERY SUNDRIES,Clinical Support and Family Services,NHS LOGISTICS,WSWI1822850,21.15,
Department of Health,Salisbury NHS Foundation Trust,15-Oct-10,PAPER ITEMS GENERAL STATIONERY SUNDRIES,Clinical Support and Family Services,NHS LOGISTICS,WSWI1822850,38.98,
Department of Health,Salisbury NHS Foundation Trust,15-Oct-10,PAPER ITEMS GENERAL STATIONERY SUNDRIES,Clinical Support and Family Services,NHS LOGISTICS,WSWI1822850,16.63,
Department of Health,Salisbury NHS Foundation Trust,15-Oct-10,STATIONERY SUNDRIES,Clinical Support and Family Services,NHS LOGISTICS,WSWI1822850,2.64,
Department of Health,Salisbury NHS Foundation Trust,15-Oct-10,LAB EQUIP-LABORATORY APPARATUS,Clinical Support and Family Services,NHS LOGISTICS,WSWI1822850,454.55,
Department of Health,Salisbury NHS Foundation Trust,15-Oct-10,LAB EQUIP-LABORATORY APPARATUS,Clinical Support and Family Services,NHS LOGISTICS,WSWI1822850,102.04,
Department of Health,Salisbury NHS Foundation Trust,15-Oct-10,LAB EQUIP-LABORATORY APPARATUS,Clinical Support and Family Services,NHS LOGISTICS,WSWI1822850,345.7,
Department of Health,Salisbury NHS Foundation Trust,15-Oct-10,LAB EQUIP-LABORATORY APPARATUS,Clinical Support and Family Services,NHS LOGISTICS,WSWI1822850,58.21,
Department of Health,Salisbury NHS Foundation Trust,15-Oct-10,OTHER MEDICAL SUPPLIES,Clinical Support and Family Services,NHS LOGISTICS,WSWI1822850,270.64,
Department of Health,Salisbury NHS Foundation Trust,15-Oct-10,LAB EQUIP-LABORATORY APPARATUS,Clinical Support and Family Services,NHS LOGISTICS,WSWI1822850,30.98,
Department of Health,Salisbury NHS Foundation Trust,15-Oct-10,LAB EQUIP-LABORATORY APPARATUS,Clinical Support and Family Services,NHS LOGISTICS,WSWI1822850,60.26,
Department of Health,Salisbury NHS Foundation Trust,15-Oct-10,PAPER ITEMS GENERAL STATIONERY SUNDRIES,Clinical Effctiveness Directorate,NHS LOGISTICS,WSWI1822850,38.98,
Department of Health,Salisbury NHS Foundation Trust,15-Oct-10,STATIONERY SUNDRIES,Clinical Support and Family Services,NHS LOGISTICS,WSWI1822850,16.75,
Department of Health,Salisbury NHS Foundation Trust,15-Oct-10,OFFICE BUSINESS FURNITURE,Surgery,NHS LOGISTICS,WSWI1822850,14.43,
Department of Health,Salisbury NHS Foundation Trust,15-Oct-10,HARD/SOFTWARE-COMPUTER ACCESSORIES  TEST EQUIPMENT,Surgery,NHS LOGISTICS,WSWI1822850,10.01,
Department of Health,Salisbury NHS Foundation Trust,15-Oct-10,STATIONERY SUNDRIES,Directorate of Finance and Procurement,NHS LOGISTICS,WSWI1822850,1.97,
Department of Health,Salisbury NHS Foundation Trust,15-Oct-10,CHILDRENS HEARING AIDS,Surgery,NHS LOGISTICS,WSWI1822850,209.09,
Department of Health,Salisbury NHS Foundation Trust,15-Oct-10,CHILDRENS HEARING AIDS,Surgery,NHS LOGISTICS,WSWI1822850,156.29,
Department of Health,Salisbury NHS Foundation Trust,15-Oct-10,CHILDRENS HEARING AIDS,Surgery,NHS LOGISTICS,WSWI1822850,137.28,
Department of Health,Salisbury NHS Foundation Trust,15-Oct-10,STATIONERY SUNDRIES,Directorate of Finance and Procurement,NHS LOGISTICS,WSWI1822850,2.5,
Department of Health,Salisbury NHS Foundation Trust,15-Oct-10,STATIONERY SUNDRIES,Clinical Support and Family Services,NHS LOGISTICS,WSWI1822850,7.66,
Department of Health,Salisbury NHS Foundation Trust,15-Oct-10,DRESSINGS - PRE STERILE,Surgery,NHS LOGISTICS,WSWI1822850,14.38,
Department of Health,Salisbury NHS Foundation Trust,15-Oct-10,DRESSINGS - PRE STERILE,Medicine,NHS LOGISTICS,WSWI1822850,1.82,
Department of Health,Salisbury NHS Foundation Trust,15-Oct-10,DRESSINGS - PRE STERILE,Medicine,NHS LOGISTICS,WSWI1822850,0.39,
Department of Health,Salisbury NHS Foundation Trust,15-Oct-10,OTHER MEDICAL SUPPLIES,Medicine,NHS LOGISTICS,WSWI1822850,1.45,
Department of Health,Salisbury NHS Foundation Trust,15-Oct-10,OTHER MEDICAL SUPPLIES,Medicine,NHS LOGISTICS,WSWI1822850,1.46,
Department of Health,Salisbury NHS Foundation Trust,15-Oct-10,DISPOSABLE THEATRE DRAPES WIPES,Medicine,NHS LOGISTICS,WSWI1822850,1.69,
Department of Health,Salisbury NHS Foundation Trust,15-Oct-10,NON DISPOSABLE BED LINEN,Medicine,NHS LOGISTICS,WSWI1822850,4.92,
Department of Health,Salisbury NHS Foundation Trust,15-Oct-10,OTHER MEDICAL SUPPLIES,Medicine,NHS LOGISTICS,WSWI1822850,9.11,
Department of Health,Salisbury NHS Foundation Trust,15-Oct-10,MEDSURGCONS - OTHER,Medicine,NHS LOGISTICS,WSWI1822850,8.44,
Department of Health,Salisbury NHS Foundation Trust,15-Oct-10,OTHER MEDICAL SUPPLIES,Medicine,NHS LOGISTICS,WSWI1822850,3.61,
Department of Health,Salisbury NHS Foundation Trust,15-Oct-10,OTHER MEDICAL SUPPLIES,Medicine,NHS LOGISTICS,WSWI1822850,2.54,
Department of Health,Salisbury NHS Foundation Trust,15-Oct-10,DRESSINGS  -  PROCEDURE PACKS,Medicine,NHS LOGISTICS,WSWI1822850,2.55,
Department of Health,Salisbury NHS Foundation Trust,15-Oct-10,MEDSURGCONS - OTHER,Medicine,NHS LOGISTICS,WSWI1822850,5.09,
Department of Health,Salisbury NHS Foundation Trust,15-Oct-10,DRESSINGS - PRE STERILE,Medicine,NHS LOGISTICS,WSWI1822850,2.08,
Department of Health,Salisbury NHS Foundation Trust,15-Oct-10,DRESSINGS - PRE STERILE,Medicine,NHS LOGISTICS,WSWI1822850,2.21,
Department of Health,Salisbury NHS Foundation Trust,15-Oct-10,OTHER MEDICAL SUPPLIES,Medicine,NHS LOGISTICS,WSWI1822850,30.04,
Department of Health,Salisbury NHS Foundation Trust,15-Oct-10,OTHER MEDICAL SUPPLIES,Medicine,NHS LOGISTICS,WSWI1822850,108.94,
Department of Health,Salisbury NHS Foundation Trust,15-Oct-10,DRESSINGS  -  PROCEDURE PACKS,Medicine,NHS LOGISTICS,WSWI1822850,2.21,
Department of Health,Salisbury NHS Foundation Trust,15-Oct-10,MEDSURGCONS - OTHER,Medicine,NHS LOGISTICS,WSWI1822850,54.47,
Department of Health,Salisbury NHS Foundation Trust,15-Oct-10,DRESSINGS - PRE STERILE,Medicine,NHS LOGISTICS,WSWI1822850,32.85,
Department of Health,Salisbury NHS Foundation Trust,15-Oct-10,MEDSURGCONS - OTHER,Medicine,NHS LOGISTICS,WSWI1822850,79.15,
Department of Health,Salisbury NHS Foundation Trust,15-Oct-10,OTHER MEDICAL SUPPLIES,Medicine,NHS LOGISTICS,WSWI1822850,5.19,
Department of Health,Salisbury NHS Foundation Trust,15-Oct-10,OTHER MEDICAL SUPPLIES,Medicine,NHS LOGISTICS,WSWI1822850,46.55,
Department of Health,Salisbury NHS Foundation Trust,15-Oct-10,DRESSINGS  -  PROCEDURE PACKS,Medicine,NHS LOGISTICS,WSWI1822850,17.87,
Department of Health,Salisbury NHS Foundation Trust,15-Oct-10,DRESSINGS  -  PROCEDURE PACKS,Medicine,NHS LOGISTICS,WSWI1822850,2.14,
Department of Health,Salisbury NHS Foundation Trust,15-Oct-10,TISSUES HAND TOWELS & TOILET PAPER,Medicine,NHS LOGISTICS,WSWI1822850,13.57,
Department of Health,Salisbury NHS Foundation Trust,15-Oct-10,TISSUES HAND TOWELS & TOILET PAPER,Medicine,NHS LOGISTICS,WSWI1822850,12.38,
Department of Health,Salisbury NHS Foundation Trust,15-Oct-10,CLEANING MATERIALS PRODUCTS SUNDRIES,Medicine,NHS LOGISTICS,WSWI1822850,2.52,
Department of Health,Salisbury NHS Foundation Trust,15-Oct-10,CLEANING MATERIALS PRODUCTS SUNDRIES,Medicine,NHS LOGISTICS,WSWI1822850,7.83,
Department of Health,Salisbury NHS Foundation Trust,15-Oct-10,TISSUES HAND TOWELS & TOILET PAPER,Medicine,NHS LOGISTICS,WSWI1822850,3.91,
Department of Health,Salisbury NHS Foundation Trust,15-Oct-10,DISPOSABLE THEATRE DRAPES WIPES,Medicine,NHS LOGISTICS,WSWI1822850,11.27,
Department of Health,Salisbury NHS Foundation Trust,15-Oct-10,TISSUES HAND TOWELS & TOILET PAPER,Medicine,NHS LOGISTICS,WSWI1822850,2,
Department of Health,Salisbury NHS Foundation Trust,15-Oct-10,TISSUES HAND TOWELS & TOILET PAPER,Medicine,NHS LOGISTICS,WSWI1822850,1.4,
Department of Health,Salisbury NHS Foundation Trust,15-Oct-10,PATIENT APPLIANCES,Medicine,NHS LOGISTICS,WSWI1822850,2.23,
Department of Health,Salisbury NHS Foundation Trust,15-Oct-10,DRESSINGS  -  PROCEDURE PACKS,Medicine,NHS LOGISTICS,WSWI1822850,0.87,
Department of Health,Salisbury NHS Foundation Trust,15-Oct-10,DRESSINGS - PRE STERILE,Medicine,NHS LOGISTICS,WSWI1822850,8.08,
Department of Health,Salisbury NHS Foundation Trust,15-Oct-10,DRESSINGS - PRE STERILE,Medicine,NHS LOGISTICS,WSWI1822850,1.51,
Department of Health,Salisbury NHS Foundation Trust,15-Oct-10,DRUGS,Medicine,NHS LOGISTICS,WSWI1822850,0.84,
Department of Health,Salisbury NHS Foundation Trust,15-Oct-10,DRESSINGS  -  PROCEDURE PACKS,Medicine,NHS LOGISTICS,WSWI1822850,1.62,
Department of Health,Salisbury NHS Foundation Trust,15-Oct-10,DRESSINGS - PRE STERILE,Medicine,NHS LOGISTICS,WSWI1822850,0.98,
Department of Health,Salisbury NHS Foundation Trust,15-Oct-10,SURGICAL INSTRUMENTS: GENERAL,Medicine,NHS LOGISTICS,WSWI1822850,19.9,
Department of Health,Salisbury NHS Foundation Trust,15-Oct-10,MEDSURGCONS - OTHER,Medicine,NHS LOGISTICS,WSWI1822850,1.89,
Department of Health,Salisbury NHS Foundation Trust,15-Oct-10,TISSUES HAND TOWELS & TOILET PAPER,Medicine,NHS LOGISTICS,WSWI1822850,12.38,
Department of Health,Salisbury NHS Foundation Trust,15-Oct-10,PATIENT APPLIANCES,Medicine,NHS LOGISTICS,WSWI1822850,9.01,
Department of Health,Salisbury NHS Foundation Trust,15-Oct-10,PATIENT APPLIANCES,Medicine,NHS LOGISTICS,WSWI1822850,5.71,
Department of Health,Salisbury NHS Foundation Trust,15-Oct-10,DRESSINGS  -  PROCEDURE PACKS,Medicine,NHS LOGISTICS,WSWI1822850,0.89,
Department of Health,Salisbury NHS Foundation Trust,15-Oct-10,DRESSINGS  -  PROCEDURE PACKS,Medicine,NHS LOGISTICS,WSWI1822850,0.64,
Department of Health,Salisbury NHS Foundation Trust,15-Oct-10,DISPOSABLE THEATRE DRAPES WIPES,Medicine,NHS LOGISTICS,WSWI1822850,1.89,
Department of Health,Salisbury NHS Foundation Trust,15-Oct-10,PATIENTS INCONTINENCE,Medicine,NHS LOGISTICS,WSWI1822850,4.34,
Department of Health,Salisbury NHS Foundation Trust,15-Oct-10,DISPOSABLE THEATRE DRAPES WIPES,Medicine,NHS LOGISTICS,WSWI1822850,3.37,
Department of Health,Salisbury NHS Foundation Trust,15-Oct-10,DRUGS,Medicine,NHS LOGISTICS,WSWI1822850,2.8,
Department of Health,Salisbury NHS Foundation Trust,15-Oct-10,MEDSURGCONS - OTHER,Medicine,NHS LOGISTICS,WSWI1822850,7.28,
Department of Health,Salisbury NHS Foundation Trust,15-Oct-10,M & S EQUIPELECTEQUIPINST - OTHER,Medicine,NHS LOGISTICS,WSWI1822850,0.77,
Department of Health,Salisbury NHS Foundation Trust,15-Oct-10,SURGICAL INSTRUMENTS: GENERAL,Medicine,NHS LOGISTICS,WSWI1822850,1.76,
Department of Health,Salisbury NHS Foundation Trust,15-Oct-10,DRESSINGS - PRE STERILE,Medicine,NHS LOGISTICS,WSWI1822850,2.21,
Department of Health,Salisbury NHS Foundation Trust,15-Oct-10,DRESSINGS  -  PROCEDURE PACKS,Medicine,NHS LOGISTICS,WSWI1822850,9.7,
Department of Health,Salisbury NHS Foundation Trust,15-Oct-10,OTHER MEDICAL SUPPLIES,Medicine,NHS LOGISTICS,WSWI1822850,1.46,
Department of Health,Salisbury NHS Foundation Trust,15-Oct-10,OTHER MEDICAL SUPPLIES,Medicine,NHS LOGISTICS,WSWI1822850,1.45,
Department of Health,Salisbury NHS Foundation Trust,15-Oct-10,MEDSURGCONS - OTHER,Medicine,NHS LOGISTICS,WSWI1822850,4.68,
Department of Health,Salisbury NHS Foundation Trust,15-Oct-10,OTHER MEDICAL SUPPLIES,Medicine,NHS LOGISTICS,WSWI1822850,30.04,
Department of Health,Salisbury NHS Foundation Trust,15-Oct-10,OTHER MEDICAL SUPPLIES,Medicine,NHS LOGISTICS,WSWI1822850,149.79,
Department of Health,Salisbury NHS Foundation Trust,15-Oct-10,MEDSURGCONS - OTHER,Medicine,NHS LOGISTICS,WSWI1822850,1.45,
Department of Health,Salisbury NHS Foundation Trust,15-Oct-10,MEDSURGCONS - OTHER,Medicine,NHS LOGISTICS,WSWI1822850,1.57,
Department of Health,Salisbury NHS Foundation Trust,15-Oct-10,ANAESTHETIC EQUIPMENT ACCESSORIES,Medicine,NHS LOGISTICS,WSWI1822850,1.45,
Department of Health,Salisbury NHS Foundation Trust,15-Oct-10,MEDSURGCONS - OTHER,Medicine,NHS LOGISTICS,WSWI1822850,7.47,
Department of Health,Salisbury NHS Foundation Trust,15-Oct-10,MEDSURGCONS - OTHER,Medicine,NHS LOGISTICS,WSWI1822850,7.47,
Department of Health,Salisbury NHS Foundation Trust,15-Oct-10,MEDSURGCONS - OTHER,Medicine,NHS LOGISTICS,WSWI1822850,5.11,
Department of Health,Salisbury NHS Foundation Trust,15-Oct-10,MEDSURGCONS - OTHER,Medicine,NHS LOGISTICS,WSWI1822850,4.07,
Department of Health,Salisbury NHS Foundation Trust,15-Oct-10,HEALTHCARE - WEAR,Medicine,NHS LOGISTICS,WSWI1822850,11.86,
Department of Health,Salisbury NHS Foundation Trust,15-Oct-10,DRUGS,Medicine,NHS LOGISTICS,WSWI1822850,2.55,
Department of Health,Salisbury NHS Foundation Trust,15-Oct-10,BAGS SACKS - OTHER,Surgery,NHS LOGISTICS,WSWI1822850,15.79,
Department of Health,Salisbury NHS Foundation Trust,15-Oct-10,BAGS SACKS - OTHER,Surgery,NHS LOGISTICS,WSWI1822850,16.89,
Department of Health,Salisbury NHS Foundation Trust,15-Oct-10,TISSUES HAND TOWELS & TOILET PAPER,Medicine,NHS LOGISTICS,WSWI1822850,49.53,
Department of Health,Salisbury NHS Foundation Trust,15-Oct-10,OTHER MEDICAL SUPPLIES,Medicine,NHS LOGISTICS,WSWI1822850,7.32,
Department of Health,Salisbury NHS Foundation Trust,15-Oct-10,PATIENT APPLIANCES,Medicine,NHS LOGISTICS,WSWI1822850,17.51,
Department of Health,Salisbury NHS Foundation Trust,15-Oct-10,PATIENTS INCONTINENCE,Medicine,NHS LOGISTICS,WSWI1822850,37.31,
Department of Health,Salisbury NHS Foundation Trust,15-Oct-10,M & S EQUIPELECTEQUIPINST - OTHER,Medicine,NHS LOGISTICS,WSWI1822850,3.46,
Department of Health,Salisbury NHS Foundation Trust,15-Oct-10,OTHER MEDICAL SUPPLIES,Medicine,NHS LOGISTICS,WSWI1822850,1.46,
Department of Health,Salisbury NHS Foundation Trust,15-Oct-10,DRUGS,Medicine,NHS LOGISTICS,WSWI1822850,5.6,
Department of Health,Salisbury NHS Foundation Trust,15-Oct-10,M & S EQUIPELECTEQUIPINST - OTHER,Medicine,NHS LOGISTICS,WSWI1822850,24.2,
Department of Health,Salisbury NHS Foundation Trust,15-Oct-10,M & S EQUIPELECTEQUIPINST - OTHER,Medicine,NHS LOGISTICS,WSWI1822850,17.6,
Department of Health,Salisbury NHS Foundation Trust,15-Oct-10,M & S EQUIPELECTEQUIPINST - OTHER,Medicine,NHS LOGISTICS,WSWI1822850,33.72,
Department of Health,Salisbury NHS Foundation Trust,15-Oct-10,MEDSURGCONS - OTHER,Medicine,NHS LOGISTICS,WSWI1822850,0.97,
Department of Health,Salisbury NHS Foundation Trust,15-Oct-10,MEDSURGCONS - OTHER,Medicine,NHS LOGISTICS,WSWI1822850,8.08,
Department of Health,Salisbury NHS Foundation Trust,15-Oct-10,MEDSURGCONS - OTHER,Medicine,NHS LOGISTICS,WSWI1822850,8.08,
Department of Health,Salisbury NHS Foundation Trust,15-Oct-10,PATIENT APPLIANCES,Medicine,NHS LOGISTICS,WSWI1822850,11.15,
Department of Health,Salisbury NHS Foundation Trust,15-Oct-10,PATIENT APPLIANCES,Medicine,NHS LOGISTICS,WSWI1822850,9.01,
Department of Health,Salisbury NHS Foundation Trust,15-Oct-10,MEDSURGCONS - OTHER,Medicine,NHS LOGISTICS,WSWI1822850,7.83,
Department of Health,Salisbury NHS Foundation Trust,15-Oct-10,PATIENT APPLIANCES,Medicine,NHS LOGISTICS,WSWI1822850,9.58,
Department of Health,Salisbury NHS Foundation Trust,15-Oct-10,DRESSINGS  -  PROCEDURE PACKS,Medicine,NHS LOGISTICS,WSWI1822850,0.26,
Department of Health,Salisbury NHS Foundation Trust,15-Oct-10,MEDSURGCONS - OTHER,Medicine,NHS LOGISTICS,WSWI1822850,2.83,
Department of Health,Salisbury NHS Foundation Trust,15-Oct-10,DRESSINGS  -  PROCEDURE PACKS,Medicine,NHS LOGISTICS,WSWI1822850,1.79,
Department of Health,Salisbury NHS Foundation Trust,15-Oct-10,SURGICAL INSTRUMENTS: GENERAL,Medicine,NHS LOGISTICS,WSWI1822850,5.29,
Department of Health,Salisbury NHS Foundation Trust,15-Oct-10,MEDSURGCONS - OTHER,Medicine,NHS LOGISTICS,WSWI1822850,7.28,
Department of Health,Salisbury NHS Foundation Trust,15-Oct-10,OTHER MEDICAL SUPPLIES,Medicine,NHS LOGISTICS,WSWI1822850,21.53,
Department of Health,Salisbury NHS Foundation Trust,15-Oct-10,MEDSURGCONS - OTHER,Medicine,NHS LOGISTICS,WSWI1822850,14.9,
Department of Health,Salisbury NHS Foundation Trust,15-Oct-10,OTHER MEDICAL SUPPLIES,Medicine,NHS LOGISTICS,WSWI1822850,1.37,
Department of Health,Salisbury NHS Foundation Trust,15-Oct-10,SURGICAL INSTRUMENTS: GENERAL,Medicine,NHS LOGISTICS,WSWI1822850,4.14,
Department of Health,Salisbury NHS Foundation Trust,15-Oct-10,DISPOSABLE THEATRE DRAPES WIPES,Medicine,NHS LOGISTICS,WSWI1822850,3.94,
Department of Health,Salisbury NHS Foundation Trust,15-Oct-10,OTHER MEDICAL SUPPLIES,Medicine,NHS LOGISTICS,WSWI1822850,10.38,
Department of Health,Salisbury NHS Foundation Trust,15-Oct-10,DRESSINGS - PRE STERILE,Medicine,NHS LOGISTICS,WSWI1822850,1.51,
Department of Health,Salisbury NHS Foundation Trust,15-Oct-10,DRESSINGS - PRE STERILE,Medicine,NHS LOGISTICS,WSWI1822850,4.13,
Department of Health,Salisbury NHS Foundation Trust,15-Oct-10,DRESSINGS - PRE STERILE,Medicine,NHS LOGISTICS,WSWI1822850,1.96,
Department of Health,Salisbury NHS Foundation Trust,15-Oct-10,DRESSINGS - PRE STERILE,Medicine,NHS LOGISTICS,WSWI1822850,6.09,
Department of Health,Salisbury NHS Foundation Trust,15-Oct-10,DRESSINGS  -  PROCEDURE PACKS,Medicine,NHS LOGISTICS,WSWI1822850,4.34,
Department of Health,Salisbury NHS Foundation Trust,15-Oct-10,TISSUES HAND TOWELS & TOILET PAPER,Medicine,NHS LOGISTICS,WSWI1822850,1.3,
Department of Health,Salisbury NHS Foundation Trust,15-Oct-10,COOKING & KITCHEN UTENSILS,Medicine,NHS LOGISTICS,WSWI1822850,2.59,
Department of Health,Salisbury NHS Foundation Trust,15-Oct-10,BAGS SACKS - OTHER,Medicine,NHS LOGISTICS,WSWI1822850,5.02,
Department of Health,Salisbury NHS Foundation Trust,15-Oct-10,DISPOSABLE THEATRE DRAPES WIPES,Medicine,NHS LOGISTICS,WSWI1822850,25.53,
Department of Health,Salisbury NHS Foundation Trust,15-Oct-10,DISPOSABLE THEATRE DRAPES WIPES,Medicine,NHS LOGISTICS,WSWI1822850,64.95,
Department of Health,Salisbury NHS Foundation Trust,15-Oct-10,DISPOSABLE THEATRE DRAPES WIPES,Medicine,NHS LOGISTICS,WSWI1822850,22.29,
Department of Health,Salisbury NHS Foundation Trust,15-Oct-10,MEDSURGCONS - OTHER,Medicine,NHS LOGISTICS,WSWI1822850,31.83,
Department of Health,Salisbury NHS Foundation Trust,15-Oct-10,MEDSURGCONS - OTHER,Medicine,NHS LOGISTICS,WSWI1822850,63.66,
Department of Health,Salisbury NHS Foundation Trust,15-Oct-10,MEDSURGCONS - OTHER,Medicine,NHS LOGISTICS,WSWI1822850,31.83,
Department of Health,Salisbury NHS Foundation Trust,15-Oct-10,TISSUES HAND TOWELS & TOILET PAPER,Medicine,NHS LOGISTICS,WSWI1822850,24.77,
Department of Health,Salisbury NHS Foundation Trust,15-Oct-10,TISSUES HAND TOWELS & TOILET PAPER,Medicine,NHS LOGISTICS,WSWI1822850,37.15,
Department of Health,Salisbury NHS Foundation Trust,15-Oct-10,CLEANING MATERIALS PRODUCTS SUNDRIES,Medicine,NHS LOGISTICS,WSWI1822850,7.83,
Department of Health,Salisbury NHS Foundation Trust,15-Oct-10,MEDSURGCONS - OTHER,Medicine,NHS LOGISTICS,WSWI1822850,7.56,
Department of Health,Salisbury NHS Foundation Trust,15-Oct-10,PATIENTS INCONTINENCE,Medicine,NHS LOGISTICS,WSWI1822850,37.31,
Department of Health,Salisbury NHS Foundation Trust,15-Oct-10,TOILETRIES PERSONAL HYGIENE PRODUCTS,Medicine,NHS LOGISTICS,WSWI1822850,1.69,
Department of Health,Salisbury NHS Foundation Trust,15-Oct-10,TOILETRIES PERSONAL HYGIENE PRODUCTS,Medicine,NHS LOGISTICS,WSWI1822850,7.51,
Department of Health,Salisbury NHS Foundation Trust,15-Oct-10,TOILETRIES PERSONAL HYGIENE PRODUCTS,Medicine,NHS LOGISTICS,WSWI1822850,12.41,
Department of Health,Salisbury NHS Foundation Trust,15-Oct-10,DRUGS,Medicine,NHS LOGISTICS,WSWI1822850,1.28,
Department of Health,Salisbury NHS Foundation Trust,15-Oct-10,COOKING & KITCHEN UTENSILS,Medicine,NHS LOGISTICS,WSWI1822850,3.23,
Department of Health,Salisbury NHS Foundation Trust,15-Oct-10,DISPOSABLE THEATRE DRAPES WIPES,Medicine,NHS LOGISTICS,WSWI1822850,9.02,
Department of Health,Salisbury NHS Foundation Trust,15-Oct-10,OTHER MEDICAL SUPPLIES,Medicine,NHS LOGISTICS,WSWI1822850,1.46,
Department of Health,Salisbury NHS Foundation Trust,15-Oct-10,MEDSURGCONS - OTHER,Medicine,NHS LOGISTICS,WSWI1822850,63.66,
Department of Health,Salisbury NHS Foundation Trust,15-Oct-10,MEDSURGCONS - OTHER,Medicine,NHS LOGISTICS,WSWI1822850,31.83,
Department of Health,Salisbury NHS Foundation Trust,15-Oct-10,MEDSURGCONS - OTHER,Medicine,NHS LOGISTICS,WSWI1822850,31.83,
Department of Health,Salisbury NHS Foundation Trust,15-Oct-10,DISPOSABLE THEATRE DRAPES WIPES,Medicine,NHS LOGISTICS,WSWI1822850,13.89,
Department of Health,Salisbury NHS Foundation Trust,15-Oct-10,DRESSINGS  -  PROCEDURE PACKS,Medicine,NHS LOGISTICS,WSWI1822850,0.51,
Department of Health,Salisbury NHS Foundation Trust,15-Oct-10,MEDSURGCONS - OTHER,Medicine,NHS LOGISTICS,WSWI1822850,8.08,
Department of Health,Salisbury NHS Foundation Trust,15-Oct-10,PATIENT APPLIANCES,Medicine,NHS LOGISTICS,WSWI1822850,3.51,
Department of Health,Salisbury NHS Foundation Trust,15-Oct-10,DRESSINGS  -  PROCEDURE PACKS,Medicine,NHS LOGISTICS,WSWI1822850,1.74,
Department of Health,Salisbury NHS Foundation Trust,15-Oct-10,PATIENT APPLIANCES,Medicine,NHS LOGISTICS,WSWI1822850,4.46,
Department of Health,Salisbury NHS Foundation Trust,15-Oct-10,MEDSURGCONS - OTHER,Medicine,NHS LOGISTICS,WSWI1822850,10.62,
Department of Health,Salisbury NHS Foundation Trust,15-Oct-10,DRESSINGS - PRE STERILE,Medicine,NHS LOGISTICS,WSWI1822850,1.52,
Department of Health,Salisbury NHS Foundation Trust,15-Oct-10,DRESSINGS - PRE STERILE,Medicine,NHS LOGISTICS,WSWI1822850,2.03,
Department of Health,Salisbury NHS Foundation Trust,15-Oct-10,SURGICAL INSTRUMENTS: GENERAL,Medicine,NHS LOGISTICS,WSWI1822850,1.76,
Department of Health,Salisbury NHS Foundation Trust,15-Oct-10,MEDSURGCONS - OTHER,Medicine,NHS LOGISTICS,WSWI1822850,28.05,
Department of Health,Salisbury NHS Foundation Trust,15-Oct-10,MEDSURGCONS - OTHER,Medicine,NHS LOGISTICS,WSWI1822850,4.89,
Department of Health,Salisbury NHS Foundation Trust,15-Oct-10,DRESSINGS - PRE STERILE,Medicine,NHS LOGISTICS,WSWI1822850,32.85,
Department of Health,Salisbury NHS Foundation Trust,15-Oct-10,OTHER MEDICAL SUPPLIES,Medicine,NHS LOGISTICS,WSWI1822850,1.45,
Department of Health,Salisbury NHS Foundation Trust,15-Oct-10,MEDSURGCONS - OTHER,Medicine,NHS LOGISTICS,WSWI1822850,4.72,
Department of Health,Salisbury NHS Foundation Trust,15-Oct-10,MEDSURGCONS - OTHER,Medicine,NHS LOGISTICS,WSWI1822850,2.29,
Department of Health,Salisbury NHS Foundation Trust,15-Oct-10,OTHER MEDICAL SUPPLIES,Medicine,NHS LOGISTICS,WSWI1822850,15.02,
Department of Health,Salisbury NHS Foundation Trust,15-Oct-10,OTHER MEDICAL SUPPLIES,Medicine,NHS LOGISTICS,WSWI1822850,10.38,
Department of Health,Salisbury NHS Foundation Trust,15-Oct-10,MED SURG EQUIP REP MAINT CLEANING,Medicine,NHS LOGISTICS,WSWI1822850,13.23,
Department of Health,Salisbury NHS Foundation Trust,15-Oct-10,MEDSURGCONS - OTHER,Medicine,NHS LOGISTICS,WSWI1822850,6.61,
Department of Health,Salisbury NHS Foundation Trust,15-Oct-10,MEDSURGCONS - OTHER,Medicine,NHS LOGISTICS,WSWI1822850,0.89,
Department of Health,Salisbury NHS Foundation Trust,15-Oct-10,ANAESTHETIC EQUIPMENT ACCESSORIES,Medicine,NHS LOGISTICS,WSWI1822850,1.45,
Department of Health,Salisbury NHS Foundation Trust,15-Oct-10,PAPER ITEMS GENERAL STATIONERY SUNDRIES,Surgery,NHS LOGISTICS,WSWI1822850,19.49,
Department of Health,Salisbury NHS Foundation Trust,15-Oct-10,BEVERAGES & AMBIENT FOOD,Surgery,NHS LOGISTICS,WSWI1822850,13.71,
Department of Health,Salisbury NHS Foundation Trust,15-Oct-10,TOILETRIES PERSONAL HYGIENE PRODUCTS,Critical care,NHS LOGISTICS,WSWI1822850,6.45,
Department of Health,Salisbury NHS Foundation Trust,15-Oct-10,STATIONERY SUNDRIES,Critical care,NHS LOGISTICS,WSWI1822850,8.34,
Department of Health,Salisbury NHS Foundation Trust,15-Oct-10,STATIONERY SUNDRIES,Critical care,NHS LOGISTICS,WSWI1822850,7.97,
Department of Health,Salisbury NHS Foundation Trust,15-Oct-10,TUBES,Surgery,NHS LOGISTICS,WSWI1822850,32.43,
Department of Health,Salisbury NHS Foundation Trust,15-Oct-10,MEDSURGCONS - OTHER,Surgery,NHS LOGISTICS,WSWI1822850,72.02,
Department of Health,Salisbury NHS Foundation Trust,15-Oct-10,M & S EQUIPELECTEQUIPINST - OTHER,Surgery,NHS LOGISTICS,WSWI1822850,32.21,
Department of Health,Salisbury NHS Foundation Trust,15-Oct-10,M & S EQUIPELECTEQUIPINST - OTHER,Surgery,NHS LOGISTICS,WSWI1822850,2.86,
Department of Health,Salisbury NHS Foundation Trust,15-Oct-10,BEVERAGES & AMBIENT FOOD,Surgery,NHS LOGISTICS,WSWI1822850,27.42,
Department of Health,Salisbury NHS Foundation Trust,15-Oct-10,MEDSURGCONS - OTHER,Surgery,NHS LOGISTICS,WSWI1822850,7.97,
Department of Health,Salisbury NHS Foundation Trust,15-Oct-10,OTHER MEDICAL SUPPLIES,Surgery,NHS LOGISTICS,WSWI1822850,25.96,
Department of Health,Salisbury NHS Foundation Trust,15-Oct-10,DRESSINGS - PRE STERILE,Surgery,NHS LOGISTICS,WSWI1822850,13.29,
Department of Health,Salisbury NHS Foundation Trust,15-Oct-10,BAGS SACKS - OTHER,Surgery,NHS LOGISTICS,WSWI1822850,90.28,
Department of Health,Salisbury NHS Foundation Trust,15-Oct-10,MEDSURGCONS - OTHER,Clinical Support and Family Services,NHS LOGISTICS,WSWI1822850,29.86,
Department of Health,Salisbury NHS Foundation Trust,15-Oct-10,MEDSURGCONS - OTHER,Clinical Support and Family Services,NHS LOGISTICS,WSWI1822850,29.86,
Department of Health,Salisbury NHS Foundation Trust,15-Oct-10,DRESSINGS  -  PROCEDURE PACKS,Clinical Support and Family Services,NHS LOGISTICS,WSWI1822850,6.64,
Department of Health,Salisbury NHS Foundation Trust,15-Oct-10,NON DISPOSABLE BED LINEN,Clinical Support and Family Services,NHS LOGISTICS,WSWI1822850,11.24,
Department of Health,Salisbury NHS Foundation Trust,15-Oct-10,MEDSURGCONS - OTHER,Clinical Support and Family Services,NHS LOGISTICS,WSWI1822850,3.49,
Department of Health,Salisbury NHS Foundation Trust,15-Oct-10,MEDSURGCONS - OTHER,Clinical Support and Family Services,NHS LOGISTICS,WSWI1822850,5.11,
Department of Health,Salisbury NHS Foundation Trust,15-Oct-10,MEDSURGCONS - OTHER,Clinical Support and Family Services,NHS LOGISTICS,WSWI1822850,18.47,
Department of Health,Salisbury NHS Foundation Trust,15-Oct-10,MEDSURGCONS - OTHER,Clinical Support and Family Services,NHS LOGISTICS,WSWI1822850,3.62,
Department of Health,Salisbury NHS Foundation Trust,15-Oct-10,SURGICAL INSTRUMENTS: GENERAL,Clinical Support and Family Services,NHS LOGISTICS,WSWI1822850,18.75,
Department of Health,Salisbury NHS Foundation Trust,15-Oct-10,OTHER MEDICAL SUPPLIES,Clinical Support and Family Services,NHS LOGISTICS,WSWI1822850,21.53,
Department of Health,Salisbury NHS Foundation Trust,15-Oct-10,OTHER MEDICAL SUPPLIES,Clinical Support and Family Services,NHS LOGISTICS,WSWI1822850,10.3,
Department of Health,Salisbury NHS Foundation Trust,15-Oct-10,MEDSURGCONS - OTHER,Clinical Support and Family Services,NHS LOGISTICS,WSWI1822850,11.66,
Department of Health,Salisbury NHS Foundation Trust,15-Oct-10,OTHER MEDICAL SUPPLIES,Clinical Support and Family Services,NHS LOGISTICS,WSWI1822850,1.46,
Department of Health,Salisbury NHS Foundation Trust,15-Oct-10,MEDSURGCONS-SUTURES,Clinical Support and Family Services,NHS LOGISTICS,WSWI1822850,23.94,
Department of Health,Salisbury NHS Foundation Trust,15-Oct-10,MEDSURGCONS-SUTURES,Clinical Support and Family Services,NHS LOGISTICS,WSWI1822850,27.49,
Department of Health,Salisbury NHS Foundation Trust,15-Oct-10,MEDSURGCONS-SUTURES,Clinical Support and Family Services,NHS LOGISTICS,WSWI1822850,25.78,
Department of Health,Salisbury NHS Foundation Trust,15-Oct-10,DRESSINGS - PRE STERILE,Clinical Support and Family Services,NHS LOGISTICS,WSWI1822850,18.36,
Department of Health,Salisbury NHS Foundation Trust,15-Oct-10,HEALTHCARE - WEAR,Clinical Support and Family Services,NHS LOGISTICS,WSWI1822850,10.66,
Department of Health,Salisbury NHS Foundation Trust,15-Oct-10,HEALTHCARE - WEAR,Clinical Support and Family Services,NHS LOGISTICS,WSWI1822850,9.97,
Department of Health,Salisbury NHS Foundation Trust,15-Oct-10,SURGICAL INSTRUMENTS: GENERAL,Clinical Support and Family Services,NHS LOGISTICS,WSWI1822850,4.55,
Department of Health,Salisbury NHS Foundation Trust,15-Oct-10,NON DISPOSABLE BED LINEN,Clinical Support and Family Services,NHS LOGISTICS,WSWI1822850,65.11,
Department of Health,Salisbury NHS Foundation Trust,15-Oct-10,TISSUES HAND TOWELS & TOILET PAPER,Clinical Support and Family Services,NHS LOGISTICS,WSWI1822850,12.38,
Department of Health,Salisbury NHS Foundation Trust,15-Oct-10,BABY TEXTURE MODIFIED FOODS,Clinical Support and Family Services,NHS LOGISTICS,WSWI1822850,16.04,
Department of Health,Salisbury NHS Foundation Trust,15-Oct-10,COOKING & KITCHEN UTENSILS,Clinical Support and Family Services,NHS LOGISTICS,WSWI1822850,1.29,
Department of Health,Salisbury NHS Foundation Trust,15-Oct-10,TISSUES HAND TOWELS & TOILET PAPER,Clinical Support and Family Services,NHS LOGISTICS,WSWI1822850,2.6,
Department of Health,Salisbury NHS Foundation Trust,15-Oct-10,DRESSINGS - PRE STERILE,Clinical Support and Family Services,NHS LOGISTICS,WSWI1822850,1.82,
Department of Health,Salisbury NHS Foundation Trust,15-Oct-10,TISSUES HAND TOWELS & TOILET PAPER,Clinical Support and Family Services,NHS LOGISTICS,WSWI1822850,0.68,
Department of Health,Salisbury NHS Foundation Trust,15-Oct-10,PATIENTS BABY WEAR,Clinical Support and Family Services,NHS LOGISTICS,WSWI1822850,3.05,
Department of Health,Salisbury NHS Foundation Trust,15-Oct-10,DRESSINGS - PRE STERILE,Clinical Support and Family Services,NHS LOGISTICS,WSWI1822850,6.26,
Department of Health,Salisbury NHS Foundation Trust,15-Oct-10,DRESSINGS - PRE STERILE,Clinical Support and Family Services,NHS LOGISTICS,WSWI1822850,4.13,
Department of Health,Salisbury NHS Foundation Trust,15-Oct-10,DRESSINGS - PRE STERILE,Clinical Support and Family Services,NHS LOGISTICS,WSWI1822850,5.92,
Department of Health,Salisbury NHS Foundation Trust,15-Oct-10,MEDSURGCONS - OTHER,Clinical Support and Family Services,NHS LOGISTICS,WSWI1822850,24.17,
Department of Health,Salisbury NHS Foundation Trust,15-Oct-10,DRESSINGS - PRE STERILE,Clinical Support and Family Services,NHS LOGISTICS,WSWI1822850,1.52,
Department of Health,Salisbury NHS Foundation Trust,15-Oct-10,OTHER MEDICAL SUPPLIES,Clinical Support and Family Services,NHS LOGISTICS,WSWI1822850,117.45,
Department of Health,Salisbury NHS Foundation Trust,15-Oct-10,MEDSURGCONS - OTHER,Clinical Support and Family Services,NHS LOGISTICS,WSWI1822850,2.29,
Department of Health,Salisbury NHS Foundation Trust,15-Oct-10,MEDSURGCONS - OTHER,Clinical Support and Family Services,NHS LOGISTICS,WSWI1822850,3.62,
Department of Health,Salisbury NHS Foundation Trust,15-Oct-10,MEDSURGCONS - OTHER,Clinical Support and Family Services,NHS LOGISTICS,WSWI1822850,5.11,
Department of Health,Salisbury NHS Foundation Trust,15-Oct-10,MEDSURGCONS - OTHER,Clinical Support and Family Services,NHS LOGISTICS,WSWI1822850,18.47,
Department of Health,Salisbury NHS Foundation Trust,15-Oct-10,OTHER MEDICAL SUPPLIES,Clinical Support and Family Services,NHS LOGISTICS,WSWI1822850,5.79,
Department of Health,Salisbury NHS Foundation Trust,15-Oct-10,MEDSURGCONS - OTHER,Clinical Support and Family Services,NHS LOGISTICS,WSWI1822850,12.6,
Department of Health,Salisbury NHS Foundation Trust,15-Oct-10,MEDSURGCONS - OTHER,Clinical Support and Family Services,NHS LOGISTICS,WSWI1822850,18.89,
Department of Health,Salisbury NHS Foundation Trust,15-Oct-10,DRESSINGS - PRE STERILE,Clinical Support and Family Services,NHS LOGISTICS,WSWI1822850,1.82,
Department of Health,Salisbury NHS Foundation Trust,15-Oct-10,DRESSINGS - PRE STERILE,Clinical Support and Family Services,NHS LOGISTICS,WSWI1822850,6.26,
Department of Health,Salisbury NHS Foundation Trust,15-Oct-10,DRESSINGS - PRE STERILE,Clinical Support and Family Services,NHS LOGISTICS,WSWI1822850,0.39,
Department of Health,Salisbury NHS Foundation Trust,15-Oct-10,DRESSINGS - PRE STERILE,Clinical Support and Family Services,NHS LOGISTICS,WSWI1822850,32.85,
Department of Health,Salisbury NHS Foundation Trust,15-Oct-10,M & S EQUIPELECTEQUIPINST - OTHER,Clinical Support and Family Services,NHS LOGISTICS,WSWI1822850,2.92,
Department of Health,Salisbury NHS Foundation Trust,15-Oct-10,OTHER MEDICAL SUPPLIES,Clinical Support and Family Services,NHS LOGISTICS,WSWI1822850,3.17,
Department of Health,Salisbury NHS Foundation Trust,15-Oct-10,OTHER MEDICAL SUPPLIES,Clinical Support and Family Services,NHS LOGISTICS,WSWI1822850,43.74,
Department of Health,Salisbury NHS Foundation Trust,15-Oct-10,OTHER MEDICAL SUPPLIES,Clinical Support and Family Services,NHS LOGISTICS,WSWI1822850,43.06,
Department of Health,Salisbury NHS Foundation Trust,15-Oct-10,OTHER MEDICAL SUPPLIES,Clinical Support and Family Services,NHS LOGISTICS,WSWI1822850,60.09,
Department of Health,Salisbury NHS Foundation Trust,15-Oct-10,OTHER MEDICAL SUPPLIES,Clinical Support and Family Services,NHS LOGISTICS,WSWI1822850,20.77,
Department of Health,Salisbury NHS Foundation Trust,15-Oct-10,SURGICAL INSTRUMENTS: GENERAL,Clinical Support and Family Services,NHS LOGISTICS,WSWI1822850,201.96,
Department of Health,Salisbury NHS Foundation Trust,15-Oct-10,DRESSINGS - PRE STERILE,Clinical Support and Family Services,NHS LOGISTICS,WSWI1822850,2.36,
Department of Health,Salisbury NHS Foundation Trust,15-Oct-10,MEDSURGCONS - OTHER,Clinical Support and Family Services,NHS LOGISTICS,WSWI1822850,1.19,
Department of Health,Salisbury NHS Foundation Trust,15-Oct-10,OTHER MEDICAL SUPPLIES,Clinical Support and Family Services,NHS LOGISTICS,WSWI1822850,9.02,
Department of Health,Salisbury NHS Foundation Trust,15-Oct-10,BABY TEXTURE MODIFIED FOODS,Clinical Support and Family Services,NHS LOGISTICS,WSWI1822850,11.97,
Department of Health,Salisbury NHS Foundation Trust,15-Oct-10,SURGICAL INSTRUMENTS: GENERAL,Clinical Support and Family Services,NHS LOGISTICS,WSWI1822850,1.8,
Department of Health,Salisbury NHS Foundation Trust,15-Oct-10,M & S EQUIPELECTEQUIPINST - OTHER,Clinical Support and Family Services,NHS LOGISTICS,WSWI1822850,17.72,
Department of Health,Salisbury NHS Foundation Trust,15-Oct-10,M & S EQUIPELECTEQUIPINST - OTHER,Clinical Support and Family Services,NHS LOGISTICS,WSWI1822850,15.57,
Department of Health,Salisbury NHS Foundation Trust,15-Oct-10,OTHER MEDICAL SUPPLIES,Clinical Support and Family Services,NHS LOGISTICS,WSWI1822850,6.18,
Department of Health,Salisbury NHS Foundation Trust,15-Oct-10,SURGICAL INSTRUMENTS: GENERAL,Clinical Support and Family Services,NHS LOGISTICS,WSWI1822850,4.55,
Department of Health,Salisbury NHS Foundation Trust,15-Oct-10,SURGICAL INSTRUMENTS: GENERAL,Clinical Support and Family Services,NHS LOGISTICS,WSWI1822850,14.66,
Department of Health,Salisbury NHS Foundation Trust,15-Oct-10,OTHER MEDICAL SUPPLIES,Clinical Support and Family Services,NHS LOGISTICS,WSWI1822850,4.55,
Department of Health,Salisbury NHS Foundation Trust,15-Oct-10,BAGS SACKS - OTHER,Clinical Support and Family Services,NHS LOGISTICS,WSWI1822850,1.46,
Department of Health,Salisbury NHS Foundation Trust,15-Oct-10,BAGS SACKS - OTHER,Clinical Support and Family Services,NHS LOGISTICS,WSWI1822850,3.63,
Department of Health,Salisbury NHS Foundation Trust,15-Oct-10,TISSUES HAND TOWELS & TOILET PAPER,Clinical Support and Family Services,NHS LOGISTICS,WSWI1822850,1.97,
Department of Health,Salisbury NHS Foundation Trust,15-Oct-10,TISSUES HAND TOWELS & TOILET PAPER,Clinical Support and Family Services,NHS LOGISTICS,WSWI1822850,3.01,
Department of Health,Salisbury NHS Foundation Trust,15-Oct-10,ELECTRICAL EQUIPMENT x,Clinical Support and Family Services,NHS LOGISTICS,WSWI1822850,3.01,
Department of Health,Salisbury NHS Foundation Trust,15-Oct-10,ELECTRICAL EQUIPMENT x,Clinical Support and Family Services,NHS LOGISTICS,WSWI1822850,6.03,
Department of Health,Salisbury NHS Foundation Trust,15-Oct-10,ELECTRICAL EQUIPMENT x,Clinical Support and Family Services,NHS LOGISTICS,WSWI1822850,1.62,
Department of Health,Salisbury NHS Foundation Trust,15-Oct-10,ELECTRICAL EQUIPMENT x,Clinical Support and Family Services,NHS LOGISTICS,WSWI1822850,11.97,
Department of Health,Salisbury NHS Foundation Trust,15-Oct-10,SURGICAL INSTRUMENTS: GENERAL,Clinical Support and Family Services,NHS LOGISTICS,WSWI1822850,3.52,
Department of Health,Salisbury NHS Foundation Trust,15-Oct-10,COOKING & KITCHEN UTENSILS,Clinical Support and Family Services,NHS LOGISTICS,WSWI1822850,2.59,
Department of Health,Salisbury NHS Foundation Trust,15-Oct-10,DISPOSABLE THEATRE DRAPES WIPES,Clinical Support and Family Services,NHS LOGISTICS,WSWI1822850,9.36,
Department of Health,Salisbury NHS Foundation Trust,15-Oct-10,TISSUES HAND TOWELS & TOILET PAPER,Clinical Support and Family Services,NHS LOGISTICS,WSWI1822850,3.4,
Department of Health,Salisbury NHS Foundation Trust,15-Oct-10,DRESSINGS - PRE STERILE,Clinical Support and Family Services,NHS LOGISTICS,WSWI1822850,23.54,
Department of Health,Salisbury NHS Foundation Trust,15-Oct-10,MEDSURGCONS - OTHER,Clinical Support and Family Services,NHS LOGISTICS,WSWI1822850,20.51,
Department of Health,Salisbury NHS Foundation Trust,15-Oct-10,MEDSURGCONS - OTHER,Clinical Support and Family Services,NHS LOGISTICS,WSWI1822850,20.51,
Department of Health,Salisbury NHS Foundation Trust,15-Oct-10,MEDSURGCONS - OTHER,Clinical Support and Family Services,NHS LOGISTICS,WSWI1822850,30.77,
Department of Health,Salisbury NHS Foundation Trust,15-Oct-10,DRESSINGS - PRE STERILE,Clinical Support and Family Services,NHS LOGISTICS,WSWI1822850,4.46,
Department of Health,Salisbury NHS Foundation Trust,15-Oct-10,OTHER MEDICAL SUPPLIES,Clinical Support and Family Services,NHS LOGISTICS,WSWI1822850,57.74,
Department of Health,Salisbury NHS Foundation Trust,15-Oct-10,MEDSURGCONS - OTHER,Clinical Support and Family Services,NHS LOGISTICS,WSWI1822850,28.05,
Department of Health,Salisbury NHS Foundation Trust,15-Oct-10,PATIENTS BEDWEAR UNISEX,Clinical Support and Family Services,NHS LOGISTICS,WSWI1822850,15.91,
Department of Health,Salisbury NHS Foundation Trust,15-Oct-10,DISPOSABLE THEATRE DRAPES WIPES,Clinical Support and Family Services,NHS LOGISTICS,WSWI1822850,3.15,
Department of Health,Salisbury NHS Foundation Trust,15-Oct-10,MEDSURGCONS - OTHER,Clinical Support and Family Services,NHS LOGISTICS,WSWI1822850,29.86,
Department of Health,Salisbury NHS Foundation Trust,15-Oct-10,DRESSINGS  -  PROCEDURE PACKS,Clinical Support and Family Services,NHS LOGISTICS,WSWI1822850,8.51,
Department of Health,Salisbury NHS Foundation Trust,15-Oct-10,DRESSINGS  -  PROCEDURE PACKS,Clinical Support and Family Services,NHS LOGISTICS,WSWI1822850,32.68,
Department of Health,Salisbury NHS Foundation Trust,15-Oct-10,MEDSURGCONS - OTHER,Clinical Support and Family Services,NHS LOGISTICS,WSWI1822850,92.45,
Department of Health,Salisbury NHS Foundation Trust,15-Oct-10,SURGICAL INSTRUMENTS: DISPOSABLE,Clinical Support and Family Services,NHS LOGISTICS,WSWI1822850,55.91,
Department of Health,Salisbury NHS Foundation Trust,15-Oct-10,MEDSURGCONS - OTHER,Clinical Support and Family Services,NHS LOGISTICS,WSWI1822850,81.62,
Department of Health,Salisbury NHS Foundation Trust,15-Oct-10,DRESSINGS  -  PROCEDURE PACKS,Clinical Support and Family Services,NHS LOGISTICS,WSWI1822850,0.89,
Department of Health,Salisbury NHS Foundation Trust,15-Oct-10,DRESSINGS  -  PROCEDURE PACKS,Clinical Support and Family Services,NHS LOGISTICS,WSWI1822850,0.51,
Department of Health,Salisbury NHS Foundation Trust,15-Oct-10,PATIENT APPLIANCES,Clinical Support and Family Services,NHS LOGISTICS,WSWI1822850,21.14,
Department of Health,Salisbury NHS Foundation Trust,15-Oct-10,PATIENT APPLIANCES,Clinical Support and Family Services,NHS LOGISTICS,WSWI1822850,11.42,
Department of Health,Salisbury NHS Foundation Trust,15-Oct-10,MEDSURGCONS-SUTURES,Clinical Support and Family Services,NHS LOGISTICS,WSWI1822850,34.72,
Department of Health,Salisbury NHS Foundation Trust,15-Oct-10,MEDSURGCONS-SUTURES,Clinical Support and Family Services,NHS LOGISTICS,WSWI1822850,34.84,
Department of Health,Salisbury NHS Foundation Trust,15-Oct-10,SURGICAL INSTRUMENTS: GENERAL,Clinical Support and Family Services,NHS LOGISTICS,WSWI1822850,16.1,
Department of Health,Salisbury NHS Foundation Trust,15-Oct-10,MEDSURGCONS - OTHER,Clinical Support and Family Services,NHS LOGISTICS,WSWI1822850,18.68,
Department of Health,Salisbury NHS Foundation Trust,15-Oct-10,MEDSURGCONS - OTHER,Clinical Support and Family Services,NHS LOGISTICS,WSWI1822850,18.68,
Department of Health,Salisbury NHS Foundation Trust,15-Oct-10,MEDSURGCONS - OTHER,Clinical Support and Family Services,NHS LOGISTICS,WSWI1822850,18.68,
Department of Health,Salisbury NHS Foundation Trust,15-Oct-10,MEDSURGCONS - OTHER,Clinical Support and Family Services,NHS LOGISTICS,WSWI1822850,11.03,
Department of Health,Salisbury NHS Foundation Trust,15-Oct-10,MEDSURGCONS - OTHER,Clinical Support and Family Services,NHS LOGISTICS,WSWI1822850,11.03,
Department of Health,Salisbury NHS Foundation Trust,15-Oct-10,MEDSURGCONS - OTHER,Clinical Support and Family Services,NHS LOGISTICS,WSWI1822850,11.03,
Department of Health,Salisbury NHS Foundation Trust,15-Oct-10,DRUGS,Clinical Support and Family Services,NHS LOGISTICS,WSWI1822850,11.2,
Department of Health,Salisbury NHS Foundation Trust,15-Oct-10,DRUGS,Clinical Support and Family Services,NHS LOGISTICS,WSWI1822850,6.23,
Department of Health,Salisbury NHS Foundation Trust,15-Oct-10,CLEANING MATERIALS PRODUCTS SUNDRIES,Clinical Support and Family Services,NHS LOGISTICS,WSWI1822850,7.83,
Department of Health,Salisbury NHS Foundation Trust,15-Oct-10,TISSUES HAND TOWELS & TOILET PAPER,Clinical Support and Family Services,NHS LOGISTICS,WSWI1822850,111.45,
Department of Health,Salisbury NHS Foundation Trust,15-Oct-10,TOILETRIES PERSONAL HYGIENE PRODUCTS,Clinical Support and Family Services,NHS LOGISTICS,WSWI1822850,1.06,
Department of Health,Salisbury NHS Foundation Trust,15-Oct-10,M & S EQUIPELECTEQUIPINST - OTHER,Clinical Support and Family Services,NHS LOGISTICS,WSWI1822850,2.3,
Department of Health,Salisbury NHS Foundation Trust,15-Oct-10,MEDSURGCONS - OTHER,Human Resources,NHS LOGISTICS,WSWI1822850,20.6,
Department of Health,Salisbury NHS Foundation Trust,15-Oct-10,DISPOSABLE THEATRE DRAPES WIPES,Human Resources,NHS LOGISTICS,WSWI1822850,7.59,
Department of Health,Salisbury NHS Foundation Trust,15-Oct-10,TISSUES HAND TOWELS & TOILET PAPER,Human Resources,NHS LOGISTICS,WSWI1822850,4,
Department of Health,Salisbury NHS Foundation Trust,15-Oct-10,EGGS MILK OTHER DAIRY PRODUCTS,Facilities Directorate,NHS LOGISTICS,WSWI1822850,104.36,
Department of Health,Salisbury NHS Foundation Trust,15-Oct-10,BEVERAGES & AMBIENT FOOD,Facilities Directorate,NHS LOGISTICS,WSWI1822850,41,
Department of Health,Salisbury NHS Foundation Trust,15-Oct-10,BEVERAGES & AMBIENT FOOD,Facilities Directorate,NHS LOGISTICS,WSWI1822850,10.56,
Department of Health,Salisbury NHS Foundation Trust,15-Oct-10,BEVERAGES & AMBIENT FOOD,Facilities Directorate,NHS LOGISTICS,WSWI1822850,34.08,
Department of Health,Salisbury NHS Foundation Trust,15-Oct-10,BEVERAGES & AMBIENT FOOD,Facilities Directorate,NHS LOGISTICS,WSWI1822850,9.84,
Department of Health,Salisbury NHS Foundation Trust,15-Oct-10,BEVERAGES & AMBIENT FOOD,Facilities Directorate,NHS LOGISTICS,WSWI1822850,4.91,
Department of Health,Salisbury NHS Foundation Trust,15-Oct-10,BEVERAGES & AMBIENT FOOD,Facilities Directorate,NHS LOGISTICS,WSWI1822850,30.76,
Department of Health,Salisbury NHS Foundation Trust,15-Oct-10,BEVERAGES & AMBIENT FOOD,Facilities Directorate,NHS LOGISTICS,WSWI1822850,28,
Department of Health,Salisbury NHS Foundation Trust,15-Oct-10,BEVERAGES & AMBIENT FOOD,Facilities Directorate,NHS LOGISTICS,WSWI1822850,7.2,
Department of Health,Salisbury NHS Foundation Trust,15-Oct-10,BEVERAGES & AMBIENT FOOD,Facilities Directorate,NHS LOGISTICS,WSWI1822850,6,
Department of Health,Salisbury NHS Foundation Trust,15-Oct-10,BEVERAGES & AMBIENT FOOD,Facilities Directorate,NHS LOGISTICS,WSWI1822850,9.56,
Department of Health,Salisbury NHS Foundation Trust,15-Oct-10,BEVERAGES & AMBIENT FOOD,Facilities Directorate,NHS LOGISTICS,WSWI1822850,10.31,
Department of Health,Salisbury NHS Foundation Trust,15-Oct-10,BEVERAGES & AMBIENT FOOD,Facilities Directorate,NHS LOGISTICS,WSWI1822850,27.4,
Department of Health,Salisbury NHS Foundation Trust,15-Oct-10,BEVERAGES & AMBIENT FOOD,Facilities Directorate,NHS LOGISTICS,WSWI1822850,11.06,
Department of Health,Salisbury NHS Foundation Trust,15-Oct-10,BEVERAGES & AMBIENT FOOD,Facilities Directorate,NHS LOGISTICS,WSWI1822850,10.42,
Department of Health,Salisbury NHS Foundation Trust,15-Oct-10,BEVERAGES & AMBIENT FOOD,Facilities Directorate,NHS LOGISTICS,WSWI1822850,31.32,
Department of Health,Salisbury NHS Foundation Trust,15-Oct-10,FLAVOURINGS HERBS SPICES,Facilities Directorate,NHS LOGISTICS,WSWI1822850,30.7,
Department of Health,Salisbury NHS Foundation Trust,15-Oct-10,FLAVOURINGS HERBS SPICES,Facilities Directorate,NHS LOGISTICS,WSWI1822850,22.1,
Department of Health,Salisbury NHS Foundation Trust,15-Oct-10,BEVERAGES & AMBIENT FOOD,Facilities Directorate,NHS LOGISTICS,WSWI1822850,16.92,
Department of Health,Salisbury NHS Foundation Trust,15-Oct-10,MEAT GAME POULTRY FISH,Facilities Directorate,NHS LOGISTICS,WSWI1822850,34.8,
Department of Health,Salisbury NHS Foundation Trust,15-Oct-10,FRUIT & VEGETABLES,Facilities Directorate,NHS LOGISTICS,WSWI1822850,20.16,
Department of Health,Salisbury NHS Foundation Trust,15-Oct-10,EGGS MILK OTHER DAIRY PRODUCTS,Facilities Directorate,NHS LOGISTICS,WSWI1822850,16.8,
Department of Health,Salisbury NHS Foundation Trust,15-Oct-10,BEVERAGES & AMBIENT FOOD,Facilities Directorate,NHS LOGISTICS,WSWI1822850,14.55,
Department of Health,Salisbury NHS Foundation Trust,15-Oct-10,LIQUID REFRESHMENTS,Facilities Directorate,NHS LOGISTICS,WSWI1822850,11.23,
Department of Health,Salisbury NHS Foundation Trust,15-Oct-10,LIQUID REFRESHMENTS,Facilities Directorate,NHS LOGISTICS,WSWI1822850,11.03,
Department of Health,Salisbury NHS Foundation Trust,15-Oct-10,BEVERAGES & AMBIENT FOOD,Facilities Directorate,NHS LOGISTICS,WSWI1822850,124.08,
Department of Health,Salisbury NHS Foundation Trust,15-Oct-10,BEVERAGES & AMBIENT FOOD,Facilities Directorate,NHS LOGISTICS,WSWI1822850,30,
Department of Health,Salisbury NHS Foundation Trust,15-Oct-10,BAGS SACKS - OTHER,Facilities Directorate,NHS LOGISTICS,WSWI1822850,17.07,
Department of Health,Salisbury NHS Foundation Trust,15-Oct-10,FRUIT & VEGETABLES,Facilities Directorate,NHS LOGISTICS,WSWI1822850,37.2,
Department of Health,Salisbury NHS Foundation Trust,15-Oct-10,FRUIT & VEGETABLES,Facilities Directorate,NHS LOGISTICS,WSWI1822850,11.4,
Department of Health,Salisbury NHS Foundation Trust,15-Oct-10,FRUIT & VEGETABLES,Facilities Directorate,NHS LOGISTICS,WSWI1822850,9.48,
Department of Health,Salisbury NHS Foundation Trust,15-Oct-10,FRUIT & VEGETABLES,Facilities Directorate,NHS LOGISTICS,WSWI1822850,30.96,
Department of Health,Salisbury NHS Foundation Trust,15-Oct-10,FRUIT & VEGETABLES,Facilities Directorate,NHS LOGISTICS,WSWI1822850,17.88,
Department of Health,Salisbury NHS Foundation Trust,15-Oct-10,FRUIT & VEGETABLES,Facilities Directorate,NHS LOGISTICS,WSWI1822850,17.34,
Department of Health,Salisbury NHS Foundation Trust,15-Oct-10,FRUIT & VEGETABLES,Facilities Directorate,NHS LOGISTICS,WSWI1822850,7.08,
Department of Health,Salisbury NHS Foundation Trust,15-Oct-10,LIQUID REFRESHMENTS,Facilities Directorate,NHS LOGISTICS,WSWI1822850,8.12,
Department of Health,Salisbury NHS Foundation Trust,15-Oct-10,LIQUID REFRESHMENTS,Facilities Directorate,NHS LOGISTICS,WSWI1822850,14.83,
Department of Health,Salisbury NHS Foundation Trust,15-Oct-10,BEVERAGES & AMBIENT FOOD,Facilities Directorate,NHS LOGISTICS,WSWI1822850,22.6,
Department of Health,Salisbury NHS Foundation Trust,15-Oct-10,BEVERAGES & AMBIENT FOOD,Facilities Directorate,NHS LOGISTICS,WSWI1822850,4.54,
Department of Health,Salisbury NHS Foundation Trust,15-Oct-10,BEVERAGES & AMBIENT FOOD,Facilities Directorate,NHS LOGISTICS,WSWI1822850,18.1,
Department of Health,Salisbury NHS Foundation Trust,15-Oct-10,BEVERAGES & AMBIENT FOOD,Facilities Directorate,NHS LOGISTICS,WSWI1822850,18,
Department of Health,Salisbury NHS Foundation Trust,15-Oct-10,BEVERAGES & AMBIENT FOOD,Facilities Directorate,NHS LOGISTICS,WSWI1822850,16,
Department of Health,Salisbury NHS Foundation Trust,15-Oct-10,BEVERAGES & AMBIENT FOOD,Facilities Directorate,NHS LOGISTICS,WSWI1822850,19.68,
Department of Health,Salisbury NHS Foundation Trust,15-Oct-10,BEVERAGES & AMBIENT FOOD,Facilities Directorate,NHS LOGISTICS,WSWI1822850,6.36,
Department of Health,Salisbury NHS Foundation Trust,15-Oct-10,BABY TEXTURE MODIFIED FOODS,Facilities Directorate,NHS LOGISTICS,WSWI1822850,56.82,
Department of Health,Salisbury NHS Foundation Trust,15-Oct-10,TISSUES HAND TOWELS & TOILET PAPER,Facilities Directorate,NHS LOGISTICS,WSWI1822850,15.22,
Department of Health,Salisbury NHS Foundation Trust,15-Oct-10,CLEANING MATERIALS PRODUCTS SUNDRIES,Facilities Directorate,NHS LOGISTICS,WSWI1822850,5.45,
Department of Health,Salisbury NHS Foundation Trust,15-Oct-10,TISSUES HAND TOWELS & TOILET PAPER,Facilities Directorate,NHS LOGISTICS,WSWI1822850,27.32,
Department of Health,Salisbury NHS Foundation Trust,15-Oct-10,TISSUES HAND TOWELS & TOILET PAPER,Facilities Directorate,NHS LOGISTICS,WSWI1822850,69.45,
Department of Health,Salisbury NHS Foundation Trust,15-Oct-10,MEDSURGCONS - OTHER,Facilities Directorate,NHS LOGISTICS,WSWI1822850,61.43,
Department of Health,Salisbury NHS Foundation Trust,15-Oct-10,MEDSURGCONS - OTHER,Facilities Directorate,NHS LOGISTICS,WSWI1822850,117.41,
Department of Health,Salisbury NHS Foundation Trust,15-Oct-10,MEDSURGCONS - OTHER,Facilities Directorate,NHS LOGISTICS,WSWI1822850,117.41,
Department of Health,Salisbury NHS Foundation Trust,15-Oct-10,MED SURG EQUIP REP MAINT CLEANING,Facilities Directorate,NHS LOGISTICS,WSWI1822850,79.4,
Department of Health,Salisbury NHS Foundation Trust,15-Oct-10,DRESSINGS  -  PROCEDURE PACKS,Facilities Directorate,NHS LOGISTICS,WSWI1822850,12.26,
Department of Health,Salisbury NHS Foundation Trust,15-Oct-10,OTHER MEDICAL SUPPLIES,Facilities Directorate,NHS LOGISTICS,WSWI1822850,93.62,
Department of Health,Salisbury NHS Foundation Trust,15-Oct-10,MEDSURGCONS - OTHER,Facilities Directorate,NHS LOGISTICS,WSWI1822850,67.74,
Department of Health,Salisbury NHS Foundation Trust,15-Oct-10,MEDSURGCONS - OTHER,Facilities Directorate,NHS LOGISTICS,WSWI1822850,93.62,
Department of Health,Salisbury NHS Foundation Trust,15-Oct-10,MEDSURGCONS - OTHER,Facilities Directorate,NHS LOGISTICS,WSWI1822850,36.17,
Department of Health,Salisbury NHS Foundation Trust,15-Oct-10,MEDSURGCONS - OTHER,Facilities Directorate,NHS LOGISTICS,WSWI1822850,71.56,
Department of Health,Salisbury NHS Foundation Trust,15-Oct-10,SURGICAL INSTRUMENTS: GENERAL,Facilities Directorate,NHS LOGISTICS,WSWI1822850,7.57,
Department of Health,Salisbury NHS Foundation Trust,15-Oct-10,SURGICAL INSTRUMENTS: GENERAL,Facilities Directorate,NHS LOGISTICS,WSWI1822850,24.82,
Department of Health,Salisbury NHS Foundation Trust,15-Oct-10,OTHER MEDICAL SUPPLIES,Facilities Directorate,NHS LOGISTICS,WSWI1822850,85.11,
Department of Health,Salisbury NHS Foundation Trust,15-Oct-10,SURGICAL INSTRUMENTS: GENERAL,Facilities Directorate,NHS LOGISTICS,WSWI1822850,48.36,
Department of Health,Salisbury NHS Foundation Trust,15-Oct-10,SURGICAL INSTRUMENTS: GENERAL,Facilities Directorate,NHS LOGISTICS,WSWI1822850,15.32,
Department of Health,Salisbury NHS Foundation Trust,15-Oct-10,OTHER MEDICAL SUPPLIES,Facilities Directorate,NHS LOGISTICS,WSWI1822850,131.23,
Department of Health,Salisbury NHS Foundation Trust,15-Oct-10,DENTAL SURGERY EQUIPMENT,Facilities Directorate,NHS LOGISTICS,WSWI1822850,14.67,
Department of Health,Salisbury NHS Foundation Trust,15-Oct-10,OTHER MEDICAL SUPPLIES,Facilities Directorate,NHS LOGISTICS,WSWI1822850,28.94,
Department of Health,Salisbury NHS Foundation Trust,15-Oct-10,MEDSURGCONS - OTHER,Facilities Directorate,NHS LOGISTICS,WSWI1822850,176.17,
Department of Health,Salisbury NHS Foundation Trust,15-Oct-10,MEDSURGCONS - OTHER,Facilities Directorate,NHS LOGISTICS,WSWI1822850,234.89,
Department of Health,Salisbury NHS Foundation Trust,15-Oct-10,MEDSURGCONS - OTHER,Facilities Directorate,NHS LOGISTICS,WSWI1822850,234.89,
Department of Health,Salisbury NHS Foundation Trust,15-Oct-10,MEDSURGCONS - OTHER,Facilities Directorate,NHS LOGISTICS,WSWI1822850,36.54,
Department of Health,Salisbury NHS Foundation Trust,15-Oct-10,HEALTHCARE - WEAR,Facilities Directorate,NHS LOGISTICS,WSWI1822850,8.21,
Department of Health,Salisbury NHS Foundation Trust,15-Oct-10,HEALTHCARE - WEAR,Facilities Directorate,NHS LOGISTICS,WSWI1822850,38.26,
Department of Health,Salisbury NHS Foundation Trust,15-Oct-10,M & S EQUIPELECTEQUIPINST - OTHER,Facilities Directorate,NHS LOGISTICS,WSWI1822850,35.03,
Department of Health,Salisbury NHS Foundation Trust,15-Oct-10,HEALTHCARE - WEAR,Facilities Directorate,NHS LOGISTICS,WSWI1822850,24.05,
Department of Health,Salisbury NHS Foundation Trust,15-Oct-10,OTHER MEDICAL SUPPLIES,Facilities Directorate,NHS LOGISTICS,WSWI1822850,97.45,
Department of Health,Salisbury NHS Foundation Trust,15-Oct-10,MEDSURGCONS - OTHER,Facilities Directorate,NHS LOGISTICS,WSWI1822850,142.98,
Department of Health,Salisbury NHS Foundation Trust,15-Oct-10,COOKING & KITCHEN UTENSILS,Facilities Directorate,NHS LOGISTICS,WSWI1822850,12.6,
Department of Health,Salisbury NHS Foundation Trust,15-Oct-10,TOILETRIES PERSONAL HYGIENE PRODUCTS,Facilities Directorate,NHS LOGISTICS,WSWI1822850,53.92,
Department of Health,Salisbury NHS Foundation Trust,15-Oct-10,NON DISPOSABLE THEATRE DRAPES WIPES,Facilities Directorate,NHS LOGISTICS,WSWI1822850,191.95,
Department of Health,Salisbury NHS Foundation Trust,15-Oct-10,MEDSURGCONS - OTHER,Facilities Directorate,NHS LOGISTICS,WSWI1822850,159.15,
Department of Health,Salisbury NHS Foundation Trust,15-Oct-10,MEDSURGCONS - OTHER,Facilities Directorate,NHS LOGISTICS,WSWI1822850,190.98,
Department of Health,Salisbury NHS Foundation Trust,15-Oct-10,MEDSURGCONS - OTHER,Facilities Directorate,NHS LOGISTICS,WSWI1822850,159.15,
Department of Health,Salisbury NHS Foundation Trust,15-Oct-10,MEDSURGCONS - OTHER,Facilities Directorate,NHS LOGISTICS,WSWI1822850,93.7,
Department of Health,Salisbury NHS Foundation Trust,15-Oct-10,SURGICAL INSTRUMENTS: GENERAL,Facilities Directorate,NHS LOGISTICS,WSWI1822850,15.32,
Department of Health,Salisbury NHS Foundation Trust,15-Oct-10,BAGS SACKS - OTHER,Facilities Directorate,NHS LOGISTICS,WSWI1822850,9.62,
Department of Health,Salisbury NHS Foundation Trust,15-Oct-10,DRESSINGS - PRE STERILE,Facilities Directorate,NHS LOGISTICS,WSWI1822850,8.06,
Department of Health,Salisbury NHS Foundation Trust,15-Oct-10,DRESSINGS - PRE STERILE,Facilities Directorate,NHS LOGISTICS,WSWI1822850,27.32,
Department of Health,Salisbury NHS Foundation Trust,15-Oct-10,DRESSINGS - PRE STERILE,Facilities Directorate,NHS LOGISTICS,WSWI1822850,3.83,
Department of Health,Salisbury NHS Foundation Trust,15-Oct-10,DRESSINGS - PRE STERILE,Facilities Directorate,NHS LOGISTICS,WSWI1822850,20.77,
Department of Health,Salisbury NHS Foundation Trust,15-Oct-10,M & S EQUIPELECTEQUIPINST - OTHER,Facilities Directorate,NHS LOGISTICS,WSWI1822850,23.23,
Department of Health,Salisbury NHS Foundation Trust,15-Oct-10,DRESSINGS  -  PROCEDURE PACKS,Facilities Directorate,NHS LOGISTICS,WSWI1822850,48.61,
Department of Health,Salisbury NHS Foundation Trust,15-Oct-10,STATIONERY SUNDRIES,Facilities Directorate,NHS LOGISTICS,WSWI1822850,3.37,
Department of Health,Salisbury NHS Foundation Trust,15-Oct-10,PAPER ITEMS GENERAL STATIONERY SUNDRIES,Facilities Directorate,NHS LOGISTICS,WSWI1822850,19.49,
Department of Health,Salisbury NHS Foundation Trust,15-Oct-10,HARD/SOFTWARE-OFF THE SHELF APPLICATIONS,Surgery,NHS LOGISTICS,WSWI1822850,16.27,
Department of Health,Salisbury NHS Foundation Trust,15-Oct-10,HARD/SOFTWARE-OFF THE SHELF APPLICATIONS,Surgery,NHS LOGISTICS,WSWI1822850,35.86,
Department of Health,Salisbury NHS Foundation Trust,15-Oct-10,DRESSINGS - PRE STERILE,Clinical Support and Family Services,NHS LOGISTICS,WSWI1822850,150.88,
Department of Health,Salisbury NHS Foundation Trust,15-Oct-10,DRESSINGS - PRE STERILE,Clinical Support and Family Services,NHS LOGISTICS,WSWI1822850,72.68,
Department of Health,Salisbury NHS Foundation Trust,15-Oct-10,DRESSINGS - PRE STERILE,Clinical Support and Family Services,NHS LOGISTICS,WSWI1822850,32.31,
Department of Health,Salisbury NHS Foundation Trust,15-Oct-10,DRESSINGS - PRE STERILE,Clinical Support and Family Services,NHS LOGISTICS,WSWI1822850,31.86,
Department of Health,Salisbury NHS Foundation Trust,15-Oct-10,DRESSINGS - PRE STERILE,Clinical Support and Family Services,NHS LOGISTICS,WSWI1822850,9,
Department of Health,Salisbury NHS Foundation Trust,15-Oct-10,DRESSINGS - PRE STERILE,Clinical Support and Family Services,NHS LOGISTICS,WSWI1822850,12.32,
Department of Health,Salisbury NHS Foundation Trust,15-Oct-10,DRUGS,Clinical Support and Family Services,NHS LOGISTICS,WSWI1822850,32.78,
Department of Health,Salisbury NHS Foundation Trust,15-Oct-10,DRESSINGS - PRE STERILE,Clinical Support and Family Services,NHS LOGISTICS,WSWI1822850,151.4,
Department of Health,Salisbury NHS Foundation Trust,15-Oct-10,DRUGS,Clinical Support and Family Services,NHS LOGISTICS,WSWI1822850,14.09,
Department of Health,Salisbury NHS Foundation Trust,15-Oct-10,DRUGS,Clinical Support and Family Services,NHS LOGISTICS,WSWI1822850,33.19,
Department of Health,Salisbury NHS Foundation Trust,15-Oct-10,DRESSINGS - PRE STERILE,Clinical Support and Family Services,NHS LOGISTICS,WSWI1822850,45.91,
Department of Health,Salisbury NHS Foundation Trust,15-Oct-10,PATIENTS BABY WEAR,Clinical Support and Family Services,NHS LOGISTICS,WSWI1822850,11.58,
Department of Health,Salisbury NHS Foundation Trust,15-Oct-10,DRESSINGS - PRE STERILE,Clinical Support and Family Services,NHS LOGISTICS,WSWI1822850,31.15,
Department of Health,Salisbury NHS Foundation Trust,15-Oct-10,DRESSINGS - PRE STERILE,Clinical Support and Family Services,NHS LOGISTICS,WSWI1822850,115.97,
Department of Health,Salisbury NHS Foundation Trust,15-Oct-10,DRESSINGS - PRE STERILE,Clinical Support and Family Services,NHS LOGISTICS,WSWI1822850,77.7,
Department of Health,Salisbury NHS Foundation Trust,15-Oct-10,DRUGS,Clinical Support and Family Services,NHS LOGISTICS,WSWI1822850,79.66,
Department of Health,Salisbury NHS Foundation Trust,15-Oct-10,DRUGS,Clinical Support and Family Services,NHS LOGISTICS,WSWI1822850,43.97,
Department of Health,Salisbury NHS Foundation Trust,15-Oct-10,DRUGS,Clinical Support and Family Services,NHS LOGISTICS,WSWI1822850,16.49,
Department of Health,Salisbury NHS Foundation Trust,15-Oct-10,PATIENTS BABY WEAR,Clinical Support and Family Services,NHS LOGISTICS,WSWI1822850,11.4,
Department of Health,Salisbury NHS Foundation Trust,15-Oct-10,PATIENTS BABY WEAR,Clinical Support and Family Services,NHS LOGISTICS,WSWI1822850,22.16,
Department of Health,Salisbury NHS Foundation Trust,15-Oct-10,DRESSINGS  -  PROCEDURE PACKS,Surgery,NHS LOGISTICS,WSWI1822850,1.02,
Department of Health,Salisbury NHS Foundation Trust,15-Oct-10,STATIONERY SUNDRIES,Surgery,NHS LOGISTICS,WSWI1822850,4.43,
Department of Health,Salisbury NHS Foundation Trust,15-Oct-10,DRESSINGS - PRE STERILE,Surgery,NHS LOGISTICS,WSWI1822850,41.53,
Department of Health,Salisbury NHS Foundation Trust,15-Oct-10,M & S EQUIPELECTEQUIPINST - OTHER,Surgery,NHS LOGISTICS,WSWI1822850,17.72,
Department of Health,Salisbury NHS Foundation Trust,15-Oct-10,DRESSINGS  -  PROCEDURE PACKS,Surgery,NHS LOGISTICS,WSWI1822850,8.51,
Department of Health,Salisbury NHS Foundation Trust,15-Oct-10,DRESSINGS  -  PROCEDURE PACKS,Surgery,NHS LOGISTICS,WSWI1822850,3.98,
Department of Health,Salisbury NHS Foundation Trust,15-Oct-10,SURGICAL INSTRUMENTS: GENERAL,Surgery,NHS LOGISTICS,WSWI1822850,4.14,
Department of Health,Salisbury NHS Foundation Trust,15-Oct-10,MEDSURGCONS - OTHER,Surgery,NHS LOGISTICS,WSWI1822850,3.62,
Department of Health,Salisbury NHS Foundation Trust,15-Oct-10,MEDSURGCONS - OTHER,Surgery,NHS LOGISTICS,WSWI1822850,17.7,
Department of Health,Salisbury NHS Foundation Trust,15-Oct-10,MEDSURGCONS - OTHER,Surgery,NHS LOGISTICS,WSWI1822850,19.61,
Department of Health,Salisbury NHS Foundation Trust,15-Oct-10,SURGICAL INSTRUMENTS: GENERAL,Critical care,NHS LOGISTICS,WSWI1822850,2.59,
Department of Health,Salisbury NHS Foundation Trust,15-Oct-10,OTHER MEDICAL SUPPLIES,Critical care,NHS LOGISTICS,WSWI1822850,5.19,
Department of Health,Salisbury NHS Foundation Trust,15-Oct-10,SURGICAL INSTRUMENTS: GENERAL,Critical care,NHS LOGISTICS,WSWI1822850,1.76,
Department of Health,Salisbury NHS Foundation Trust,15-Oct-10,MEDSURGCONS - OTHER,Critical care,NHS LOGISTICS,WSWI1822850,7.28,
Department of Health,Salisbury NHS Foundation Trust,15-Oct-10,DRESSINGS - PRE STERILE,Critical care,NHS LOGISTICS,WSWI1822850,5.22,
Department of Health,Salisbury NHS Foundation Trust,15-Oct-10,SURGICAL INSTRUMENTS: GENERAL,Critical care,NHS LOGISTICS,WSWI1822850,24.34,
Department of Health,Salisbury NHS Foundation Trust,15-Oct-10,DRESSINGS  -  PROCEDURE PACKS,Critical care,NHS LOGISTICS,WSWI1822850,0.51,
Department of Health,Salisbury NHS Foundation Trust,15-Oct-10,DRESSINGS - PRE STERILE,Critical care,NHS LOGISTICS,WSWI1822850,6.66,
Department of Health,Salisbury NHS Foundation Trust,15-Oct-10,MEDSURGCONS - OTHER,Critical care,NHS LOGISTICS,WSWI1822850,25.19,
Department of Health,Salisbury NHS Foundation Trust,15-Oct-10,COOKING & KITCHEN UTENSILS,Critical care,NHS LOGISTICS,WSWI1822850,0.65,
Department of Health,Salisbury NHS Foundation Trust,15-Oct-10,TISSUES HAND TOWELS & TOILET PAPER,Critical care,NHS LOGISTICS,WSWI1822850,12.38,
Department of Health,Salisbury NHS Foundation Trust,15-Oct-10,DISPOSABLE THEATRE DRAPES WIPES,Critical care,NHS LOGISTICS,WSWI1822850,4.68,
Department of Health,Salisbury NHS Foundation Trust,15-Oct-10,MEDSURGCONS - OTHER,Critical care,NHS LOGISTICS,WSWI1822850,0.89,
Department of Health,Salisbury NHS Foundation Trust,15-Oct-10,MEDSURGCONS - OTHER,Critical care,NHS LOGISTICS,WSWI1822850,0.89,
Department of Health,Salisbury NHS Foundation Trust,15-Oct-10,OTHER MEDICAL SUPPLIES,Medicine,NHS LOGISTICS,WSWI1822850,114.49,
Department of Health,Salisbury NHS Foundation Trust,15-Oct-10,SURGICAL INSTRUMENTS: GENERAL,Medicine,NHS LOGISTICS,WSWI1822850,16.2,
Department of Health,Salisbury NHS Foundation Trust,15-Oct-10,SURGICAL INSTRUMENTS: GENERAL,Medicine,NHS LOGISTICS,WSWI1822850,9.34,
Department of Health,Salisbury NHS Foundation Trust,15-Oct-10,OTHER MEDICAL SUPPLIES,Medicine,NHS LOGISTICS,WSWI1822850,38.16,
Department of Health,Salisbury NHS Foundation Trust,15-Oct-10,SURGICAL INSTRUMENTS: GENERAL,Medicine,NHS LOGISTICS,WSWI1822850,9.34,
Department of Health,Salisbury NHS Foundation Trust,15-Oct-10,MEDSURGCONS - OTHER,Facilities Directorate,NHS LOGISTICS,WSWI1822850,238.3,
Department of Health,Salisbury NHS Foundation Trust,15-Oct-10,SURGICAL INSTRUMENTS: GENERAL,Facilities Directorate,NHS LOGISTICS,WSWI1822850,63.83,
Department of Health,Salisbury NHS Foundation Trust,15-Oct-10,MEDSURGCONS - OTHER,Facilities Directorate,NHS LOGISTICS,WSWI1822850,5.21,
Department of Health,Salisbury NHS Foundation Trust,15-Oct-10,MEDSURGCONS - OTHER,Facilities Directorate,NHS LOGISTICS,WSWI1822850,115.1,
Department of Health,Salisbury NHS Foundation Trust,15-Oct-10,MEDSURGCONS - OTHER,Facilities Directorate,NHS LOGISTICS,WSWI1822850,6.98,
Department of Health,Salisbury NHS Foundation Trust,15-Oct-10,MEDSURGCONS - OTHER,Facilities Directorate,NHS LOGISTICS,WSWI1822850,64.68,
Department of Health,Salisbury NHS Foundation Trust,15-Oct-10,M & S EQUIPELECTEQUIPINST - OTHER,Facilities Directorate,NHS LOGISTICS,WSWI1822850,162.55,
Department of Health,Salisbury NHS Foundation Trust,15-Oct-10,DRESSINGS - PRE STERILE,Facilities Directorate,NHS LOGISTICS,WSWI1822850,27.55,
Department of Health,Salisbury NHS Foundation Trust,15-Oct-10,MEDSURGCONS - OTHER,Facilities Directorate,NHS LOGISTICS,WSWI1822850,187.61,
Department of Health,Salisbury NHS Foundation Trust,15-Oct-10,SURGICAL INSTRUMENTS: GENERAL,Facilities Directorate,NHS LOGISTICS,WSWI1822850,10.81,
Department of Health,Salisbury NHS Foundation Trust,15-Oct-10,STATIONERY SUNDRIES,Facilities Directorate,NHS LOGISTICS,WSWI1822850,6.97,
Department of Health,Salisbury NHS Foundation Trust,15-Oct-10,STATIONERY SUNDRIES,Facilities Directorate,NHS LOGISTICS,WSWI1822850,7.74,
Department of Health,Salisbury NHS Foundation Trust,15-Oct-10,MEDSURGCONS - OTHER,Critical care,NHS LOGISTICS,WSWI1822850,31.83,
Department of Health,Salisbury NHS Foundation Trust,15-Oct-10,MEDSURGCONS - OTHER,Critical care,NHS LOGISTICS,WSWI1822850,127.32,
Department of Health,Salisbury NHS Foundation Trust,15-Oct-10,MEDSURGCONS - OTHER,Critical care,NHS LOGISTICS,WSWI1822850,31.83,
Department of Health,Salisbury NHS Foundation Trust,15-Oct-10,TISSUES HAND TOWELS & TOILET PAPER,Critical care,NHS LOGISTICS,WSWI1822850,173.36,
Department of Health,Salisbury NHS Foundation Trust,15-Oct-10,DISPOSABLE THEATRE DRAPES WIPES,Critical care,NHS LOGISTICS,WSWI1822850,96.68,
Department of Health,Salisbury NHS Foundation Trust,15-Oct-10,PATIENT APPLIANCES,Critical care,NHS LOGISTICS,WSWI1822850,114.21,
Department of Health,Salisbury NHS Foundation Trust,15-Oct-10,PATIENT APPLIANCES,Critical care,NHS LOGISTICS,WSWI1822850,11.15,
Department of Health,Salisbury NHS Foundation Trust,15-Oct-10,TISSUES HAND TOWELS & TOILET PAPER,Critical care,NHS LOGISTICS,WSWI1822850,14.91,
Department of Health,Salisbury NHS Foundation Trust,15-Oct-10,DRESSINGS - PRE STERILE,Critical care,NHS LOGISTICS,WSWI1822850,1.82,
Department of Health,Salisbury NHS Foundation Trust,15-Oct-10,DRESSINGS - PRE STERILE,Critical care,NHS LOGISTICS,WSWI1822850,6.26,
Department of Health,Salisbury NHS Foundation Trust,15-Oct-10,DRESSINGS - PRE STERILE,Critical care,NHS LOGISTICS,WSWI1822850,1.51,
Department of Health,Salisbury NHS Foundation Trust,15-Oct-10,DRESSINGS - PRE STERILE,Critical care,NHS LOGISTICS,WSWI1822850,2.36,
Department of Health,Salisbury NHS Foundation Trust,15-Oct-10,DRESSINGS - PRE STERILE,Critical care,NHS LOGISTICS,WSWI1822850,4.13,
Department of Health,Salisbury NHS Foundation Trust,15-Oct-10,DRESSINGS - PRE STERILE,Critical care,NHS LOGISTICS,WSWI1822850,4.01,
Department of Health,Salisbury NHS Foundation Trust,15-Oct-10,M & S EQUIPELECTEQUIPINST - OTHER,Critical care,NHS LOGISTICS,WSWI1822850,21.17,
Department of Health,Salisbury NHS Foundation Trust,15-Oct-10,SURGICAL INSTRUMENTS: GENERAL,Critical care,NHS LOGISTICS,WSWI1822850,3.52,
Department of Health,Salisbury NHS Foundation Trust,15-Oct-10,OTHER MEDICAL SUPPLIES,Critical care,NHS LOGISTICS,WSWI1822850,3.61,
Department of Health,Salisbury NHS Foundation Trust,15-Oct-10,CLEANING MATERIALS PRODUCTS SUNDRIES,Critical care,NHS LOGISTICS,WSWI1822850,7.83,
Department of Health,Salisbury NHS Foundation Trust,15-Oct-10,ELECTRICAL EQUIPMENT x,Critical care,NHS LOGISTICS,WSWI1822850,4.52,
Department of Health,Salisbury NHS Foundation Trust,15-Oct-10,M & S EQUIPELECTEQUIPINST - OTHER,Critical care,NHS LOGISTICS,WSWI1822850,141.75,
Department of Health,Salisbury NHS Foundation Trust,15-Oct-10,MEDSURGCONS - OTHER,Critical care,NHS LOGISTICS,WSWI1822850,19.88,
Department of Health,Salisbury NHS Foundation Trust,15-Oct-10,DRUGS,Critical care,NHS LOGISTICS,WSWI1822850,5.57,
Department of Health,Salisbury NHS Foundation Trust,15-Oct-10,DRUGS,Critical care,NHS LOGISTICS,WSWI1822850,32.78,
Department of Health,Salisbury NHS Foundation Trust,15-Oct-10,DRUGS,Critical care,NHS LOGISTICS,WSWI1822850,8.73,
Department of Health,Salisbury NHS Foundation Trust,15-Oct-10,DRUGS,Critical care,NHS LOGISTICS,WSWI1822850,1.54,
Department of Health,Salisbury NHS Foundation Trust,15-Oct-10,MEDSURGCONS - OTHER,Critical care,NHS LOGISTICS,WSWI1822850,55.25,
Department of Health,Salisbury NHS Foundation Trust,15-Oct-10,MEDSURGCONS - OTHER,Critical care,NHS LOGISTICS,WSWI1822850,55.25,
Department of Health,Salisbury NHS Foundation Trust,15-Oct-10,MEDSURGCONS - OTHER,Critical care,NHS LOGISTICS,WSWI1822850,92.09,
Department of Health,Salisbury NHS Foundation Trust,15-Oct-10,TISSUES HAND TOWELS & TOILET PAPER,Surgery,NHS LOGISTICS,WSWI1822850,1.51,
Department of Health,Salisbury NHS Foundation Trust,15-Oct-10,COOKING & KITCHEN UTENSILS,Surgery,NHS LOGISTICS,WSWI1822850,1.29,
Department of Health,Salisbury NHS Foundation Trust,15-Oct-10,TOILETRIES PERSONAL HYGIENE PRODUCTS,Surgery,NHS LOGISTICS,WSWI1822850,5.49,
Department of Health,Salisbury NHS Foundation Trust,15-Oct-10,DISPOSABLE THEATRE DRAPES WIPES,Surgery,NHS LOGISTICS,WSWI1822850,2.96,
Department of Health,Salisbury NHS Foundation Trust,15-Oct-10,DISPOSABLE THEATRE DRAPES WIPES,Surgery,NHS LOGISTICS,WSWI1822850,3.74,
Department of Health,Salisbury NHS Foundation Trust,15-Oct-10,DRESSINGS  -  PROCEDURE PACKS,Surgery,NHS LOGISTICS,WSWI1822850,3.72,
Department of Health,Salisbury NHS Foundation Trust,15-Oct-10,DRESSINGS  -  PROCEDURE PACKS,Surgery,NHS LOGISTICS,WSWI1822850,0.3,
Department of Health,Salisbury NHS Foundation Trust,15-Oct-10,DISPOSABLE BED LINEN,Surgery,NHS LOGISTICS,WSWI1822850,22.89,
Department of Health,Salisbury NHS Foundation Trust,15-Oct-10,DRESSINGS - PRE STERILE,Surgery,NHS LOGISTICS,WSWI1822850,14.09,
Department of Health,Salisbury NHS Foundation Trust,15-Oct-10,OTHER MEDICAL SUPPLIES,Surgery,NHS LOGISTICS,WSWI1822850,1.45,
Department of Health,Salisbury NHS Foundation Trust,15-Oct-10,MEDSURGCONS - OTHER,Surgery,NHS LOGISTICS,WSWI1822850,2.33,
Department of Health,Salisbury NHS Foundation Trust,15-Oct-10,MEDSURGCONS - OTHER,Surgery,NHS LOGISTICS,WSWI1822850,21.9,
Department of Health,Salisbury NHS Foundation Trust,15-Oct-10,TISSUES HAND TOWELS & TOILET PAPER,Surgery,NHS LOGISTICS,WSWI1822850,30.43,
Department of Health,Salisbury NHS Foundation Trust,15-Oct-10,COOKING & KITCHEN UTENSILS,Surgery,NHS LOGISTICS,WSWI1822850,1.94,
Department of Health,Salisbury NHS Foundation Trust,15-Oct-10,DRESSINGS  -  PROCEDURE PACKS,Surgery,NHS LOGISTICS,WSWI1822850,4.34,
Department of Health,Salisbury NHS Foundation Trust,15-Oct-10,MEDSURGCONS - OTHER,Surgery,NHS LOGISTICS,WSWI1822850,18.47,
Department of Health,Salisbury NHS Foundation Trust,15-Oct-10,SURGICAL INSTRUMENTS: DISPOSABLE,Surgery,NHS LOGISTICS,WSWI1822850,1.72,
Department of Health,Salisbury NHS Foundation Trust,15-Oct-10,DRESSINGS  -  PROCEDURE PACKS,Surgery,NHS LOGISTICS,WSWI1822850,2.59,
Department of Health,Salisbury NHS Foundation Trust,15-Oct-10,ELECTRICAL EQUIPMENT x,Surgery,NHS LOGISTICS,WSWI1822850,3.01,
Department of Health,Salisbury NHS Foundation Trust,15-Oct-10,STATIONERY SUNDRIES,Surgery,NHS LOGISTICS,WSWI1822850,2.11,
Department of Health,Salisbury NHS Foundation Trust,15-Oct-10,DRESSINGS - PRE STERILE,Surgery,NHS LOGISTICS,WSWI1822850,32.85,
Department of Health,Salisbury NHS Foundation Trust,15-Oct-10,MEDSURGCONS-SUTURES,Surgery,NHS LOGISTICS,WSWI1822850,34.84,
Department of Health,Salisbury NHS Foundation Trust,15-Oct-10,MEDSURGCONS - OTHER,Surgery,NHS LOGISTICS,WSWI1822850,47.29,
Department of Health,Salisbury NHS Foundation Trust,15-Oct-10,MEDSURGCONS - OTHER,Surgery,NHS LOGISTICS,WSWI1822850,37.82,
Department of Health,Salisbury NHS Foundation Trust,15-Oct-10,MEDSURGCONS-LAPAROSCOPIC EQUIPMENT,Surgery,NHS LOGISTICS,WSWI1822850,233.71,
Department of Health,Salisbury NHS Foundation Trust,15-Oct-10,SURGICAL INSTRUMENTS: GENERAL,Surgery,NHS LOGISTICS,WSWI1822850,41.37,
Department of Health,Salisbury NHS Foundation Trust,15-Oct-10,OPTICAL  -  OTHER,Surgery,NHS LOGISTICS,WSWI1822850,28.32,
Department of Health,Salisbury NHS Foundation Trust,15-Oct-10,BEVERAGES & AMBIENT FOOD,Surgery,NHS LOGISTICS,WSWI1822850,13.71,
Department of Health,Salisbury NHS Foundation Trust,15-Oct-10,BEVERAGES & AMBIENT FOOD,Surgery,NHS LOGISTICS,WSWI1822850,7.33,
Department of Health,Salisbury NHS Foundation Trust,15-Oct-10,BEVERAGES & AMBIENT FOOD,Surgery,NHS LOGISTICS,WSWI1822850,2.96,
Department of Health,Salisbury NHS Foundation Trust,15-Oct-10,BEVERAGES & AMBIENT FOOD,Surgery,NHS LOGISTICS,WSWI1822850,10.2,
Department of Health,Salisbury NHS Foundation Trust,15-Oct-10,HEALTHCARE - WEAR,Surgery,NHS LOGISTICS,WSWI1822850,70.24,
Department of Health,Salisbury NHS Foundation Trust,15-Oct-10,SURGICAL INSTRUMENTS: GENERAL,Surgery,NHS LOGISTICS,WSWI1822850,5.38,
Department of Health,Salisbury NHS Foundation Trust,15-Oct-10,M & S EQUIPELECTEQUIPINST - OTHER,Surgery,NHS LOGISTICS,WSWI1822850,9.53,
Department of Health,Salisbury NHS Foundation Trust,15-Oct-10,DRESSINGS  -  PROCEDURE PACKS,Surgery,NHS LOGISTICS,WSWI1822850,11.28,
Department of Health,Salisbury NHS Foundation Trust,15-Oct-10,MEDSURGCONS - OTHER,Surgery,NHS LOGISTICS,WSWI1822850,14.77,
Department of Health,Salisbury NHS Foundation Trust,15-Oct-10,MEDSURGCONS - OTHER,Surgery,NHS LOGISTICS,WSWI1822850,14.77,
Department of Health,Salisbury NHS Foundation Trust,15-Oct-10,MEDSURGCONS - OTHER,Surgery,NHS LOGISTICS,WSWI1822850,14.77,
Department of Health,Salisbury NHS Foundation Trust,15-Oct-10,PATIENT APPLIANCES,Surgery,NHS LOGISTICS,WSWI1822850,5.71,
Department of Health,Salisbury NHS Foundation Trust,15-Oct-10,MEDSURGCONS - OTHER,Surgery,NHS LOGISTICS,WSWI1822850,9.79,
Department of Health,Salisbury NHS Foundation Trust,15-Oct-10,COOKING & KITCHEN UTENSILS,Surgery,NHS LOGISTICS,WSWI1822850,6.2,
Department of Health,Salisbury NHS Foundation Trust,15-Oct-10,DRUGS,Surgery,NHS LOGISTICS,WSWI1822850,5.06,
Department of Health,Salisbury NHS Foundation Trust,15-Oct-10,DRUGS,Surgery,NHS LOGISTICS,WSWI1822850,2.96,
Department of Health,Salisbury NHS Foundation Trust,15-Oct-10,DRUGS,Surgery,NHS LOGISTICS,WSWI1822850,8.73,
Department of Health,Salisbury NHS Foundation Trust,15-Oct-10,DRUGS,Surgery,NHS LOGISTICS,WSWI1822850,8.4,
Department of Health,Salisbury NHS Foundation Trust,15-Oct-10,DRUGS,Surgery,NHS LOGISTICS,WSWI1822850,3.08,
Department of Health,Salisbury NHS Foundation Trust,15-Oct-10,DRUGS,Surgery,NHS LOGISTICS,WSWI1822850,12.19,
Department of Health,Salisbury NHS Foundation Trust,15-Oct-10,DRUGS,Surgery,NHS LOGISTICS,WSWI1822850,2.78,
Department of Health,Salisbury NHS Foundation Trust,15-Oct-10,MEDSURGCONS - OTHER,Surgery,NHS LOGISTICS,WSWI1822850,29.89,
Department of Health,Salisbury NHS Foundation Trust,15-Oct-10,MEDSURGCONS - OTHER,Surgery,NHS LOGISTICS,WSWI1822850,63.66,
Department of Health,Salisbury NHS Foundation Trust,15-Oct-10,MEDSURGCONS - OTHER,Surgery,NHS LOGISTICS,WSWI1822850,29.89,
Department of Health,Salisbury NHS Foundation Trust,15-Oct-10,MEDSURGCONS - OTHER,Surgery,NHS LOGISTICS,WSWI1822850,11.21,
Department of Health,Salisbury NHS Foundation Trust,15-Oct-10,MEDSURGCONS - OTHER,Surgery,NHS LOGISTICS,WSWI1822850,195.35,
Department of Health,Salisbury NHS Foundation Trust,15-Oct-10,MEDSURGCONS - OTHER,Surgery,NHS LOGISTICS,WSWI1822850,293.03,
Department of Health,Salisbury NHS Foundation Trust,15-Oct-10,MEDSURGCONS - OTHER,Surgery,NHS LOGISTICS,WSWI1822850,97.68,
Department of Health,Salisbury NHS Foundation Trust,15-Oct-10,MEDSURGCONS - OTHER,Surgery,NHS LOGISTICS,WSWI1822850,195.35,
Department of Health,Salisbury NHS Foundation Trust,15-Oct-10,MEDSURGCONS - OTHER,Surgery,NHS LOGISTICS,WSWI1822850,97.68,
Department of Health,Salisbury NHS Foundation Trust,15-Oct-10,DRESSINGS - PRE STERILE,Surgery,NHS LOGISTICS,WSWI1822850,27.79,
Department of Health,Salisbury NHS Foundation Trust,15-Oct-10,DRESSINGS - PRE STERILE,Surgery,NHS LOGISTICS,WSWI1822850,13.93,
Department of Health,Salisbury NHS Foundation Trust,15-Oct-10,DRESSINGS - PRE STERILE,Surgery,NHS LOGISTICS,WSWI1822850,22.26,
Department of Health,Salisbury NHS Foundation Trust,15-Oct-10,DRESSINGS - PRE STERILE,Surgery,NHS LOGISTICS,WSWI1822850,22.26,
Department of Health,Salisbury NHS Foundation Trust,15-Oct-10,SURGICAL INSTRUMENTS: GENERAL,Surgery,NHS LOGISTICS,WSWI1822850,39.9,
Department of Health,Salisbury NHS Foundation Trust,15-Oct-10,TISSUES HAND TOWELS & TOILET PAPER,Surgery,NHS LOGISTICS,WSWI1822850,6.13,
Department of Health,Salisbury NHS Foundation Trust,15-Oct-10,DRESSINGS  -  PROCEDURE PACKS,Surgery,NHS LOGISTICS,WSWI1822850,10.55,
Department of Health,Salisbury NHS Foundation Trust,15-Oct-10,DRESSINGS - PRE STERILE,Surgery,NHS LOGISTICS,WSWI1822850,6.26,
Department of Health,Salisbury NHS Foundation Trust,15-Oct-10,DRESSINGS - PRE STERILE,Surgery,NHS LOGISTICS,WSWI1822850,32.85,
Department of Health,Salisbury NHS Foundation Trust,15-Oct-10,DRESSINGS - PRE STERILE,Surgery,NHS LOGISTICS,WSWI1822850,3.74,
Department of Health,Salisbury NHS Foundation Trust,15-Oct-10,DRESSINGS - PRE STERILE,Surgery,NHS LOGISTICS,WSWI1822850,15.86,
Department of Health,Salisbury NHS Foundation Trust,15-Oct-10,DRESSINGS - PRE STERILE,Surgery,NHS LOGISTICS,WSWI1822850,5.92,
Department of Health,Salisbury NHS Foundation Trust,15-Oct-10,MEDSURGCONS - OTHER,Surgery,NHS LOGISTICS,WSWI1822850,13.74,
Department of Health,Salisbury NHS Foundation Trust,15-Oct-10,MEDSURGCONS - OTHER,Surgery,NHS LOGISTICS,WSWI1822850,5.65,
Department of Health,Salisbury NHS Foundation Trust,15-Oct-10,MEDSURGCONS - OTHER,Surgery,NHS LOGISTICS,WSWI1822850,15.93,
Department of Health,Salisbury NHS Foundation Trust,15-Oct-10,MEDSURGCONS - OTHER,Surgery,NHS LOGISTICS,WSWI1822850,19.23,
Department of Health,Salisbury NHS Foundation Trust,15-Oct-10,MEDSURGCONS - OTHER,Surgery,NHS LOGISTICS,WSWI1822850,18.47,
Department of Health,Salisbury NHS Foundation Trust,15-Oct-10,OTHER MEDICAL SUPPLIES,Surgery,NHS LOGISTICS,WSWI1822850,2.74,
Department of Health,Salisbury NHS Foundation Trust,15-Oct-10,OTHER MEDICAL SUPPLIES,Surgery,NHS LOGISTICS,WSWI1822850,33.5,
Department of Health,Salisbury NHS Foundation Trust,15-Oct-10,MEDSURGCONS - OTHER,Surgery,NHS LOGISTICS,WSWI1822850,10.21,
Department of Health,Salisbury NHS Foundation Trust,15-Oct-10,MEDSURGCONS - OTHER,Surgery,NHS LOGISTICS,WSWI1822850,48.51,
Department of Health,Salisbury NHS Foundation Trust,15-Oct-10,DISPOSABLE THEATRE DRAPES WIPES,Surgery,NHS LOGISTICS,WSWI1822850,18.79,
Department of Health,Salisbury NHS Foundation Trust,15-Oct-10,M & S EQUIPELECTEQUIPINST - OTHER,Surgery,NHS LOGISTICS,WSWI1822850,12.89,
Department of Health,Salisbury NHS Foundation Trust,15-Oct-10,HEALTHCARE - WEAR,Surgery,NHS LOGISTICS,WSWI1822850,6.74,
Department of Health,Salisbury NHS Foundation Trust,15-Oct-10,BAGS SACKS - OTHER,Surgery,NHS LOGISTICS,WSWI1822850,10.19,
Department of Health,Salisbury NHS Foundation Trust,15-Oct-10,BAGS SACKS - OTHER,Surgery,NHS LOGISTICS,WSWI1822850,3.33,
Department of Health,Salisbury NHS Foundation Trust,15-Oct-10,BAGS SACKS - OTHER,Surgery,NHS LOGISTICS,WSWI1822850,67.71,
Department of Health,Salisbury NHS Foundation Trust,15-Oct-10,ANAESTHETIC EQUIPMENT ACCESSORIES,Surgery,NHS LOGISTICS,WSWI1822850,32.6,
Department of Health,Salisbury NHS Foundation Trust,15-Oct-10,TUBES,Surgery,NHS LOGISTICS,WSWI1822850,32.43,
Department of Health,Salisbury NHS Foundation Trust,15-Oct-10,MEDSURGCONS - OTHER,Surgery,NHS LOGISTICS,WSWI1822850,72.02,
Department of Health,Salisbury NHS Foundation Trust,15-Oct-10,OTHER MEDICAL SUPPLIES,Surgery,NHS LOGISTICS,WSWI1822850,27.44,
Department of Health,Salisbury NHS Foundation Trust,15-Oct-10,OTHER MEDICAL SUPPLIES,Surgery,NHS LOGISTICS,WSWI1822850,8.24,
Department of Health,Salisbury NHS Foundation Trust,15-Oct-10,OTHER MEDICAL SUPPLIES,Surgery,NHS LOGISTICS,WSWI1822850,14.3,
Department of Health,Salisbury NHS Foundation Trust,15-Oct-10,NON DISPOSABLE BED LINEN,Surgery,NHS LOGISTICS,WSWI1822850,38.06,
Department of Health,Salisbury NHS Foundation Trust,15-Oct-10,M & S EQUIPELECTEQUIPINST - OTHER,Surgery,NHS LOGISTICS,WSWI1822850,5.84,
Department of Health,Salisbury NHS Foundation Trust,15-Oct-10,M & S EQUIPELECTEQUIPINST - OTHER,Surgery,NHS LOGISTICS,WSWI1822850,6.28,
Department of Health,Salisbury NHS Foundation Trust,15-Oct-10,ANAESTHETIC EQUIPMENT ACCESSORIES,Surgery,NHS LOGISTICS,WSWI1822850,15.49,
Department of Health,Salisbury NHS Foundation Trust,15-Oct-10,OTHER MEDICAL SUPPLIES,Surgery,NHS LOGISTICS,WSWI1822850,2.87,
Department of Health,Salisbury NHS Foundation Trust,15-Oct-10,DRESSINGS - PRE STERILE,Surgery,NHS LOGISTICS,WSWI1822850,0.54,
Department of Health,Salisbury NHS Foundation Trust,15-Oct-10,DRESSINGS  -  PROCEDURE PACKS,Surgery,NHS LOGISTICS,WSWI1822850,4.07,
Department of Health,Salisbury NHS Foundation Trust,15-Oct-10,OTHER MEDICAL SUPPLIES,Surgery,NHS LOGISTICS,WSWI1822850,16.6,
Department of Health,Salisbury NHS Foundation Trust,15-Oct-10,OTHER MEDICAL SUPPLIES,Surgery,NHS LOGISTICS,WSWI1822850,25.53,
Department of Health,Salisbury NHS Foundation Trust,15-Oct-10,OTHER MEDICAL SUPPLIES,Surgery,NHS LOGISTICS,WSWI1822850,35.41,
Department of Health,Salisbury NHS Foundation Trust,15-Oct-10,MEDSURGCONS - OTHER,Surgery,NHS LOGISTICS,WSWI1822850,17.88,
Department of Health,Salisbury NHS Foundation Trust,15-Oct-10,MEDSURGCONS - OTHER,Surgery,NHS LOGISTICS,WSWI1822850,58.72,
Department of Health,Salisbury NHS Foundation Trust,15-Oct-10,MEDSURGCONS - OTHER,Surgery,NHS LOGISTICS,WSWI1822850,15.74,
Department of Health,Salisbury NHS Foundation Trust,15-Oct-10,MEDSURGCONS - OTHER,Surgery,NHS LOGISTICS,WSWI1822850,29.36,
Department of Health,Salisbury NHS Foundation Trust,15-Oct-10,SURGICAL INSTRUMENTS: GENERAL,Surgery,NHS LOGISTICS,WSWI1822850,1.36,
Department of Health,Salisbury NHS Foundation Trust,15-Oct-10,OTHER MEDICAL SUPPLIES,Surgery,NHS LOGISTICS,WSWI1822850,41.53,
Department of Health,Salisbury NHS Foundation Trust,15-Oct-10,OTHER MEDICAL SUPPLIES,Surgery,NHS LOGISTICS,WSWI1822850,23.15,
Department of Health,Salisbury NHS Foundation Trust,15-Oct-10,OTHER MEDICAL SUPPLIES,Surgery,NHS LOGISTICS,WSWI1822850,2.39,
Department of Health,Salisbury NHS Foundation Trust,15-Oct-10,MEDSURGCONS - OTHER,Surgery,NHS LOGISTICS,WSWI1822850,102.96,
Department of Health,Salisbury NHS Foundation Trust,15-Oct-10,MEDSURGCONS - OTHER,Surgery,NHS LOGISTICS,WSWI1822850,11.23,
Department of Health,Salisbury NHS Foundation Trust,15-Oct-10,MEDSURGCONS - OTHER,Surgery,NHS LOGISTICS,WSWI1822850,8.43,
Department of Health,Salisbury NHS Foundation Trust,15-Oct-10,MEDSURGCONS - OTHER,Surgery,NHS LOGISTICS,WSWI1822850,16.34,
Department of Health,Salisbury NHS Foundation Trust,15-Oct-10,SURGICAL INSTRUMENTS: GENERAL,Surgery,NHS LOGISTICS,WSWI1822850,8.06,
Department of Health,Salisbury NHS Foundation Trust,15-Oct-10,SURGICAL INSTRUMENTS: GENERAL,Surgery,NHS LOGISTICS,WSWI1822850,6.47,
Department of Health,Salisbury NHS Foundation Trust,15-Oct-10,SURGICAL INSTRUMENTS: DISPOSABLE,Surgery,NHS LOGISTICS,WSWI1822850,5.63,
Department of Health,Salisbury NHS Foundation Trust,15-Oct-10,SURGICAL INSTRUMENTS: DISPOSABLE,Surgery,NHS LOGISTICS,WSWI1822850,5.63,
Department of Health,Salisbury NHS Foundation Trust,15-Oct-10,MEDSURGCONS-SUTURES,Surgery,NHS LOGISTICS,WSWI1822850,39.36,
Department of Health,Salisbury NHS Foundation Trust,15-Oct-10,MEDSURGCONS-SUTURES,Surgery,NHS LOGISTICS,WSWI1822850,17.04,
Department of Health,Salisbury NHS Foundation Trust,15-Oct-10,MEDSURGCONS-SUTURES,Surgery,NHS LOGISTICS,WSWI1822850,104.41,
Department of Health,Salisbury NHS Foundation Trust,15-Oct-10,MEDSURGCONS-SUTURES,Surgery,NHS LOGISTICS,WSWI1822850,35.07,
Department of Health,Salisbury NHS Foundation Trust,15-Oct-10,MEDSURGCONS-SUTURES,Surgery,NHS LOGISTICS,WSWI1822850,21.51,
Department of Health,Salisbury NHS Foundation Trust,15-Oct-10,MEDSURGCONS-SUTURES,Surgery,NHS LOGISTICS,WSWI1822850,60.11,
Department of Health,Salisbury NHS Foundation Trust,15-Oct-10,MEDSURGCONS-SUTURES,Surgery,NHS LOGISTICS,WSWI1822850,59.54,
Department of Health,Salisbury NHS Foundation Trust,15-Oct-10,MEDSURGCONS-SUTURES,Surgery,NHS LOGISTICS,WSWI1822850,134.22,
Department of Health,Salisbury NHS Foundation Trust,15-Oct-10,MEDSURGCONS-SUTURES,Surgery,NHS LOGISTICS,WSWI1822850,36.3,
Department of Health,Salisbury NHS Foundation Trust,15-Oct-10,MEDSURGCONS-SUTURES,Surgery,NHS LOGISTICS,WSWI1822850,27.76,
Department of Health,Salisbury NHS Foundation Trust,15-Oct-10,MEDSURGCONS-SUTURES,Surgery,NHS LOGISTICS,WSWI1822850,39.69,
Department of Health,Salisbury NHS Foundation Trust,15-Oct-10,MEDSURGCONS-SUTURES,Surgery,NHS LOGISTICS,WSWI1822850,40.66,
Department of Health,Salisbury NHS Foundation Trust,15-Oct-10,MEDSURGCONS-SUTURES,Surgery,NHS LOGISTICS,WSWI1822850,82.76,
Department of Health,Salisbury NHS Foundation Trust,15-Oct-10,TISSUES HAND TOWELS & TOILET PAPER,Clinical Support and Family Services,NHS LOGISTICS,WSWI1822850,24.77,
Department of Health,Salisbury NHS Foundation Trust,15-Oct-10,BABY TEXTURE MODIFIED FOODS,Clinical Support and Family Services,NHS LOGISTICS,WSWI1822850,13.68,
Department of Health,Salisbury NHS Foundation Trust,15-Oct-10,DRUGS,Medicine,NHS LOGISTICS,WSWI1822850,2.78,
Department of Health,Salisbury NHS Foundation Trust,15-Oct-10,DRUGS,Medicine,NHS LOGISTICS,WSWI1822850,1.66,
Department of Health,Salisbury NHS Foundation Trust,15-Oct-10,PATIENT APPLIANCES,Medicine,NHS LOGISTICS,WSWI1822850,20.09,
Department of Health,Salisbury NHS Foundation Trust,15-Oct-10,PATIENT APPLIANCES,Medicine,NHS LOGISTICS,WSWI1822850,20.09,
Department of Health,Salisbury NHS Foundation Trust,15-Oct-10,PATIENT APPLIANCES,Medicine,NHS LOGISTICS,WSWI1822850,20.09,
Department of Health,Salisbury NHS Foundation Trust,15-Oct-10,MEDSURGCONS - OTHER,Medicine,NHS LOGISTICS,WSWI1822850,5.95,
Department of Health,Salisbury NHS Foundation Trust,15-Oct-10,SURGICAL INSTRUMENTS: GENERAL,Medicine,NHS LOGISTICS,WSWI1822850,7.94,
Department of Health,Salisbury NHS Foundation Trust,15-Oct-10,ANAESTHETIC EQUIPMENT ACCESSORIES,Medicine,NHS LOGISTICS,WSWI1822850,1.96,
Department of Health,Salisbury NHS Foundation Trust,15-Oct-10,ANAESTHETIC EQUIPMENT ACCESSORIES,Medicine,NHS LOGISTICS,WSWI1822850,1.57,
Department of Health,Salisbury NHS Foundation Trust,15-Oct-10,OTHER MEDICAL SUPPLIES,Medicine,NHS LOGISTICS,WSWI1822850,1.97,
Department of Health,Salisbury NHS Foundation Trust,15-Oct-10,ANAESTHETIC EQUIPMENT ACCESSORIES,Medicine,NHS LOGISTICS,WSWI1822850,20.68,
Department of Health,Salisbury NHS Foundation Trust,15-Oct-10,ANAESTHETIC EQUIPMENT ACCESSORIES,Medicine,NHS LOGISTICS,WSWI1822850,4.77,
Department of Health,Salisbury NHS Foundation Trust,15-Oct-10,MEDSURGCONS - OTHER,Medicine,NHS LOGISTICS,WSWI1822850,8.85,
Department of Health,Salisbury NHS Foundation Trust,15-Oct-10,MEDSURGCONS - OTHER,Medicine,NHS LOGISTICS,WSWI1822850,4.72,
Department of Health,Salisbury NHS Foundation Trust,15-Oct-10,MEDSURGCONS - OTHER,Medicine,NHS LOGISTICS,WSWI1822850,2.55,
Department of Health,Salisbury NHS Foundation Trust,15-Oct-10,TUBES,Medicine,NHS LOGISTICS,WSWI1822850,6.89,
Department of Health,Salisbury NHS Foundation Trust,15-Oct-10,OTHER MEDICAL SUPPLIES,Medicine,NHS LOGISTICS,WSWI1822850,11.12,
Department of Health,Salisbury NHS Foundation Trust,15-Oct-10,OTHER MEDICAL SUPPLIES,Medicine,NHS LOGISTICS,WSWI1822850,5.64,
Department of Health,Salisbury NHS Foundation Trust,15-Oct-10,MEDSURGCONS - OTHER,Medicine,NHS LOGISTICS,WSWI1822850,48.94,
Department of Health,Salisbury NHS Foundation Trust,15-Oct-10,DRESSINGS - PRE STERILE,Medicine,NHS LOGISTICS,WSWI1822850,98.55,
Department of Health,Salisbury NHS Foundation Trust,15-Oct-10,MEDSURGCONS - OTHER,Medicine,NHS LOGISTICS,WSWI1822850,9.16,
Department of Health,Salisbury NHS Foundation Trust,15-Oct-10,MEDSURGCONS - OTHER,Medicine,NHS LOGISTICS,WSWI1822850,36,
Department of Health,Salisbury NHS Foundation Trust,15-Oct-10,SURGICAL INSTRUMENTS: GENERAL,Medicine,NHS LOGISTICS,WSWI1822850,7.91,
Department of Health,Salisbury NHS Foundation Trust,15-Oct-10,OTHER MEDICAL SUPPLIES,Medicine,NHS LOGISTICS,WSWI1822850,80.94,
Department of Health,Salisbury NHS Foundation Trust,15-Oct-10,OTHER MEDICAL SUPPLIES,Medicine,NHS LOGISTICS,WSWI1822850,15.02,
Department of Health,Salisbury NHS Foundation Trust,15-Oct-10,PATIENT APPLIANCES,Medicine,NHS LOGISTICS,WSWI1822850,41.8,
Department of Health,Salisbury NHS Foundation Trust,15-Oct-10,MEDSURGCONS-SUTURES,Medicine,NHS LOGISTICS,WSWI1822850,13.28,
Department of Health,Salisbury NHS Foundation Trust,15-Oct-10,MEDSURGCONS-SUTURES,Medicine,NHS LOGISTICS,WSWI1822850,12.97,
Department of Health,Salisbury NHS Foundation Trust,15-Oct-10,M & S EQUIPELECTEQUIPINST - OTHER,Medicine,NHS LOGISTICS,WSWI1822850,7.85,
Department of Health,Salisbury NHS Foundation Trust,15-Oct-10,DRESSINGS - PRE STERILE,Medicine,NHS LOGISTICS,WSWI1822850,2.23,
Department of Health,Salisbury NHS Foundation Trust,15-Oct-10,PATIENTS BEDWEAR UNISEX,Medicine,NHS LOGISTICS,WSWI1822850,21.21,
Department of Health,Salisbury NHS Foundation Trust,15-Oct-10,SURGICAL INSTRUMENTS: GENERAL,Medicine,NHS LOGISTICS,WSWI1822850,1.76,
Department of Health,Salisbury NHS Foundation Trust,15-Oct-10,MEDSURGCONS - OTHER,Medicine,NHS LOGISTICS,WSWI1822850,28.05,
Department of Health,Salisbury NHS Foundation Trust,15-Oct-10,OTHER MEDICAL SUPPLIES,Medicine,NHS LOGISTICS,WSWI1822850,15.63,
Department of Health,Salisbury NHS Foundation Trust,15-Oct-10,DRESSINGS - PRE STERILE,Medicine,NHS LOGISTICS,WSWI1822850,19.74,
Department of Health,Salisbury NHS Foundation Trust,15-Oct-10,DRESSINGS - PRE STERILE,Medicine,NHS LOGISTICS,WSWI1822850,6.66,
Department of Health,Salisbury NHS Foundation Trust,15-Oct-10,DRESSINGS - PRE STERILE,Medicine,NHS LOGISTICS,WSWI1822850,5.53,
Department of Health,Salisbury NHS Foundation Trust,15-Oct-10,DRESSINGS - PRE STERILE,Medicine,NHS LOGISTICS,WSWI1822850,4.02,
Department of Health,Salisbury NHS Foundation Trust,15-Oct-10,DRESSINGS - PRE STERILE,Medicine,NHS LOGISTICS,WSWI1822850,8.14,
Department of Health,Salisbury NHS Foundation Trust,15-Oct-10,DRESSINGS - PRE STERILE,Medicine,NHS LOGISTICS,WSWI1822850,4.37,
Department of Health,Salisbury NHS Foundation Trust,15-Oct-10,DRESSINGS - PRE STERILE,Medicine,NHS LOGISTICS,WSWI1822850,2.91,
Department of Health,Salisbury NHS Foundation Trust,15-Oct-10,DRESSINGS - PRE STERILE,Medicine,NHS LOGISTICS,WSWI1822850,4.34,
Department of Health,Salisbury NHS Foundation Trust,15-Oct-10,DRESSINGS - PRE STERILE,Medicine,NHS LOGISTICS,WSWI1822850,4.54,
Department of Health,Salisbury NHS Foundation Trust,15-Oct-10,DRESSINGS - PRE STERILE,Medicine,NHS LOGISTICS,WSWI1822850,5.99,
Department of Health,Salisbury NHS Foundation Trust,15-Oct-10,DRESSINGS - PRE STERILE,Medicine,NHS LOGISTICS,WSWI1822850,6.26,
Department of Health,Salisbury NHS Foundation Trust,15-Oct-10,DRESSINGS - PRE STERILE,Medicine,NHS LOGISTICS,WSWI1822850,4.13,
Department of Health,Salisbury NHS Foundation Trust,15-Oct-10,DRESSINGS - PRE STERILE,Medicine,NHS LOGISTICS,WSWI1822850,5.92,
Department of Health,Salisbury NHS Foundation Trust,15-Oct-10,DRESSINGS - PRE STERILE,Medicine,NHS LOGISTICS,WSWI1822850,7.39,
Department of Health,Salisbury NHS Foundation Trust,15-Oct-10,DRESSINGS - PRE STERILE,Medicine,NHS LOGISTICS,WSWI1822850,1.98,
Department of Health,Salisbury NHS Foundation Trust,15-Oct-10,DRESSINGS - PRE STERILE,Medicine,NHS LOGISTICS,WSWI1822850,4.5,
Department of Health,Salisbury NHS Foundation Trust,15-Oct-10,DRESSINGS - PRE STERILE,Medicine,NHS LOGISTICS,WSWI1822850,6.85,
Department of Health,Salisbury NHS Foundation Trust,15-Oct-10,DRESSINGS - PRE STERILE,Medicine,NHS LOGISTICS,WSWI1822850,14.92,
Department of Health,Salisbury NHS Foundation Trust,15-Oct-10,DISPOSABLE THEATRE DRAPES WIPES,Medicine,NHS LOGISTICS,WSWI1822850,7.88,
Department of Health,Salisbury NHS Foundation Trust,15-Oct-10,DRESSINGS - PRE STERILE,Medicine,NHS LOGISTICS,WSWI1822850,4.16,
Department of Health,Salisbury NHS Foundation Trust,15-Oct-10,DRESSINGS - PRE STERILE,Medicine,NHS LOGISTICS,WSWI1822850,5.76,
Department of Health,Salisbury NHS Foundation Trust,15-Oct-10,DRESSINGS - PRE STERILE,Medicine,NHS LOGISTICS,WSWI1822850,17.4,
Department of Health,Salisbury NHS Foundation Trust,15-Oct-10,DRESSINGS  -  PROCEDURE PACKS,Medicine,NHS LOGISTICS,WSWI1822850,10.03,
Department of Health,Salisbury NHS Foundation Trust,15-Oct-10,DRESSINGS  -  PROCEDURE PACKS,Medicine,NHS LOGISTICS,WSWI1822850,10.55,
Department of Health,Salisbury NHS Foundation Trust,15-Oct-10,PATIENT APPLIANCES,Medicine,NHS LOGISTICS,WSWI1822850,198.81,
Department of Health,Salisbury NHS Foundation Trust,15-Oct-10,TISSUES HAND TOWELS & TOILET PAPER,Medicine,NHS LOGISTICS,WSWI1822850,10.21,
Department of Health,Salisbury NHS Foundation Trust,15-Oct-10,OTHER MEDICAL SUPPLIES,Medicine,NHS LOGISTICS,WSWI1822850,15.45,
Department of Health,Salisbury NHS Foundation Trust,15-Oct-10,OTHER MEDICAL SUPPLIES,Medicine,NHS LOGISTICS,WSWI1822850,6.09,
Department of Health,Salisbury NHS Foundation Trust,15-Oct-10,TOILETRIES PERSONAL HYGIENE PRODUCTS,Medicine,NHS LOGISTICS,WSWI1822850,9.15,
Department of Health,Salisbury NHS Foundation Trust,15-Oct-10,DISPOSABLE THEATRE DRAPES WIPES,Medicine,NHS LOGISTICS,WSWI1822850,7.56,
Department of Health,Salisbury NHS Foundation Trust,15-Oct-10,DISPOSABLE THEATRE DRAPES WIPES,Medicine,NHS LOGISTICS,WSWI1822850,2.96,
Department of Health,Salisbury NHS Foundation Trust,15-Oct-10,DISPOSABLE THEATRE DRAPES WIPES,Medicine,NHS LOGISTICS,WSWI1822850,33.8,
Department of Health,Salisbury NHS Foundation Trust,15-Oct-10,DISPOSABLE THEATRE DRAPES WIPES,Medicine,NHS LOGISTICS,WSWI1822850,6.94,
Department of Health,Salisbury NHS Foundation Trust,15-Oct-10,MEDSURGCONS - OTHER,Medicine,NHS LOGISTICS,WSWI1822850,31.83,
Department of Health,Salisbury NHS Foundation Trust,15-Oct-10,MEDSURGCONS - OTHER,Medicine,NHS LOGISTICS,WSWI1822850,63.66,
Department of Health,Salisbury NHS Foundation Trust,15-Oct-10,MEDSURGCONS - OTHER,Medicine,NHS LOGISTICS,WSWI1822850,31.83,
Department of Health,Salisbury NHS Foundation Trust,15-Oct-10,BAGS SACKS - OTHER,Medicine,NHS LOGISTICS,WSWI1822850,10.95,
Department of Health,Salisbury NHS Foundation Trust,15-Oct-10,TOILETRIES PERSONAL HYGIENE PRODUCTS,Medicine,NHS LOGISTICS,WSWI1822850,5.97,
Department of Health,Salisbury NHS Foundation Trust,15-Oct-10,MEDSURGCONS - OTHER,Critical care,NHS LOGISTICS,WSWI1822850,0.77,
Department of Health,Salisbury NHS Foundation Trust,15-Oct-10,TOILETRIES PERSONAL HYGIENE PRODUCTS,Critical care,NHS LOGISTICS,WSWI1822850,4.25,
Department of Health,Salisbury NHS Foundation Trust,15-Oct-10,DISPOSABLE THEATRE DRAPES WIPES,Critical care,NHS LOGISTICS,WSWI1822850,3.74,
Department of Health,Salisbury NHS Foundation Trust,15-Oct-10,COOKING & KITCHEN UTENSILS,Critical care,NHS LOGISTICS,WSWI1822850,1.29,
Department of Health,Salisbury NHS Foundation Trust,15-Oct-10,MEDSURGCONS - OTHER,Critical care,NHS LOGISTICS,WSWI1822850,25.96,
Department of Health,Salisbury NHS Foundation Trust,15-Oct-10,MEDSURGCONS-SUTURES,Critical care,NHS LOGISTICS,WSWI1822850,52.22,
Department of Health,Salisbury NHS Foundation Trust,15-Oct-10,MEDSURGCONS-SUTURES,Critical care,NHS LOGISTICS,WSWI1822850,121.97,
Department of Health,Salisbury NHS Foundation Trust,15-Oct-10,MEDSURGCONS-SUTURES,Critical care,NHS LOGISTICS,WSWI1822850,27.76,
Department of Health,Salisbury NHS Foundation Trust,15-Oct-10,OTHER MEDICAL SUPPLIES,Critical care,NHS LOGISTICS,WSWI1822850,1.03,
Department of Health,Salisbury NHS Foundation Trust,15-Oct-10,MEDSURGCONS - OTHER,Critical care,NHS LOGISTICS,WSWI1822850,14.94,
Department of Health,Salisbury NHS Foundation Trust,15-Oct-10,MEDSURGCONS - OTHER,Critical care,NHS LOGISTICS,WSWI1822850,7.47,
Department of Health,Salisbury NHS Foundation Trust,15-Oct-10,MEDSURGCONS - OTHER,Critical care,NHS LOGISTICS,WSWI1822850,14.94,
Department of Health,Salisbury NHS Foundation Trust,15-Oct-10,MEDSURGCONS - OTHER,Critical care,NHS LOGISTICS,WSWI1822850,11.03,
Department of Health,Salisbury NHS Foundation Trust,15-Oct-10,MEDSURGCONS - OTHER,Medicine,NHS LOGISTICS,WSWI1822850,24,
Department of Health,Salisbury NHS Foundation Trust,15-Oct-10,MEDSURGCONS - OTHER,Medicine,NHS LOGISTICS,WSWI1822850,9.06,
Department of Health,Salisbury NHS Foundation Trust,15-Oct-10,MEDSURGCONS - OTHER,Medicine,NHS LOGISTICS,WSWI1822850,28.05,
Department of Health,Salisbury NHS Foundation Trust,15-Oct-10,DRESSINGS - PRE STERILE,Medicine,NHS LOGISTICS,WSWI1822850,8.26,
Department of Health,Salisbury NHS Foundation Trust,15-Oct-10,DRESSINGS - PRE STERILE,Medicine,NHS LOGISTICS,WSWI1822850,32.85,
Department of Health,Salisbury NHS Foundation Trust,15-Oct-10,OTHER MEDICAL SUPPLIES,Medicine,NHS LOGISTICS,WSWI1822850,31.27,
Department of Health,Salisbury NHS Foundation Trust,15-Oct-10,MEDSURGCONS - OTHER,Medicine,NHS LOGISTICS,WSWI1822850,88.09,
Department of Health,Salisbury NHS Foundation Trust,15-Oct-10,OTHER MEDICAL SUPPLIES,Medicine,NHS LOGISTICS,WSWI1822850,108.94,
Department of Health,Salisbury NHS Foundation Trust,15-Oct-10,DRUGS,Medicine,NHS LOGISTICS,WSWI1822850,2.8,
Department of Health,Salisbury NHS Foundation Trust,15-Oct-10,DRUGS,Medicine,NHS LOGISTICS,WSWI1822850,2.96,
Department of Health,Salisbury NHS Foundation Trust,15-Oct-10,DISPOSABLE THEATRE DRAPES WIPES,Medicine,NHS LOGISTICS,WSWI1822850,7.88,
Department of Health,Salisbury NHS Foundation Trust,15-Oct-10,PATIENT APPLIANCES,Medicine,NHS LOGISTICS,WSWI1822850,45.7,
Department of Health,Salisbury NHS Foundation Trust,15-Oct-10,TISSUES HAND TOWELS & TOILET PAPER,Medicine,NHS LOGISTICS,WSWI1822850,3.01,
Department of Health,Salisbury NHS Foundation Trust,15-Oct-10,COOKING & KITCHEN UTENSILS,Medicine,NHS LOGISTICS,WSWI1822850,1.69,
Department of Health,Salisbury NHS Foundation Trust,15-Oct-10,DISPOSABLE THEATRE DRAPES WIPES,Medicine,NHS LOGISTICS,WSWI1822850,19.06,
Department of Health,Salisbury NHS Foundation Trust,15-Oct-10,TISSUES HAND TOWELS & TOILET PAPER,Medicine,NHS LOGISTICS,WSWI1822850,74.3,
Department of Health,Salisbury NHS Foundation Trust,15-Oct-10,TISSUES HAND TOWELS & TOILET PAPER,Medicine,NHS LOGISTICS,WSWI1822850,1.05,
Department of Health,Salisbury NHS Foundation Trust,15-Oct-10,COOKING & KITCHEN UTENSILS,Medicine,NHS LOGISTICS,WSWI1822850,3.22,
Department of Health,Salisbury NHS Foundation Trust,15-Oct-10,SURGICAL INSTRUMENTS: GENERAL,Medicine,NHS LOGISTICS,WSWI1822850,3.52,
Department of Health,Salisbury NHS Foundation Trust,15-Oct-10,TOILETRIES PERSONAL HYGIENE PRODUCTS,Medicine,NHS LOGISTICS,WSWI1822850,1.69,
Department of Health,Salisbury NHS Foundation Trust,15-Oct-10,DRESSINGS - PRE STERILE,Medicine,NHS LOGISTICS,WSWI1822850,6.56,
Department of Health,Salisbury NHS Foundation Trust,15-Oct-10,DISPOSABLE THEATRE DRAPES WIPES,Medicine,NHS LOGISTICS,WSWI1822850,3.37,
Department of Health,Salisbury NHS Foundation Trust,15-Oct-10,DISPOSABLE THEATRE DRAPES WIPES,Medicine,NHS LOGISTICS,WSWI1822850,12.53,
Department of Health,Salisbury NHS Foundation Trust,15-Oct-10,DISPOSABLE THEATRE DRAPES WIPES,Medicine,NHS LOGISTICS,WSWI1822850,7.56,
Department of Health,Salisbury NHS Foundation Trust,15-Oct-10,PATIENT APPLIANCES,Medicine,NHS LOGISTICS,WSWI1822850,6.33,
Department of Health,Salisbury NHS Foundation Trust,15-Oct-10,MEDSURGCONS - OTHER,Medicine,NHS LOGISTICS,WSWI1822850,6.84,
Department of Health,Salisbury NHS Foundation Trust,15-Oct-10,ANAESTHETIC EQUIPMENT ACCESSORIES,Medicine,NHS LOGISTICS,WSWI1822850,3.32,
Department of Health,Salisbury NHS Foundation Trust,15-Oct-10,MEDSURGCONS - OTHER,Medicine,NHS LOGISTICS,WSWI1822850,3.15,
Department of Health,Salisbury NHS Foundation Trust,15-Oct-10,MEDSURGCONS - OTHER,Medicine,NHS LOGISTICS,WSWI1822850,2.89,
Department of Health,Salisbury NHS Foundation Trust,15-Oct-10,ANAESTHETIC EQUIPMENT ACCESSORIES,Medicine,NHS LOGISTICS,WSWI1822850,1.19,
Department of Health,Salisbury NHS Foundation Trust,15-Oct-10,MEDSURGCONS - OTHER,Medicine,NHS LOGISTICS,WSWI1822850,11.02,
Department of Health,Salisbury NHS Foundation Trust,15-Oct-10,MEDSURGCONS - OTHER,Medicine,NHS LOGISTICS,WSWI1822850,18.68,
Department of Health,Salisbury NHS Foundation Trust,15-Oct-10,MEDSURGCONS - OTHER,Medicine,NHS LOGISTICS,WSWI1822850,18.68,
Department of Health,Salisbury NHS Foundation Trust,15-Oct-10,MEDSURGCONS - OTHER,Medicine,NHS LOGISTICS,WSWI1822850,31.83,
Department of Health,Salisbury NHS Foundation Trust,15-Oct-10,PATIENTS INCONTINENCE,Medicine,NHS LOGISTICS,WSWI1822850,8.68,
Department of Health,Salisbury NHS Foundation Trust,15-Oct-10,PATIENTS INCONTINENCE,Medicine,NHS LOGISTICS,WSWI1822850,8.71,
Department of Health,Salisbury NHS Foundation Trust,15-Oct-10,OTHER MEDICAL SUPPLIES,Medicine,NHS LOGISTICS,WSWI1822850,6.86,
Department of Health,Salisbury NHS Foundation Trust,15-Oct-10,OTHER MEDICAL SUPPLIES,Medicine,NHS LOGISTICS,WSWI1822850,5.41,
Department of Health,Salisbury NHS Foundation Trust,15-Oct-10,OTHER MEDICAL SUPPLIES,Medicine,NHS LOGISTICS,WSWI1822850,18.3,
Department of Health,Salisbury NHS Foundation Trust,15-Oct-10,PAPER ITEMS GENERAL STATIONERY SUNDRIES,Clinical Support and Family Services,NHS LOGISTICS,WSWI1822850,21.32,
Department of Health,Salisbury NHS Foundation Trust,15-Oct-10,MEDSURGCONS - OTHER,Clinical Support and Family Services,NHS LOGISTICS,WSWI1822850,18.68,
Department of Health,Salisbury NHS Foundation Trust,15-Oct-10,MEDSURGCONS - OTHER,Clinical Support and Family Services,NHS LOGISTICS,WSWI1822850,14.94,
Department of Health,Salisbury NHS Foundation Trust,15-Oct-10,MEDSURGCONS - OTHER,Clinical Support and Family Services,NHS LOGISTICS,WSWI1822850,7.4,
Department of Health,Salisbury NHS Foundation Trust,15-Oct-10,MEDSURGCONS - OTHER,Clinical Support and Family Services,NHS LOGISTICS,WSWI1822850,10.64,
Department of Health,Salisbury NHS Foundation Trust,15-Oct-10,ANAESTHETIC EQUIPMENT ACCESSORIES,Clinical Support and Family Services,NHS LOGISTICS,WSWI1822850,2.07,
Department of Health,Salisbury NHS Foundation Trust,15-Oct-10,MEDSURGCONS - OTHER,Clinical Support and Family Services,NHS LOGISTICS,WSWI1822850,10.21,
Department of Health,Salisbury NHS Foundation Trust,15-Oct-10,SURGICAL INSTRUMENTS: GENERAL,Clinical Support and Family Services,NHS LOGISTICS,WSWI1822850,14.84,
Department of Health,Salisbury NHS Foundation Trust,15-Oct-10,M & S EQUIPELECTEQUIPINST - OTHER,Clinical Support and Family Services,NHS LOGISTICS,WSWI1822850,206.54,
Department of Health,Salisbury NHS Foundation Trust,15-Oct-10,M & S EQUIPELECTEQUIPINST - OTHER,Clinical Support and Family Services,NHS LOGISTICS,WSWI1822850,248.29,
Department of Health,Salisbury NHS Foundation Trust,15-Oct-10,M & S EQUIPELECTEQUIPINST - OTHER,Clinical Support and Family Services,NHS LOGISTICS,WSWI1822850,248.29,
Department of Health,Salisbury NHS Foundation Trust,15-Oct-10,M & S EQUIPELECTEQUIPINST - OTHER,Clinical Support and Family Services,NHS LOGISTICS,WSWI1822850,247.83,
Department of Health,Salisbury NHS Foundation Trust,15-Oct-10,M & S EQUIPELECTEQUIPINST - OTHER,Clinical Support and Family Services,NHS LOGISTICS,WSWI1822850,47.5,
Department of Health,Salisbury NHS Foundation Trust,15-Oct-10,M & S EQUIPELECTEQUIPINST - OTHER,Clinical Support and Family Services,NHS LOGISTICS,WSWI1822850,3.8,
Department of Health,Salisbury NHS Foundation Trust,15-Oct-10,DRESSINGS - PRE STERILE,Clinical Support and Family Services,NHS LOGISTICS,WSWI1822850,34.47,
Department of Health,Salisbury NHS Foundation Trust,15-Oct-10,DRESSINGS  -  PROCEDURE PACKS,Clinical Support and Family Services,NHS LOGISTICS,WSWI1822850,3.57,
Department of Health,Salisbury NHS Foundation Trust,15-Oct-10,DRESSINGS  -  PROCEDURE PACKS,Clinical Support and Family Services,NHS LOGISTICS,WSWI1822850,8.51,
Department of Health,Salisbury NHS Foundation Trust,15-Oct-10,SURGICAL INSTRUMENTS: GENERAL,Clinical Support and Family Services,NHS LOGISTICS,WSWI1822850,8.27,
Department of Health,Salisbury NHS Foundation Trust,15-Oct-10,MEDSURGCONS - OTHER,Clinical Support and Family Services,NHS LOGISTICS,WSWI1822850,58.72,
Department of Health,Salisbury NHS Foundation Trust,15-Oct-10,MEDSURGCONS - OTHER,Clinical Support and Family Services,NHS LOGISTICS,WSWI1822850,2.29,
Department of Health,Salisbury NHS Foundation Trust,15-Oct-10,MEDSURGCONS - OTHER,Clinical Support and Family Services,NHS LOGISTICS,WSWI1822850,7.23,
Department of Health,Salisbury NHS Foundation Trust,15-Oct-10,MEDSURGCONS - OTHER,Clinical Support and Family Services,NHS LOGISTICS,WSWI1822850,15.34,
Department of Health,Salisbury NHS Foundation Trust,15-Oct-10,TUBES,Clinical Support and Family Services,NHS LOGISTICS,WSWI1822850,32.43,
Department of Health,Salisbury NHS Foundation Trust,15-Oct-10,NON DISPOSABLE BED LINEN,Medicine,NHS LOGISTICS,WSWI1822850,9.84,
Department of Health,Salisbury NHS Foundation Trust,15-Oct-10,CLEANING MATERIALS PRODUCTS SUNDRIES,Medicine,NHS LOGISTICS,WSWI1822850,7.83,
Department of Health,Salisbury NHS Foundation Trust,15-Oct-10,MEDSURGCONS - OTHER,Critical care,NHS LOGISTICS,WSWI1822850,10.23,
Department of Health,Salisbury NHS Foundation Trust,15-Oct-10,OTHER MEDICAL SUPPLIES,Critical care,NHS LOGISTICS,WSWI1822850,1.84,
Department of Health,Salisbury NHS Foundation Trust,15-Oct-10,M & S EQUIPELECTEQUIPINST - OTHER,Critical care,NHS LOGISTICS,WSWI1822850,3.8,
Department of Health,Salisbury NHS Foundation Trust,15-Oct-10,OTHER MEDICAL SUPPLIES,Critical care,NHS LOGISTICS,WSWI1822850,4.12,
Department of Health,Salisbury NHS Foundation Trust,15-Oct-10,OTHER MEDICAL SUPPLIES,Critical care,NHS LOGISTICS,WSWI1822850,3.66,
Department of Health,Salisbury NHS Foundation Trust,15-Oct-10,TISSUES HAND TOWELS & TOILET PAPER,Critical care,NHS LOGISTICS,WSWI1822850,1.51,
Department of Health,Salisbury NHS Foundation Trust,15-Oct-10,COOKING & KITCHEN UTENSILS,Critical care,NHS LOGISTICS,WSWI1822850,1.01,
Department of Health,Salisbury NHS Foundation Trust,15-Oct-10,TISSUES HAND TOWELS & TOILET PAPER,Critical care,NHS LOGISTICS,WSWI1822850,37.15,
Department of Health,Salisbury NHS Foundation Trust,15-Oct-10,MEDSURGCONS - OTHER,Critical care,NHS LOGISTICS,WSWI1822850,31.83,
Department of Health,Salisbury NHS Foundation Trust,15-Oct-10,DISPOSABLE THEATRE DRAPES WIPES,Critical care,NHS LOGISTICS,WSWI1822850,3.78,
Department of Health,Salisbury NHS Foundation Trust,15-Oct-10,DISPOSABLE THEATRE DRAPES WIPES,Critical care,NHS LOGISTICS,WSWI1822850,5.92,
Department of Health,Salisbury NHS Foundation Trust,15-Oct-10,DISPOSABLE THEATRE DRAPES WIPES,Critical care,NHS LOGISTICS,WSWI1822850,21.23,
Department of Health,Salisbury NHS Foundation Trust,15-Oct-10,PATIENTS INCONTINENCE,Critical care,NHS LOGISTICS,WSWI1822850,4.09,
Department of Health,Salisbury NHS Foundation Trust,15-Oct-10,TOILETRIES PERSONAL HYGIENE PRODUCTS,Critical care,NHS LOGISTICS,WSWI1822850,3.23,
Department of Health,Salisbury NHS Foundation Trust,15-Oct-10,TOILETRIES PERSONAL HYGIENE PRODUCTS,Critical care,NHS LOGISTICS,WSWI1822850,6.95,
Department of Health,Salisbury NHS Foundation Trust,15-Oct-10,PATIENTS FOOTWEAR,Critical care,NHS LOGISTICS,WSWI1822850,3.85,
Department of Health,Salisbury NHS Foundation Trust,15-Oct-10,SURGICAL INSTRUMENTS: GENERAL,Critical care,NHS LOGISTICS,WSWI1822850,5.29,
Department of Health,Salisbury NHS Foundation Trust,15-Oct-10,DISPOSABLE THEATRE DRAPES WIPES,Critical care,NHS LOGISTICS,WSWI1822850,3.94,
Department of Health,Salisbury NHS Foundation Trust,15-Oct-10,COOKING & KITCHEN UTENSILS,Critical care,NHS LOGISTICS,WSWI1822850,3.1,
Department of Health,Salisbury NHS Foundation Trust,15-Oct-10,DRESSINGS  -  PROCEDURE PACKS,Critical care,NHS LOGISTICS,WSWI1822850,0.77,
Department of Health,Salisbury NHS Foundation Trust,15-Oct-10,DRESSINGS  -  PROCEDURE PACKS,Critical care,NHS LOGISTICS,WSWI1822850,1.43,
Department of Health,Salisbury NHS Foundation Trust,15-Oct-10,DRESSINGS - PRE STERILE,Critical care,NHS LOGISTICS,WSWI1822850,2.36,
Department of Health,Salisbury NHS Foundation Trust,15-Oct-10,DRESSINGS - PRE STERILE,Critical care,NHS LOGISTICS,WSWI1822850,3.42,
Department of Health,Salisbury NHS Foundation Trust,15-Oct-10,DRESSINGS - PRE STERILE,Critical care,NHS LOGISTICS,WSWI1822850,2.1,
Department of Health,Salisbury NHS Foundation Trust,15-Oct-10,DRESSINGS - PRE STERILE,Critical care,NHS LOGISTICS,WSWI1822850,4.13,
Department of Health,Salisbury NHS Foundation Trust,15-Oct-10,DRESSINGS - PRE STERILE,Critical care,NHS LOGISTICS,WSWI1822850,5.01,
Department of Health,Salisbury NHS Foundation Trust,15-Oct-10,DRESSINGS - PRE STERILE,Critical care,NHS LOGISTICS,WSWI1822850,13.33,
Department of Health,Salisbury NHS Foundation Trust,15-Oct-10,DRESSINGS - PRE STERILE,Critical care,NHS LOGISTICS,WSWI1822850,10.5,
Department of Health,Salisbury NHS Foundation Trust,15-Oct-10,M & S EQUIPELECTEQUIPINST - OTHER,Critical care,NHS LOGISTICS,WSWI1822850,4.77,
Department of Health,Salisbury NHS Foundation Trust,15-Oct-10,PATIENT APPLIANCES,Critical care,NHS LOGISTICS,WSWI1822850,9.58,
Department of Health,Salisbury NHS Foundation Trust,15-Oct-10,OTHER MEDICAL SUPPLIES,Critical care,NHS LOGISTICS,WSWI1822850,15.02,
Department of Health,Salisbury NHS Foundation Trust,15-Oct-10,DRUGS,Critical care,NHS LOGISTICS,WSWI1822850,5.57,
Department of Health,Salisbury NHS Foundation Trust,15-Oct-10,MEDSURGCONS - OTHER,Critical care,NHS LOGISTICS,WSWI1822850,3.15,
Department of Health,Salisbury NHS Foundation Trust,15-Oct-10,ANAESTHETIC EQUIPMENT ACCESSORIES,Critical care,NHS LOGISTICS,WSWI1822850,2.89,
Department of Health,Salisbury NHS Foundation Trust,15-Oct-10,MEDSURGCONS - OTHER,Critical care,NHS LOGISTICS,WSWI1822850,1.45,
Department of Health,Salisbury NHS Foundation Trust,15-Oct-10,MEDSURGCONS - OTHER,Surgery,NHS LOGISTICS,WSWI1822850,18.68,
Department of Health,Salisbury NHS Foundation Trust,15-Oct-10,MEDSURGCONS - OTHER,Surgery,NHS LOGISTICS,WSWI1822850,18.68,
Department of Health,Salisbury NHS Foundation Trust,15-Oct-10,DRESSINGS  -  PROCEDURE PACKS,Surgery,NHS LOGISTICS,WSWI1822850,0.87,
Department of Health,Salisbury NHS Foundation Trust,15-Oct-10,MEDSURGCONS - OTHER,Surgery,NHS LOGISTICS,WSWI1822850,23.83,
Department of Health,Salisbury NHS Foundation Trust,15-Oct-10,DRESSINGS - PRE STERILE,Surgery,NHS LOGISTICS,WSWI1822850,1.52,
Department of Health,Salisbury NHS Foundation Trust,15-Oct-10,DRESSINGS - PRE STERILE,Surgery,NHS LOGISTICS,WSWI1822850,4.83,
Department of Health,Salisbury NHS Foundation Trust,15-Oct-10,DRESSINGS - PRE STERILE,Surgery,NHS LOGISTICS,WSWI1822850,4.13,
Department of Health,Salisbury NHS Foundation Trust,15-Oct-10,SURGICAL INSTRUMENTS: DISPOSABLE,Surgery,NHS LOGISTICS,WSWI1822850,12.09,
Department of Health,Salisbury NHS Foundation Trust,15-Oct-10,MEDSURGCONS - OTHER,Surgery,NHS LOGISTICS,WSWI1822850,7.56,
Department of Health,Salisbury NHS Foundation Trust,15-Oct-10,MEDSURGCONS - OTHER,Surgery,NHS LOGISTICS,WSWI1822850,4.89,
Department of Health,Salisbury NHS Foundation Trust,15-Oct-10,DRESSINGS - PRE STERILE,Surgery,NHS LOGISTICS,WSWI1822850,0.43,
Department of Health,Salisbury NHS Foundation Trust,15-Oct-10,OTHER MEDICAL SUPPLIES,Surgery,NHS LOGISTICS,WSWI1822850,1.45,
Department of Health,Salisbury NHS Foundation Trust,15-Oct-10,OTHER MEDICAL SUPPLIES,Surgery,NHS LOGISTICS,WSWI1822850,3.68,
Department of Health,Salisbury NHS Foundation Trust,15-Oct-10,OTHER MEDICAL SUPPLIES,Surgery,NHS LOGISTICS,WSWI1822850,10.77,
Department of Health,Salisbury NHS Foundation Trust,15-Oct-10,DISPOSABLE THEATRE DRAPES WIPES,Surgery,NHS LOGISTICS,WSWI1822850,3.94,
Department of Health,Salisbury NHS Foundation Trust,15-Oct-10,MEDSURGCONS - OTHER,Surgery,NHS LOGISTICS,WSWI1822850,2.83,
Department of Health,Salisbury NHS Foundation Trust,15-Oct-10,OTHER MEDICAL SUPPLIES,Surgery,NHS LOGISTICS,WSWI1822850,15.57,
Department of Health,Salisbury NHS Foundation Trust,15-Oct-10,SURGICAL INSTRUMENTS: GENERAL,Surgery,NHS LOGISTICS,WSWI1822850,7.05,
Department of Health,Salisbury NHS Foundation Trust,15-Oct-10,MEDSURGCONS - OTHER,Surgery,NHS LOGISTICS,WSWI1822850,62.54,
Department of Health,Salisbury NHS Foundation Trust,15-Oct-10,MEDSURGCONS - OTHER,Surgery,NHS LOGISTICS,WSWI1822850,11.23,
Department of Health,Salisbury NHS Foundation Trust,15-Oct-10,MEDSURGCONS - OTHER,Surgery,NHS LOGISTICS,WSWI1822850,11.23,
Department of Health,Salisbury NHS Foundation Trust,15-Oct-10,MEDSURGCONS - OTHER,Surgery,NHS LOGISTICS,WSWI1822850,21.62,
Department of Health,Salisbury NHS Foundation Trust,15-Oct-10,MEDSURGCONS - OTHER,Surgery,NHS LOGISTICS,WSWI1822850,16.85,
Department of Health,Salisbury NHS Foundation Trust,15-Oct-10,MEDSURGCONS - OTHER,Surgery,NHS LOGISTICS,WSWI1822850,11.23,
Department of Health,Salisbury NHS Foundation Trust,15-Oct-10,DRESSINGS - PRE STERILE,Surgery,NHS LOGISTICS,WSWI1822850,65.7,
Department of Health,Salisbury NHS Foundation Trust,15-Oct-10,OTHER MEDICAL SUPPLIES,Surgery,NHS LOGISTICS,WSWI1822850,7.17,
Department of Health,Salisbury NHS Foundation Trust,15-Oct-10,OTHER MEDICAL SUPPLIES,Surgery,NHS LOGISTICS,WSWI1822850,11.96,
Department of Health,Salisbury NHS Foundation Trust,15-Oct-10,ANAESTHETIC EQUIPMENT ACCESSORIES,Surgery,NHS LOGISTICS,WSWI1822850,52.15,
Department of Health,Salisbury NHS Foundation Trust,15-Oct-10,MEDSURGCONS - OTHER,Surgery,NHS LOGISTICS,WSWI1822850,12.82,
Department of Health,Salisbury NHS Foundation Trust,15-Oct-10,MEDSURGCONS - OTHER,Surgery,NHS LOGISTICS,WSWI1822850,29.32,
Department of Health,Salisbury NHS Foundation Trust,15-Oct-10,MEDSURGCONS - OTHER,Surgery,NHS LOGISTICS,WSWI1822850,31.86,
Department of Health,Salisbury NHS Foundation Trust,15-Oct-10,MEDSURGCONS - OTHER,Surgery,NHS LOGISTICS,WSWI1822850,4.72,
Department of Health,Salisbury NHS Foundation Trust,15-Oct-10,MEDSURGCONS - OTHER,Surgery,NHS LOGISTICS,WSWI1822850,13.74,
Department of Health,Salisbury NHS Foundation Trust,15-Oct-10,MEDSURGCONS - OTHER,Surgery,NHS LOGISTICS,WSWI1822850,16.95,
Department of Health,Salisbury NHS Foundation Trust,15-Oct-10,MEDSURGCONS - OTHER,Surgery,NHS LOGISTICS,WSWI1822850,29.36,
Department of Health,Salisbury NHS Foundation Trust,15-Oct-10,MEDSURGCONS - OTHER,Surgery,NHS LOGISTICS,WSWI1822850,29.36,
Department of Health,Salisbury NHS Foundation Trust,15-Oct-10,MEDSURGCONS - OTHER,Surgery,NHS LOGISTICS,WSWI1822850,29.36,
Department of Health,Salisbury NHS Foundation Trust,15-Oct-10,MEDSURGCONS - OTHER,Surgery,NHS LOGISTICS,WSWI1822850,29.36,
Department of Health,Salisbury NHS Foundation Trust,15-Oct-10,MEDSURGCONS - OTHER,Surgery,NHS LOGISTICS,WSWI1822850,31.66,
Department of Health,Salisbury NHS Foundation Trust,15-Oct-10,SURGICAL INSTRUMENTS: GENERAL,Surgery,NHS LOGISTICS,WSWI1822850,61.28,
Department of Health,Salisbury NHS Foundation Trust,15-Oct-10,OTHER MEDICAL SUPPLIES,Surgery,NHS LOGISTICS,WSWI1822850,97.45,
Department of Health,Salisbury NHS Foundation Trust,15-Oct-10,OTHER MEDICAL SUPPLIES,Surgery,NHS LOGISTICS,WSWI1822850,11.17,
Department of Health,Salisbury NHS Foundation Trust,15-Oct-10,OTHER MEDICAL SUPPLIES,Surgery,NHS LOGISTICS,WSWI1822850,51.06,
Department of Health,Salisbury NHS Foundation Trust,15-Oct-10,OTHER MEDICAL SUPPLIES,Surgery,NHS LOGISTICS,WSWI1822850,1.84,
Department of Health,Salisbury NHS Foundation Trust,15-Oct-10,OTHER MEDICAL SUPPLIES,Surgery,NHS LOGISTICS,WSWI1822850,5.79,
Department of Health,Salisbury NHS Foundation Trust,15-Oct-10,OTHER MEDICAL SUPPLIES,Surgery,NHS LOGISTICS,WSWI1822850,1.46,
Department of Health,Salisbury NHS Foundation Trust,15-Oct-10,OTHER MEDICAL SUPPLIES,Surgery,NHS LOGISTICS,WSWI1822850,1.46,
Department of Health,Salisbury NHS Foundation Trust,15-Oct-10,OTHER MEDICAL SUPPLIES,Surgery,NHS LOGISTICS,WSWI1822850,30.04,
Department of Health,Salisbury NHS Foundation Trust,15-Oct-10,SURGICAL INSTRUMENTS: GENERAL,Surgery,NHS LOGISTICS,WSWI1822850,88.72,
Department of Health,Salisbury NHS Foundation Trust,15-Oct-10,OTHER MEDICAL SUPPLIES,Surgery,NHS LOGISTICS,WSWI1822850,17.36,
Department of Health,Salisbury NHS Foundation Trust,15-Oct-10,OTHER MEDICAL SUPPLIES,Surgery,NHS LOGISTICS,WSWI1822850,51.91,
Department of Health,Salisbury NHS Foundation Trust,15-Oct-10,MEDSURGCONS - OTHER,Surgery,NHS LOGISTICS,WSWI1822850,29.55,
Department of Health,Salisbury NHS Foundation Trust,15-Oct-10,MEDSURGCONS - OTHER,Surgery,NHS LOGISTICS,WSWI1822850,36.94,
Department of Health,Salisbury NHS Foundation Trust,15-Oct-10,OTHER MEDICAL SUPPLIES,Surgery,NHS LOGISTICS,WSWI1822850,10.38,
Department of Health,Salisbury NHS Foundation Trust,15-Oct-10,OTHER MEDICAL SUPPLIES,Surgery,NHS LOGISTICS,WSWI1822850,46.81,
Department of Health,Salisbury NHS Foundation Trust,15-Oct-10,OTHER MEDICAL SUPPLIES,Surgery,NHS LOGISTICS,WSWI1822850,46.47,
Department of Health,Salisbury NHS Foundation Trust,15-Oct-10,SURGICAL INSTRUMENTS: GENERAL,Surgery,NHS LOGISTICS,WSWI1822850,19.9,
Department of Health,Salisbury NHS Foundation Trust,15-Oct-10,OTHER MEDICAL SUPPLIES,Surgery,NHS LOGISTICS,WSWI1822850,35.41,
Department of Health,Salisbury NHS Foundation Trust,15-Oct-10,OTHER MEDICAL SUPPLIES,Surgery,NHS LOGISTICS,WSWI1822850,212.94,
Department of Health,Salisbury NHS Foundation Trust,15-Oct-10,MEDSURGCONS - OTHER,Surgery,NHS LOGISTICS,WSWI1822850,2.84,
Department of Health,Salisbury NHS Foundation Trust,15-Oct-10,MEDSURGCONS - OTHER,Surgery,NHS LOGISTICS,WSWI1822850,27.23,
Department of Health,Salisbury NHS Foundation Trust,15-Oct-10,OTHER MEDICAL SUPPLIES,Surgery,NHS LOGISTICS,WSWI1822850,25.53,
Department of Health,Salisbury NHS Foundation Trust,15-Oct-10,OTHER MEDICAL SUPPLIES,Surgery,NHS LOGISTICS,WSWI1822850,12.49,
Department of Health,Salisbury NHS Foundation Trust,15-Oct-10,ELECTRICAL EQUIPMENT x,Surgery,NHS LOGISTICS,WSWI1822850,4.52,
Department of Health,Salisbury NHS Foundation Trust,15-Oct-10,MEDSURGCONS - OTHER,Surgery,NHS LOGISTICS,WSWI1822850,5.11,
Department of Health,Salisbury NHS Foundation Trust,15-Oct-10,SURGICAL INSTRUMENTS: GENERAL,Surgery,NHS LOGISTICS,WSWI1822850,28.43,
Department of Health,Salisbury NHS Foundation Trust,15-Oct-10,MEDSURGCONS - OTHER,Surgery,NHS LOGISTICS,WSWI1822850,22.81,
Department of Health,Salisbury NHS Foundation Trust,15-Oct-10,OTHER MEDICAL SUPPLIES,Surgery,NHS LOGISTICS,WSWI1822850,94.47,
Department of Health,Salisbury NHS Foundation Trust,15-Oct-10,ANAESTHETIC EQUIPMENT ACCESSORIES,Surgery,NHS LOGISTICS,WSWI1822850,30.98,
Department of Health,Salisbury NHS Foundation Trust,15-Oct-10,MEDSURGCONS - OTHER,Surgery,NHS LOGISTICS,WSWI1822850,11.02,
Department of Health,Salisbury NHS Foundation Trust,15-Oct-10,MEDSURGCONS - OTHER,Surgery,NHS LOGISTICS,WSWI1822850,4.43,
Department of Health,Salisbury NHS Foundation Trust,15-Oct-10,ANAESTHETIC EQUIPMENT ACCESSORIES,Surgery,NHS LOGISTICS,WSWI1822850,4.72,
Department of Health,Salisbury NHS Foundation Trust,15-Oct-10,MED SURG EQUIP REP MAINT CLEANING,Medicine,NHS LOGISTICS,WSWI1822850,19.56,
Department of Health,Salisbury NHS Foundation Trust,15-Oct-10,SURGICAL INSTRUMENTS: GENERAL,Medicine,NHS LOGISTICS,WSWI1822850,2.27,
Department of Health,Salisbury NHS Foundation Trust,15-Oct-10,MEDSURGCONS - OTHER,Surgery,NHS LOGISTICS,WSWI1822850,47.29,
Department of Health,Salisbury NHS Foundation Trust,15-Oct-10,SURGICAL INSTRUMENTS: GENERAL,Surgery,NHS LOGISTICS,WSWI1822850,7.94,
Department of Health,Salisbury NHS Foundation Trust,15-Oct-10,MED SURG EQUIP REP MAINT CLEANING,Surgery,NHS LOGISTICS,WSWI1822850,92.71,
Department of Health,Salisbury NHS Foundation Trust,15-Oct-10,DRESSINGS - PRE STERILE,Surgery,NHS LOGISTICS,WSWI1822850,1.21,
Department of Health,Salisbury NHS Foundation Trust,15-Oct-10,SURGICAL INSTRUMENTS: GENERAL,Surgery,NHS LOGISTICS,WSWI1822850,46.2,
Department of Health,Salisbury NHS Foundation Trust,15-Oct-10,M & S EQUIPELECTEQUIPINST - OTHER,Surgery,NHS LOGISTICS,WSWI1822850,6.01,
Department of Health,Salisbury NHS Foundation Trust,15-Oct-10,TISSUES HAND TOWELS & TOILET PAPER,Surgery,NHS LOGISTICS,WSWI1822850,7.53,
Department of Health,Salisbury NHS Foundation Trust,15-Oct-10,ELECTRICAL EQUIPMENT x,Surgery,NHS LOGISTICS,WSWI1822850,4.52,
Department of Health,Salisbury NHS Foundation Trust,15-Oct-10,SURGICAL INSTRUMENTS: GENERAL,Medicine,NHS LOGISTICS,WSWI1822850,2.27,
Department of Health,Salisbury NHS Foundation Trust,15-Oct-10,SURGICAL INSTRUMENTS: GENERAL,Medicine,NHS LOGISTICS,WSWI1822850,2.27,
Department of Health,Salisbury NHS Foundation Trust,15-Oct-10,TISSUES HAND TOWELS & TOILET PAPER,Medicine,NHS LOGISTICS,WSWI1822850,5.21,
Department of Health,Salisbury NHS Foundation Trust,15-Oct-10,ANAESTHETIC EQUIPMENT ACCESSORIES,Medicine,NHS LOGISTICS,WSWI1822850,9.96,
Department of Health,Salisbury NHS Foundation Trust,15-Oct-10,TISSUES HAND TOWELS & TOILET PAPER,Medicine,NHS LOGISTICS,WSWI1822850,61.91,
Department of Health,Salisbury NHS Foundation Trust,15-Oct-10,PATIENTS INCONTINENCE,Medicine,NHS LOGISTICS,WSWI1822850,17.5,
Department of Health,Salisbury NHS Foundation Trust,15-Oct-10,PATIENTS INCONTINENCE,Medicine,NHS LOGISTICS,WSWI1822850,8.45,
Department of Health,Salisbury NHS Foundation Trust,15-Oct-10,MEDSURGCONS - OTHER,Medicine,NHS LOGISTICS,WSWI1822850,34.47,
Department of Health,Salisbury NHS Foundation Trust,15-Oct-10,MEDSURGCONS - OTHER,Medicine,NHS LOGISTICS,WSWI1822850,63.66,
Department of Health,Salisbury NHS Foundation Trust,15-Oct-10,PATIENTS INCONTINENCE,Medicine,NHS LOGISTICS,WSWI1822850,8.68,
Department of Health,Salisbury NHS Foundation Trust,15-Oct-10,TOILETRIES PERSONAL HYGIENE PRODUCTS,Medicine,NHS LOGISTICS,WSWI1822850,7.59,
Department of Health,Salisbury NHS Foundation Trust,15-Oct-10,DISPOSABLE THEATRE DRAPES WIPES,Medicine,NHS LOGISTICS,WSWI1822850,21.65,
Department of Health,Salisbury NHS Foundation Trust,15-Oct-10,DRESSINGS  -  PROCEDURE PACKS,Medicine,NHS LOGISTICS,WSWI1822850,17.02,
Department of Health,Salisbury NHS Foundation Trust,15-Oct-10,TOILETRIES PERSONAL HYGIENE PRODUCTS,Medicine,NHS LOGISTICS,WSWI1822850,0.68,
Department of Health,Salisbury NHS Foundation Trust,15-Oct-10,TOILETRIES PERSONAL HYGIENE PRODUCTS,Medicine,NHS LOGISTICS,WSWI1822850,6.95,
Department of Health,Salisbury NHS Foundation Trust,15-Oct-10,MEDSURGCONS - OTHER,Medicine,NHS LOGISTICS,WSWI1822850,7.28,
Department of Health,Salisbury NHS Foundation Trust,15-Oct-10,TUBES,Medicine,NHS LOGISTICS,WSWI1822850,6.89,
Department of Health,Salisbury NHS Foundation Trust,15-Oct-10,MEDSURGCONS - OTHER,Medicine,NHS LOGISTICS,WSWI1822850,2.28,
Department of Health,Salisbury NHS Foundation Trust,15-Oct-10,MEDSURGCONS - OTHER,Medicine,NHS LOGISTICS,WSWI1822850,23.83,
Department of Health,Salisbury NHS Foundation Trust,15-Oct-10,MEDSURGCONS - OTHER,Medicine,NHS LOGISTICS,WSWI1822850,5.65,
Department of Health,Salisbury NHS Foundation Trust,15-Oct-10,MEDSURGCONS - OTHER,Medicine,NHS LOGISTICS,WSWI1822850,11.95,
Department of Health,Salisbury NHS Foundation Trust,15-Oct-10,MEDSURGCONS - OTHER,Medicine,NHS LOGISTICS,WSWI1822850,19.57,
Department of Health,Salisbury NHS Foundation Trust,15-Oct-10,OTHER MEDICAL SUPPLIES,Medicine,NHS LOGISTICS,WSWI1822850,2.89,
Department of Health,Salisbury NHS Foundation Trust,15-Oct-10,OTHER MEDICAL SUPPLIES,Medicine,NHS LOGISTICS,WSWI1822850,1.84,
Department of Health,Salisbury NHS Foundation Trust,15-Oct-10,OTHER MEDICAL SUPPLIES,Medicine,NHS LOGISTICS,WSWI1822850,1.3,
Department of Health,Salisbury NHS Foundation Trust,15-Oct-10,DRESSINGS - PRE STERILE,Medicine,NHS LOGISTICS,WSWI1822850,1.11,
Department of Health,Salisbury NHS Foundation Trust,15-Oct-10,OTHER MEDICAL SUPPLIES,Medicine,NHS LOGISTICS,WSWI1822850,5.41,
Department of Health,Salisbury NHS Foundation Trust,15-Oct-10,SURGICAL INSTRUMENTS: GENERAL,Medicine,NHS LOGISTICS,WSWI1822850,4.14,
Department of Health,Salisbury NHS Foundation Trust,15-Oct-10,SURGICAL INSTRUMENTS: GENERAL,Medicine,NHS LOGISTICS,WSWI1822850,8.06,
Department of Health,Salisbury NHS Foundation Trust,15-Oct-10,SURGICAL INSTRUMENTS: GENERAL,Medicine,NHS LOGISTICS,WSWI1822850,0.97,
Department of Health,Salisbury NHS Foundation Trust,15-Oct-10,OTHER MEDICAL SUPPLIES,Medicine,NHS LOGISTICS,WSWI1822850,10.77,
Department of Health,Salisbury NHS Foundation Trust,15-Oct-10,DRESSINGS - PRE STERILE,Medicine,NHS LOGISTICS,WSWI1822850,0.85,
Department of Health,Salisbury NHS Foundation Trust,15-Oct-10,OTHER MEDICAL SUPPLIES,Medicine,NHS LOGISTICS,WSWI1822850,3.49,
Department of Health,Salisbury NHS Foundation Trust,15-Oct-10,OTHER MEDICAL SUPPLIES,Medicine,NHS LOGISTICS,WSWI1822850,1.46,
Department of Health,Salisbury NHS Foundation Trust,15-Oct-10,OTHER MEDICAL SUPPLIES,Medicine,NHS LOGISTICS,WSWI1822850,15.02,
Department of Health,Salisbury NHS Foundation Trust,15-Oct-10,OTHER MEDICAL SUPPLIES,Medicine,NHS LOGISTICS,WSWI1822850,46.81,
Department of Health,Salisbury NHS Foundation Trust,15-Oct-10,MEDSURGCONS - OTHER,Medicine,NHS LOGISTICS,WSWI1822850,18.38,
Department of Health,Salisbury NHS Foundation Trust,15-Oct-10,MEDSURGCONS - OTHER,Medicine,NHS LOGISTICS,WSWI1822850,47.66,
Department of Health,Salisbury NHS Foundation Trust,15-Oct-10,MEDSURGCONS - OTHER,Medicine,NHS LOGISTICS,WSWI1822850,2.55,
Department of Health,Salisbury NHS Foundation Trust,15-Oct-10,ANAESTHETIC EQUIPMENT ACCESSORIES,Medicine,NHS LOGISTICS,WSWI1822850,5.38,
Department of Health,Salisbury NHS Foundation Trust,15-Oct-10,MEDSURGCONS - OTHER,Medicine,NHS LOGISTICS,WSWI1822850,1.57,
Department of Health,Salisbury NHS Foundation Trust,15-Oct-10,ANAESTHETIC EQUIPMENT ACCESSORIES,Medicine,NHS LOGISTICS,WSWI1822850,4.77,
Department of Health,Salisbury NHS Foundation Trust,15-Oct-10,MEDSURGCONS - OTHER,Medicine,NHS LOGISTICS,WSWI1822850,0.6,
Department of Health,Salisbury NHS Foundation Trust,15-Oct-10,MEDSURGCONS - OTHER,Medicine,NHS LOGISTICS,WSWI1822850,0.6,
Department of Health,Salisbury NHS Foundation Trust,15-Oct-10,MEDSURGCONS - OTHER,Medicine,NHS LOGISTICS,WSWI1822850,4.43,
Department of Health,Salisbury NHS Foundation Trust,15-Oct-10,MEDSURGCONS - OTHER,Medicine,NHS LOGISTICS,WSWI1822850,91.47,
Department of Health,Salisbury NHS Foundation Trust,15-Oct-10,MED SURG EQUIP REP MAINT CLEANING,Medicine,NHS LOGISTICS,WSWI1822850,26.47,
Department of Health,Salisbury NHS Foundation Trust,15-Oct-10,MEDSURGCONS - OTHER,Medicine,NHS LOGISTICS,WSWI1822850,17.08,
Department of Health,Salisbury NHS Foundation Trust,15-Oct-10,DRESSINGS - PRE STERILE,Medicine,NHS LOGISTICS,WSWI1822850,3.05,
Department of Health,Salisbury NHS Foundation Trust,15-Oct-10,DRESSINGS - PRE STERILE,Medicine,NHS LOGISTICS,WSWI1822850,2.19,
Department of Health,Salisbury NHS Foundation Trust,15-Oct-10,DRESSINGS - PRE STERILE,Medicine,NHS LOGISTICS,WSWI1822850,2.03,
Department of Health,Salisbury NHS Foundation Trust,15-Oct-10,PATIENT APPLIANCES,Medicine,NHS LOGISTICS,WSWI1822850,28.75,
Department of Health,Salisbury NHS Foundation Trust,15-Oct-10,DRESSINGS  -  PROCEDURE PACKS,Medicine,NHS LOGISTICS,WSWI1822850,2.17,
Department of Health,Salisbury NHS Foundation Trust,15-Oct-10,MEDSURGCONS - OTHER,Medicine,NHS LOGISTICS,WSWI1822850,8.08,
Department of Health,Salisbury NHS Foundation Trust,15-Oct-10,MEDSURGCONS - OTHER,Medicine,NHS LOGISTICS,WSWI1822850,8.08,
Department of Health,Salisbury NHS Foundation Trust,15-Oct-10,M & S EQUIPELECTEQUIPINST - OTHER,Medicine,NHS LOGISTICS,WSWI1822850,3.81,
Department of Health,Salisbury NHS Foundation Trust,15-Oct-10,PATIENT APPLIANCES,Medicine,NHS LOGISTICS,WSWI1822850,3.17,
Department of Health,Salisbury NHS Foundation Trust,15-Oct-10,PATIENT APPLIANCES,Medicine,NHS LOGISTICS,WSWI1822850,3.17,
Department of Health,Salisbury NHS Foundation Trust,15-Oct-10,PATIENT APPLIANCES,Medicine,NHS LOGISTICS,WSWI1822850,3.17,
Department of Health,Salisbury NHS Foundation Trust,15-Oct-10,SURGICAL INSTRUMENTS: GENERAL,Medicine,NHS LOGISTICS,WSWI1822850,1.76,
Department of Health,Salisbury NHS Foundation Trust,15-Oct-10,MEDSURGCONS - OTHER,Medicine,NHS LOGISTICS,WSWI1822850,3.74,
Department of Health,Salisbury NHS Foundation Trust,15-Oct-10,MEDSURGCONS - OTHER,Medicine,NHS LOGISTICS,WSWI1822850,5.65,
Department of Health,Salisbury NHS Foundation Trust,15-Oct-10,MEDSURGCONS - OTHER,Medicine,NHS LOGISTICS,WSWI1822850,7.97,
Department of Health,Salisbury NHS Foundation Trust,15-Oct-10,MEDSURGCONS - OTHER,Medicine,NHS LOGISTICS,WSWI1822850,14.75,
Department of Health,Salisbury NHS Foundation Trust,15-Oct-10,MEDSURGCONS - OTHER,Medicine,NHS LOGISTICS,WSWI1822850,6.41,
Department of Health,Salisbury NHS Foundation Trust,15-Oct-10,OTHER MEDICAL SUPPLIES,Medicine,NHS LOGISTICS,WSWI1822850,10.38,
Department of Health,Salisbury NHS Foundation Trust,15-Oct-10,SURGICAL INSTRUMENTS: GENERAL,Medicine,NHS LOGISTICS,WSWI1822850,1.76,
Department of Health,Salisbury NHS Foundation Trust,15-Oct-10,SURGICAL INSTRUMENTS: GENERAL,Medicine,NHS LOGISTICS,WSWI1822850,4.14,
Department of Health,Salisbury NHS Foundation Trust,15-Oct-10,DRESSINGS - PRE STERILE,Medicine,NHS LOGISTICS,WSWI1822850,4.13,
Department of Health,Salisbury NHS Foundation Trust,15-Oct-10,MEDSURGCONS - OTHER,Medicine,NHS LOGISTICS,WSWI1822850,4.89,
Department of Health,Salisbury NHS Foundation Trust,15-Oct-10,DRESSINGS - PRE STERILE,Medicine,NHS LOGISTICS,WSWI1822850,1.11,
Department of Health,Salisbury NHS Foundation Trust,15-Oct-10,DISPOSABLE THEATRE DRAPES WIPES,Medicine,NHS LOGISTICS,WSWI1822850,3.94,
Department of Health,Salisbury NHS Foundation Trust,15-Oct-10,OTHER MEDICAL SUPPLIES,Medicine,NHS LOGISTICS,WSWI1822850,1.45,
Department of Health,Salisbury NHS Foundation Trust,15-Oct-10,OTHER MEDICAL SUPPLIES,Medicine,NHS LOGISTICS,WSWI1822850,3.68,
Department of Health,Salisbury NHS Foundation Trust,15-Oct-10,OTHER MEDICAL SUPPLIES,Medicine,NHS LOGISTICS,WSWI1822850,7.74,
Department of Health,Salisbury NHS Foundation Trust,15-Oct-10,OTHER MEDICAL SUPPLIES,Medicine,NHS LOGISTICS,WSWI1822850,30.04,
Department of Health,Salisbury NHS Foundation Trust,15-Oct-10,TISSUES HAND TOWELS & TOILET PAPER,Medicine,NHS LOGISTICS,WSWI1822850,37.15,
Department of Health,Salisbury NHS Foundation Trust,15-Oct-10,M & S EQUIPELECTEQUIPINST - OTHER,Medicine,NHS LOGISTICS,WSWI1822850,3.46,
Department of Health,Salisbury NHS Foundation Trust,15-Oct-10,OTHER MEDICAL SUPPLIES,Medicine,NHS LOGISTICS,WSWI1822850,2.93,
Department of Health,Salisbury NHS Foundation Trust,15-Oct-10,TOILETRIES PERSONAL HYGIENE PRODUCTS,Medicine,NHS LOGISTICS,WSWI1822850,1.69,
Department of Health,Salisbury NHS Foundation Trust,15-Oct-10,TOILETRIES PERSONAL HYGIENE PRODUCTS,Medicine,NHS LOGISTICS,WSWI1822850,13.91,
Department of Health,Salisbury NHS Foundation Trust,15-Oct-10,TISSUES HAND TOWELS & TOILET PAPER,Medicine,NHS LOGISTICS,WSWI1822850,2.04,
Department of Health,Salisbury NHS Foundation Trust,15-Oct-10,DRESSINGS  -  PROCEDURE PACKS,Medicine,NHS LOGISTICS,WSWI1822850,2.14,
Department of Health,Salisbury NHS Foundation Trust,15-Oct-10,OTHER MEDICAL SUPPLIES,Medicine,NHS LOGISTICS,WSWI1822850,7.22,
Department of Health,Salisbury NHS Foundation Trust,15-Oct-10,COOKING & KITCHEN UTENSILS,Medicine,NHS LOGISTICS,WSWI1822850,3.23,
Department of Health,Salisbury NHS Foundation Trust,15-Oct-10,MEDSURGCONS - OTHER,Medicine,NHS LOGISTICS,WSWI1822850,14.94,
Department of Health,Salisbury NHS Foundation Trust,15-Oct-10,MEDSURGCONS - OTHER,Medicine,NHS LOGISTICS,WSWI1822850,31.83,
Department of Health,Salisbury NHS Foundation Trust,15-Oct-10,MEDSURGCONS - OTHER,Medicine,NHS LOGISTICS,WSWI1822850,63.66,
Department of Health,Salisbury NHS Foundation Trust,15-Oct-10,MEDSURGCONS - OTHER,Medicine,NHS LOGISTICS,WSWI1822850,31.83,
Department of Health,Salisbury NHS Foundation Trust,15-Oct-10,TISSUES HAND TOWELS & TOILET PAPER,Medicine,NHS LOGISTICS,WSWI1822850,1.4,
Department of Health,Salisbury NHS Foundation Trust,15-Oct-10,DISPOSABLE THEATRE DRAPES WIPES,Medicine,NHS LOGISTICS,WSWI1822850,30.03,
Department of Health,Salisbury NHS Foundation Trust,15-Oct-10,PATIENTS INCONTINENCE,Medicine,NHS LOGISTICS,WSWI1822850,18.66,
Department of Health,Salisbury NHS Foundation Trust,15-Oct-10,DISPOSABLE THEATRE DRAPES WIPES,Medicine,NHS LOGISTICS,WSWI1822850,20.83,
Department of Health,Salisbury NHS Foundation Trust,15-Oct-10,MEDSURGCONS - OTHER,Medicine,NHS LOGISTICS,WSWI1822850,28.05,
Department of Health,Salisbury NHS Foundation Trust,15-Oct-10,MED SURG EQUIP REP MAINT CLEANING,Medicine,NHS LOGISTICS,WSWI1822850,5.29,
Department of Health,Salisbury NHS Foundation Trust,15-Oct-10,DRUGS,Medicine,NHS LOGISTICS,WSWI1822850,5.11,
Department of Health,Salisbury NHS Foundation Trust,15-Oct-10,MEDSURGCONS - OTHER,Medicine,NHS LOGISTICS,WSWI1822850,8.08,
Department of Health,Salisbury NHS Foundation Trust,15-Oct-10,MEDSURGCONS - OTHER,Medicine,NHS LOGISTICS,WSWI1822850,8.08,
Department of Health,Salisbury NHS Foundation Trust,15-Oct-10,DRESSINGS  -  PROCEDURE PACKS,Medicine,NHS LOGISTICS,WSWI1822850,0.87,
Department of Health,Salisbury NHS Foundation Trust,15-Oct-10,PATIENT APPLIANCES,Medicine,NHS LOGISTICS,WSWI1822850,10.45,
Department of Health,Salisbury NHS Foundation Trust,15-Oct-10,PATIENT APPLIANCES,Medicine,NHS LOGISTICS,WSWI1822850,2.23,
Department of Health,Salisbury NHS Foundation Trust,15-Oct-10,DRESSINGS - PRE STERILE,Medicine,NHS LOGISTICS,WSWI1822850,1.52,
Department of Health,Salisbury NHS Foundation Trust,15-Oct-10,DRESSINGS - PRE STERILE,Medicine,NHS LOGISTICS,WSWI1822850,6.33,
Department of Health,Salisbury NHS Foundation Trust,15-Oct-10,DRESSINGS - PRE STERILE,Medicine,NHS LOGISTICS,WSWI1822850,4.5,
Department of Health,Salisbury NHS Foundation Trust,15-Oct-10,MEDSURGCONS - OTHER,Medicine,NHS LOGISTICS,WSWI1822850,0.89,
Department of Health,Salisbury NHS Foundation Trust,15-Oct-10,COOKING & KITCHEN UTENSILS,Medicine,NHS LOGISTICS,WSWI1822850,4.29,
Department of Health,Salisbury NHS Foundation Trust,15-Oct-10,DRUGS,Surgery,NHS LOGISTICS,WSWI1822850,5.6,
Department of Health,Salisbury NHS Foundation Trust,15-Oct-10,DISPOSABLE THEATRE DRAPES WIPES,Surgery,NHS LOGISTICS,WSWI1822850,43.83,
Department of Health,Salisbury NHS Foundation Trust,15-Oct-10,DISPOSABLE THEATRE DRAPES WIPES,Surgery,NHS LOGISTICS,WSWI1822850,4.14,
Department of Health,Salisbury NHS Foundation Trust,15-Oct-10,DISPOSABLE THEATRE DRAPES WIPES,Surgery,NHS LOGISTICS,WSWI1822850,15.11,
Department of Health,Salisbury NHS Foundation Trust,15-Oct-10,TOILETRIES PERSONAL HYGIENE PRODUCTS,Surgery,NHS LOGISTICS,WSWI1822850,22.77,
Department of Health,Salisbury NHS Foundation Trust,15-Oct-10,TOILETRIES PERSONAL HYGIENE PRODUCTS,Surgery,NHS LOGISTICS,WSWI1822850,3.23,
Department of Health,Salisbury NHS Foundation Trust,15-Oct-10,TOILETRIES PERSONAL HYGIENE PRODUCTS,Surgery,NHS LOGISTICS,WSWI1822850,2.68,
Department of Health,Salisbury NHS Foundation Trust,15-Oct-10,TOILETRIES PERSONAL HYGIENE PRODUCTS,Surgery,NHS LOGISTICS,WSWI1822850,1.27,
Department of Health,Salisbury NHS Foundation Trust,15-Oct-10,M & S EQUIPELECTEQUIPINST - OTHER,Surgery,NHS LOGISTICS,WSWI1822850,5.84,
Department of Health,Salisbury NHS Foundation Trust,15-Oct-10,DISPOSABLE THEATRE DRAPES WIPES,Surgery,NHS LOGISTICS,WSWI1822850,19.06,
Department of Health,Salisbury NHS Foundation Trust,15-Oct-10,BAGS SACKS - OTHER,Surgery,NHS LOGISTICS,WSWI1822850,3.65,
Department of Health,Salisbury NHS Foundation Trust,15-Oct-10,DRESSINGS  -  PROCEDURE PACKS,Surgery,NHS LOGISTICS,WSWI1822850,7.97,
Department of Health,Salisbury NHS Foundation Trust,15-Oct-10,DRESSINGS  -  PROCEDURE PACKS,Surgery,NHS LOGISTICS,WSWI1822850,25.53,
Department of Health,Salisbury NHS Foundation Trust,15-Oct-10,MEDSURGCONS - OTHER,Surgery,NHS LOGISTICS,WSWI1822850,18.68,
Department of Health,Salisbury NHS Foundation Trust,15-Oct-10,MEDSURGCONS - OTHER,Surgery,NHS LOGISTICS,WSWI1822850,31.83,
Department of Health,Salisbury NHS Foundation Trust,15-Oct-10,MEDSURGCONS - OTHER,Surgery,NHS LOGISTICS,WSWI1822850,18.68,
Department of Health,Salisbury NHS Foundation Trust,15-Oct-10,MEDSURGCONS - OTHER,Surgery,NHS LOGISTICS,WSWI1822850,31.83,
Department of Health,Salisbury NHS Foundation Trust,15-Oct-10,MEDSURGCONS - OTHER,Surgery,NHS LOGISTICS,WSWI1822850,31.83,
Department of Health,Salisbury NHS Foundation Trust,15-Oct-10,MEDSURGCONS - OTHER,Surgery,NHS LOGISTICS,WSWI1822850,31.83,
Department of Health,Salisbury NHS Foundation Trust,15-Oct-10,TISSUES HAND TOWELS & TOILET PAPER,Surgery,NHS LOGISTICS,WSWI1822850,2.09,
Department of Health,Salisbury NHS Foundation Trust,15-Oct-10,PATIENTS INCONTINENCE,Surgery,NHS LOGISTICS,WSWI1822850,4.34,
Department of Health,Salisbury NHS Foundation Trust,15-Oct-10,PATIENTS INCONTINENCE,Surgery,NHS LOGISTICS,WSWI1822850,16.71,
Department of Health,Salisbury NHS Foundation Trust,15-Oct-10,DRESSINGS - PRE STERILE,Surgery,NHS LOGISTICS,WSWI1822850,1.34,
Department of Health,Salisbury NHS Foundation Trust,15-Oct-10,PATIENTS INCONTINENCE,Surgery,NHS LOGISTICS,WSWI1822850,8.17,
Department of Health,Salisbury NHS Foundation Trust,15-Oct-10,M & S EQUIPELECTEQUIPINST - OTHER,Surgery,NHS LOGISTICS,WSWI1822850,17.72,
Department of Health,Salisbury NHS Foundation Trust,15-Oct-10,OTHER MEDICAL SUPPLIES,Surgery,NHS LOGISTICS,WSWI1822850,4.12,
Department of Health,Salisbury NHS Foundation Trust,15-Oct-10,OTHER MEDICAL SUPPLIES,Surgery,NHS LOGISTICS,WSWI1822850,5.86,
Department of Health,Salisbury NHS Foundation Trust,15-Oct-10,OTHER MEDICAL SUPPLIES,Surgery,NHS LOGISTICS,WSWI1822850,17.15,
Department of Health,Salisbury NHS Foundation Trust,15-Oct-10,OTHER MEDICAL SUPPLIES,Surgery,NHS LOGISTICS,WSWI1822850,10.09,
Department of Health,Salisbury NHS Foundation Trust,15-Oct-10,OTHER MEDICAL SUPPLIES,Surgery,NHS LOGISTICS,WSWI1822850,10.77,
Department of Health,Salisbury NHS Foundation Trust,15-Oct-10,OTHER MEDICAL SUPPLIES,Surgery,NHS LOGISTICS,WSWI1822850,48.72,
Department of Health,Salisbury NHS Foundation Trust,15-Oct-10,OTHER MEDICAL SUPPLIES,Surgery,NHS LOGISTICS,WSWI1822850,7.74,
Department of Health,Salisbury NHS Foundation Trust,15-Oct-10,OTHER MEDICAL SUPPLIES,Surgery,NHS LOGISTICS,WSWI1822850,30.04,
Department of Health,Salisbury NHS Foundation Trust,15-Oct-10,OTHER MEDICAL SUPPLIES,Surgery,NHS LOGISTICS,WSWI1822850,93.62,
Department of Health,Salisbury NHS Foundation Trust,15-Oct-10,MEDSURGCONS - OTHER,Surgery,NHS LOGISTICS,WSWI1822850,4.72,
Department of Health,Salisbury NHS Foundation Trust,15-Oct-10,MEDSURGCONS - OTHER,Surgery,NHS LOGISTICS,WSWI1822850,2.29,
Department of Health,Salisbury NHS Foundation Trust,15-Oct-10,MEDSURGCONS - OTHER,Surgery,NHS LOGISTICS,WSWI1822850,15.91,
Department of Health,Salisbury NHS Foundation Trust,15-Oct-10,MEDSURGCONS - OTHER,Surgery,NHS LOGISTICS,WSWI1822850,18.74,
Department of Health,Salisbury NHS Foundation Trust,15-Oct-10,SURGICAL INSTRUMENTS: GENERAL,Surgery,NHS LOGISTICS,WSWI1822850,8.81,
Department of Health,Salisbury NHS Foundation Trust,15-Oct-10,MEDSURGCONS - OTHER,Surgery,NHS LOGISTICS,WSWI1822850,7.23,
Department of Health,Salisbury NHS Foundation Trust,15-Oct-10,MEDSURGCONS - OTHER,Surgery,NHS LOGISTICS,WSWI1822850,20.46,
Department of Health,Salisbury NHS Foundation Trust,15-Oct-10,SURGICAL INSTRUMENTS: GENERAL,Surgery,NHS LOGISTICS,WSWI1822850,0.68,
Department of Health,Salisbury NHS Foundation Trust,15-Oct-10,OTHER MEDICAL SUPPLIES,Surgery,NHS LOGISTICS,WSWI1822850,42.55,
Department of Health,Salisbury NHS Foundation Trust,15-Oct-10,MEDSURGCONS - OTHER,Surgery,NHS LOGISTICS,WSWI1822850,53.62,
Department of Health,Salisbury NHS Foundation Trust,15-Oct-10,SURGICAL INSTRUMENTS: GENERAL,Surgery,NHS LOGISTICS,WSWI1822850,12.41,
Department of Health,Salisbury NHS Foundation Trust,15-Oct-10,OTHER MEDICAL SUPPLIES,Surgery,NHS LOGISTICS,WSWI1822850,2.89,
Department of Health,Salisbury NHS Foundation Trust,15-Oct-10,OTHER MEDICAL SUPPLIES,Surgery,NHS LOGISTICS,WSWI1822850,1.84,
Department of Health,Salisbury NHS Foundation Trust,15-Oct-10,TISSUES HAND TOWELS & TOILET PAPER,Surgery,NHS LOGISTICS,WSWI1822850,99.06,
Department of Health,Salisbury NHS Foundation Trust,15-Oct-10,TISSUES HAND TOWELS & TOILET PAPER,Surgery,NHS LOGISTICS,WSWI1822850,5.21,
Department of Health,Salisbury NHS Foundation Trust,15-Oct-10,COOKING & KITCHEN UTENSILS,Surgery,NHS LOGISTICS,WSWI1822850,3.23,
Department of Health,Salisbury NHS Foundation Trust,15-Oct-10,M & S EQUIPELECTEQUIPINST - OTHER,Surgery,NHS LOGISTICS,WSWI1822850,7.61,
Department of Health,Salisbury NHS Foundation Trust,15-Oct-10,DRESSINGS  -  PROCEDURE PACKS,Surgery,NHS LOGISTICS,WSWI1822850,0.77,
Department of Health,Salisbury NHS Foundation Trust,15-Oct-10,MEDSURGCONS - OTHER,Surgery,NHS LOGISTICS,WSWI1822850,10.62,
Department of Health,Salisbury NHS Foundation Trust,15-Oct-10,MEDSURGCONS - OTHER,Surgery,NHS LOGISTICS,WSWI1822850,10.62,
Department of Health,Salisbury NHS Foundation Trust,15-Oct-10,DRESSINGS - PRE STERILE,Surgery,NHS LOGISTICS,WSWI1822850,10.33,
Department of Health,Salisbury NHS Foundation Trust,15-Oct-10,DRESSINGS  -  PROCEDURE PACKS,Surgery,NHS LOGISTICS,WSWI1822850,0.53,
Department of Health,Salisbury NHS Foundation Trust,15-Oct-10,SURGICAL INSTRUMENTS: DISPOSABLE,Surgery,NHS LOGISTICS,WSWI1822850,12.09,
Department of Health,Salisbury NHS Foundation Trust,15-Oct-10,DRESSINGS  -  PROCEDURE PACKS,Surgery,NHS LOGISTICS,WSWI1822850,0.51,
Department of Health,Salisbury NHS Foundation Trust,15-Oct-10,DRESSINGS - PRE STERILE,Surgery,NHS LOGISTICS,WSWI1822850,0.98,
Department of Health,Salisbury NHS Foundation Trust,15-Oct-10,DRESSINGS  -  PROCEDURE PACKS,Surgery,NHS LOGISTICS,WSWI1822850,15.32,
Department of Health,Salisbury NHS Foundation Trust,15-Oct-10,DRESSINGS - PRE STERILE,Surgery,NHS LOGISTICS,WSWI1822850,4.37,
